Workbook

Sheet MNA Datagrid collect
D1: ="MS000MNA" -> MS000MNA | E1: =VLOOKUP(DataColl[[#This Row],[DBA]],#REF!,2,FALSE) ->  | J1: =IF(DataColl[[#This Row],[Period]]<>"",DATE(LEFT(DataColl[[#This Row],[Period]],4),MID(DataColl[[#This Row],[Period]],5,2),1),"") ->  | K1: =(DataColl[[#This Row],[MID]]*100000)+DataColl[[#This Row],[Period_]] ->  | M1: =IF(DataColl[[#This Row],[Net Volume]]<1,0,"Operated") ->  | U1: =IF(DataColl[[#This Row],[Error]]<>"X",((DataColl[[#This Row],[GrossRev]]-DataColl[[#This Row],[DiscExp]])*VALUE(MID(DataColl[[#Headers],[MNA20%]],4,3)))+(DataColl[[#This Row],[GrossRev]]*0.05),0) ->  | Y1: =SUM(DataColl[[#This Row],[DiscExp]:[Tot MiscExp]]) ->  | Z1: =DataColl[[#This Row],[GrossRev]]-DataColl[[#This Row],[GrossExp]] -> 
AB2: I | AC2: X
AB3: ($ en miles)
C5: ConsD | D5: Partner | E5: Vendor | F5: DBA | G5: Portfolio | H5: MID | I5: Period | J5: Period_ | K5: MID+Per | L5: Net Volume | M5: Net Volume 0 | N5: NetNo | O5: Tot DiscIncome | P5: Tot AuthRev | Q5: Tot ProcRev | R5: Tot MiscRev | S5: GrossRev | T5: DiscExp | U5: MNA20% | V5: Tot AuthExp | W5: Tot ProcExp | X5: Tot MiscExp | Y5: GrossExp | Z5: TotResidual Earnings | AA5: TotResEarn_Err | AB5: Inactive | AC5: Error
C6: =IF(C5="ConsD",1,C5+1) -> 1 | D6: ="MS000MNA" -> MS000MNA | E6: MNA01 | F6: CACTUS COMIDA MEXICANA 1 | G6: MS000MNAA1 | H6: 8031689469 | I6: 201709 SEP | J6: =IF(DataColl[[#This Row],[Period]]<>"",DATE(LEFT(DataColl[[#This Row],[Period]],4),MID(DataColl[[#This Row],[Period]],5,2),1),"") -> 2017-09-01 | K6: =(DataColl[[#This Row],[MID]]*100000)+DataColl[[#This Row],[Period_]] -> 803168946942979 | L6: 26048.97 | M6: =IF(DataColl[[#This Row],[Net Volume]]<1,0,"Operado") -> Operado | N6: 1900 | O6: 908.77 | P6: 201.06 | Q6: 0 | R6: 89.98 | S6: 1199.81 | T6: 615.18 | U6: =IF(DataColl[[#This Row],[Error]]<>"X",((DataColl[[#This Row],[GrossRev]]-DataColl[[#This Row],[DiscExp]])*VALUE(MID(DataColl[[#Headers],[MNA20%]],4,3)))+(DataColl[[#This Row],[GrossRev]]*0.05),0) -> 176.9165 | V6: 90.21 | W6: 35.84 | X6: 15 | Y6: =SUM(DataColl[[#This Row],[DiscExp]:[Tot MiscExp]]) -> 933.1465 | Z6: =DataColl[[#This Row],[GrossRev]]-DataColl[[#This Row],[GrossExp]] -> 266.6635 | AA6: =IF(DataColl[[#This Row],[Error]]="X",DataColl[[#This Row],[TotResidual Earnings]],0) -> 0
C7: 2 | D7: MS000MNA | E7: MNA01 | F7: SOLUCIONES ADMINISTRATIVAS | G7: MS000MNAA1 | H7: 8031694931 | I7: 201709 SEP | J7: =IF(DataColl[[#This Row],[Period]]<>"",DATE(LEFT(DataColl[[#This Row],[Period]],4),MID(DataColl[[#This Row],[Period]],5,2),1),"") -> 2017-09-01 | K7: =(DataColl[[#This Row],[MID]]*100000)+DataColl[[#This Row],[Period_]] -> 803169493142979 | L7: 0 | M7: =IF(DataColl[[#This Row],[Net Volume]]<1,0,"Operado") -> 0 | N7: 0 | O7: 0 | P7: 0 | Q7: 0 | R7: 0 | S7: 0 | T7: 0 | U7: =IF(DataColl[[#This Row],[Error]]<>"X",((DataColl[[#This Row],[GrossRev]]-DataColl[[#This Row],[DiscExp]])*VALUE(MID(DataColl[[#Headers],[MNA20%]],4,3)))+(DataColl[[#This Row],[GrossRev]]*0.05),0) -> 0 | V7: 0 | W7: 0 | X7: 0 | Y7: =SUM(DataColl[[#This Row],[DiscExp]:[Tot MiscExp]]) -> 0 | Z7: =DataColl[[#This Row],[GrossRev]]-DataColl[[#This Row],[GrossExp]] -> 0 | AA7: =IF(DataColl[[#This Row],[Error]]="X",DataColl[[#This Row],[TotResidual Earnings]],0) -> 0
C8: 3 | D8: MS000MNA | E8: MNA01 | F8: CACTUS TAQUERIA 4 | G8: MS000MNAA1 | H8: 8031700076 | I8: 201709 SEP | J8: =IF(DataColl[[#This Row],[Period]]<>"",DATE(LEFT(DataColl[[#This Row],[Period]],4),MID(DataColl[[#This Row],[Period]],5,2),1),"") -> 2017-09-01 | K8: =(DataColl[[#This Row],[MID]]*100000)+DataColl[[#This Row],[Period_]] -> 803170007642979 | L8: 0 | M8: =IF(DataColl[[#This Row],[Net Volume]]<1,0,"Operado") -> 0 | N8: 0 | O8: 15 | P8: 0 | Q8: 0 | R8: 34.98 | S8: 49.98 | T8: 7.5 | U8: =IF(DataColl[[#This Row],[Error]]<>"X",((DataColl[[#This Row],[GrossRev]]-DataColl[[#This Row],[DiscExp]])*VALUE(MID(DataColl[[#Headers],[MNA20%]],4,3)))+(DataColl[[#This Row],[GrossRev]]*0.05),0) -> 10.995 | V8: 0 | W8: 0 | X8: 15 | Y8: =SUM(DataColl[[#This Row],[DiscExp]:[Tot MiscExp]]) -> 33.495 | Z8: =DataColl[[#This Row],[GrossRev]]-DataColl[[#This Row],[GrossExp]] -> 16.485 | AA8: =IF(DataColl[[#This Row],[Error]]="X",DataColl[[#This Row],[TotResidual Earnings]],0) -> 0
C9: 4 | D9: MS000MNA | E9: MNA01 | F9: CACTUS TAQUERIA 3 | G9: MS000MNAA1 | H9: 8031700159 | I9: 201709 SEP | J9: =IF(DataColl[[#This Row],[Period]]<>"",DATE(LEFT(DataColl[[#This Row],[Period]],4),MID(DataColl[[#This Row],[Period]],5,2),1),"") -> 2017-09-01 | K9: =(DataColl[[#This Row],[MID]]*100000)+DataColl[[#This Row],[Period_]] -> 803170015942979 | L9: 0 | M9: =IF(DataColl[[#This Row],[Net Volume]]<1,0,"Operado") -> 0 | N9: 0 | O9: 15 | P9: 0 | Q9: 0 | R9: 34.98 | S9: 49.98 | T9: 7.5 | U9: =IF(DataColl[[#This Row],[Error]]<>"X",((DataColl[[#This Row],[GrossRev]]-DataColl[[#This Row],[DiscExp]])*VALUE(MID(DataColl[[#Headers],[MNA20%]],4,3)))+(DataColl[[#This Row],[GrossRev]]*0.05),0) -> 10.995 | V9: 0 | W9: 0 | X9: 15 | Y9: =SUM(DataColl[[#This Row],[DiscExp]:[Tot MiscExp]]) -> 33.495 | Z9: =DataColl[[#This Row],[GrossRev]]-DataColl[[#This Row],[GrossExp]] -> 16.485 | AA9: =IF(DataColl[[#This Row],[Error]]="X",DataColl[[#This Row],[TotResidual Earnings]],0) -> 0
C10: 5 | D10: MS000MNA | E10: MNA02 | F10: LAS PLAYAS DE DON ARTURO | G10: MS000MNAA1 | H10: 8031751814 | I10: 201709 SEP | J10: =IF(DataColl[[#This Row],[Period]]<>"",DATE(LEFT(DataColl[[#This Row],[Period]],4),MID(DataColl[[#This Row],[Period]],5,2),1),"") -> 2017-09-01 | K10: =(DataColl[[#This Row],[MID]]*100000)+DataColl[[#This Row],[Period_]] -> 803175181442979 | L10: 1241.2 | M10: =IF(DataColl[[#This Row],[Net Volume]]<1,0,"Operado") -> Operado | N10: 48 | O10: 39.67 | P10: 8.4 | Q10: 44.94 | R10: 29.99 | S10: 123 | T10: 31.1 | U10: =IF(DataColl[[#This Row],[Error]]<>"X",((DataColl[[#This Row],[GrossRev]]-DataColl[[#This Row],[DiscExp]])*VALUE(MID(DataColl[[#Headers],[MNA20%]],4,3)))+(DataColl[[#This Row],[GrossRev]]*0.05),0) -> 24.53 | V10: 1.31 | W10: 27.99 | X10: 593 | Y10: =SUM(DataColl[[#This Row],[DiscExp]:[Tot MiscExp]]) -> 677.93 | Z10: =DataColl[[#This Row],[GrossRev]]-DataColl[[#This Row],[GrossExp]] -> -554.93 | AA10: =IF(DataColl[[#This Row],[Error]]="X",DataColl[[#This Row],[TotResidual Earnings]],0) -> 0
C11: 6 | D11: MS000MNA | E11: MNA01 | F11: LA PEQUENA CAKE DECORACION | G11: MS000MNAA1 | H11: 8031789327 | I11: 201709 SEP | J11: =IF(DataColl[[#This Row],[Period]]<>"",DATE(LEFT(DataColl[[#This Row],[Period]],4),MID(DataColl[[#This Row],[Period]],5,2),1),"") -> 2017-09-01 | K11: =(DataColl[[#This Row],[MID]]*100000)+DataColl[[#This Row],[Period_]] -> 803178932742979 | L11: 399.7 | M11: =IF(DataColl[[#This Row],[Net Volume]]<1,0,"Operado") -> Operado | N11: 20 | O11: 12.36 | P11: 2.3 | Q11: 4.02 | R11: 19.98 | S11: 38.66 | T11: 8.18 | U11: =IF(DataColl[[#This Row],[Error]]<>"X",((DataColl[[#This Row],[GrossRev]]-DataColl[[#This Row],[DiscExp]])*VALUE(MID(DataColl[[#Headers],[MNA20%]],4,3)))+(DataColl[[#This Row],[GrossRev]]*0.05),0) -> 8.029 | V11: 1.04 | W11: 2.21 | X11: 2 | Y11: =SUM(DataColl[[#This Row],[DiscExp]:[Tot MiscExp]]) -> 21.459 | Z11: =DataColl[[#This Row],[GrossRev]]-DataColl[[#This Row],[GrossExp]] -> 17.201 | AA11: =IF(DataColl[[#This Row],[Error]]="X",DataColl[[#This Row],[TotResidual Earnings]],0) -> 0
C12: 7 | D12: MS000MNA | E12: MNA01 | F12: LA PEQUENA PANADERIA | G12: MS000MNAA1 | H12: 8031796280 | I12: 201709 SEP | J12: =IF(DataColl[[#This Row],[Period]]<>"",DATE(LEFT(DataColl[[#This Row],[Period]],4),MID(DataColl[[#This Row],[Period]],5,2),1),"") -> 2017-09-01 | K12: =(DataColl[[#This Row],[MID]]*100000)+DataColl[[#This Row],[Period_]] -> 803179628042979 | L12: 649.46 | M12: =IF(DataColl[[#This Row],[Net Volume]]<1,0,"Operado") -> Operado | N12: 59 | O12: 35.34 | P12: 10.45 | Q12: 41.78 | R12: 20.97 | S12: 108.54 | T12: 24.14 | U12: =IF(DataColl[[#This Row],[Error]]<>"X",((DataColl[[#This Row],[GrossRev]]-DataColl[[#This Row],[DiscExp]])*VALUE(MID(DataColl[[#Headers],[MNA20%]],4,3)))+(DataColl[[#This Row],[GrossRev]]*0.05),0) -> 22.307 | V12: 2.41 | W12: 24 | X12: 7 | Y12: =SUM(DataColl[[#This Row],[DiscExp]:[Tot MiscExp]]) -> 79.857 | Z12: =DataColl[[#This Row],[GrossRev]]-DataColl[[#This Row],[GrossExp]] -> 28.683 | AA12: =IF(DataColl[[#This Row],[Error]]="X",DataColl[[#This Row],[TotResidual Earnings]],0) -> 0
C13: 8 | D13: MS000MNA | E13: MNA01 | F13: PANCAKES CELESTIALES | G13: MS000MNAA1 | H13: 8031806311 | I13: 201709 SEP | J13: =IF(DataColl[[#This Row],[Period]]<>"",DATE(LEFT(DataColl[[#This Row],[Period]],4),MID(DataColl[[#This Row],[Period]],5,2),1),"") -> 2017-09-01 | K13: =(DataColl[[#This Row],[MID]]*100000)+DataColl[[#This Row],[Period_]] -> 803180631142979 | L13: 2534.93 | M13: =IF(DataColl[[#This Row],[Net Volume]]<1,0,"Operado") -> Operado | N13: 80 | O13: 63.34 | P13: 0.5 | Q13: 1.22 | R13: 19.98 | S13: 85.04 | T13: 34.35 | U13: =IF(DataColl[[#This Row],[Error]]<>"X",((DataColl[[#This Row],[GrossRev]]-DataColl[[#This Row],[DiscExp]])*VALUE(MID(DataColl[[#Headers],[MNA20%]],4,3)))+(DataColl[[#This Row],[GrossRev]]*0.05),0) -> 14.39 | V13: 0.14 | W13: 2.05 | X13: 2 | Y13: =SUM(DataColl[[#This Row],[DiscExp]:[Tot MiscExp]]) -> 52.93 | Z13: =DataColl[[#This Row],[GrossRev]]-DataColl[[#This Row],[GrossExp]] -> 32.11 | AA13: =IF(DataColl[[#This Row],[Error]]="X",DataColl[[#This Row],[TotResidual Earnings]],0) -> 0
C14: 9 | D14: MS000MNA | E14: MNA02 | F14: HELADOS MEXTY 2 | G14: MS000MNAA1 | H14: 8031806618 | I14: 201709 SEP | J14: =IF(DataColl[[#This Row],[Period]]<>"",DATE(LEFT(DataColl[[#This Row],[Period]],4),MID(DataColl[[#This Row],[Period]],5,2),1),"") -> 2017-09-01 | K14: =(DataColl[[#This Row],[MID]]*100000)+DataColl[[#This Row],[Period_]] -> 803180661842979 | L14: 389.97 | M14: =IF(DataColl[[#This Row],[Net Volume]]<1,0,"Operado") -> Operado | N14: 41 | O14: 14.34 | P14: 2.15 | Q14: 5.09 | R14: 0 | S14: 21.58 | T14: 11.15 | U14: =IF(DataColl[[#This Row],[Error]]<>"X",((DataColl[[#This Row],[GrossRev]]-DataColl[[#This Row],[DiscExp]])*VALUE(MID(DataColl[[#Headers],[MNA20%]],4,3)))+(DataColl[[#This Row],[GrossRev]]*0.05),0) -> 3.165 | V14: 0.81 | W14: 4.97 | X14: 202 | Y14: =SUM(DataColl[[#This Row],[DiscExp]:[Tot MiscExp]]) -> 222.095 | Z14: =DataColl[[#This Row],[GrossRev]]-DataColl[[#This Row],[GrossExp]] -> -200.515 | AA14: =IF(DataColl[[#This Row],[Error]]="X",DataColl[[#This Row],[TotResidual Earnings]],0) -> 0
C15: 10 | D15: MS000MNA | E15: MNA02 | F15: HELADOS MEXTY | G15: MS000MNAA1 | H15: 8031806667 | I15: 201709 SEP | J15: =IF(DataColl[[#This Row],[Period]]<>"",DATE(LEFT(DataColl[[#This Row],[Period]],4),MID(DataColl[[#This Row],[Period]],5,2),1),"") -> 2017-09-01 | K15: =(DataColl[[#This Row],[MID]]*100000)+DataColl[[#This Row],[Period_]] -> 803180666742979 | L15: 52.95 | M15: =IF(DataColl[[#This Row],[Net Volume]]<1,0,"Operado") -> Operado | N15: 11 | O15: 3.1 | P15: 0.6 | Q15: 1.82 | R15: 5 | S15: 10.52 | T15: 2.37 | U15: =IF(DataColl[[#This Row],[Error]]<>"X",((DataColl[[#This Row],[GrossRev]]-DataColl[[#This Row],[DiscExp]])*VALUE(MID(DataColl[[#Headers],[MNA20%]],4,3)))+(DataColl[[#This Row],[GrossRev]]*0.05),0) -> 2.156 | V15: 0.31 | W15: 1.71 | X15: 361 | Y15: =SUM(DataColl[[#This Row],[DiscExp]:[Tot MiscExp]]) -> 367.546 | Z15: =DataColl[[#This Row],[GrossRev]]-DataColl[[#This Row],[GrossExp]] -> -357.026 | AA15: =IF(DataColl[[#This Row],[Error]]="X",DataColl[[#This Row],[TotResidual Earnings]],0) -> 0
C16: 11 | D16: MS000MNA | E16: MNA01 | F16: TORTAS MEXICO RESTAURANT | G16: MS000MNAA1 | H16: 8031806931 | I16: 201709 SEP | J16: =IF(DataColl[[#This Row],[Period]]<>"",DATE(LEFT(DataColl[[#This Row],[Period]],4),MID(DataColl[[#This Row],[Period]],5,2),1),"") -> 2017-09-01 | K16: =(DataColl[[#This Row],[MID]]*100000)+DataColl[[#This Row],[Period_]] -> 803180693142979 | L16: 2590.38 | M16: =IF(DataColl[[#This Row],[Net Volume]]<1,0,"Operado") -> Operado | N16: 135 | O16: 85.14 | P16: 14.5 | Q16: 0 | R16: 19.98 | S16: 119.62 | T16: 52.8 | U16: =IF(DataColl[[#This Row],[Error]]<>"X",((DataColl[[#This Row],[GrossRev]]-DataColl[[#This Row],[DiscExp]])*VALUE(MID(DataColl[[#Headers],[MNA20%]],4,3)))+(DataColl[[#This Row],[GrossRev]]*0.05),0) -> 19.345 | V16: 2.39 | W16: 2.56 | X16: 2 | Y16: =SUM(DataColl[[#This Row],[DiscExp]:[Tot MiscExp]]) -> 79.095 | Z16: =DataColl[[#This Row],[GrossRev]]-DataColl[[#This Row],[GrossExp]] -> 40.525 | AA16: =IF(DataColl[[#This Row],[Error]]="X",DataColl[[#This Row],[TotResidual Earnings]],0) -> 0
C17: 12 | D17: MS000MNA | E17: MNA02 | F17: CARNITAS EL REY | G17: MS000MNAA1 | H17: 8031816237 | I17: 201709 SEP | J17: =IF(DataColl[[#This Row],[Period]]<>"",DATE(LEFT(DataColl[[#This Row],[Period]],4),MID(DataColl[[#This Row],[Period]],5,2),1),"") -> 2017-09-01 | K17: =(DataColl[[#This Row],[MID]]*100000)+DataColl[[#This Row],[Period_]] -> 803181623742979 | L17: 7930.67 | M17: =IF(DataColl[[#This Row],[Net Volume]]<1,0,"Operado") -> Operado | N17: 344 | O17: 181.03 | P17: 25.3 | Q17: 0 | R17: 20 | S17: 226.33 | T17: 131.96 | U17: =IF(DataColl[[#This Row],[Error]]<>"X",((DataColl[[#This Row],[GrossRev]]-DataColl[[#This Row],[DiscExp]])*VALUE(MID(DataColl[[#Headers],[MNA20%]],4,3)))+(DataColl[[#This Row],[GrossRev]]*0.05),0) -> 30.1905 | V17: 2.78 | W17: 6.8 | X17: 0 | Y17: =SUM(DataColl[[#This Row],[DiscExp]:[Tot MiscExp]]) -> 171.7305 | Z17: =DataColl[[#This Row],[GrossRev]]-DataColl[[#This Row],[GrossExp]] -> 54.5995 | AA17: =IF(DataColl[[#This Row],[Error]]="X",DataColl[[#This Row],[TotResidual Earnings]],0) -> 0
C18: 13 | D18: MS000MNA | E18: MNA02 | F18: CARNITAS EL REY 2 | G18: MS000MNAA1 | H18: 8031816310 | I18: 201709 SEP | J18: =IF(DataColl[[#This Row],[Period]]<>"",DATE(LEFT(DataColl[[#This Row],[Period]],4),MID(DataColl[[#This Row],[Period]],5,2),1),"") -> 2017-09-01 | K18: =(DataColl[[#This Row],[MID]]*100000)+DataColl[[#This Row],[Period_]] -> 803181631042979 | L18: 0 | M18: =IF(DataColl[[#This Row],[Net Volume]]<1,0,"Operado") -> 0 | N18: 0 | O18: 0 | P18: 0 | Q18: 0 | R18: 0 | S18: 0 | T18: 0 | U18: =IF(DataColl[[#This Row],[Error]]<>"X",((DataColl[[#This Row],[GrossRev]]-DataColl[[#This Row],[DiscExp]])*VALUE(MID(DataColl[[#Headers],[MNA20%]],4,3)))+(DataColl[[#This Row],[GrossRev]]*0.05),0) -> 0 | V18: 0 | W18: 0 | X18: 0 | Y18: =SUM(DataColl[[#This Row],[DiscExp]:[Tot MiscExp]]) -> 0 | Z18: =DataColl[[#This Row],[GrossRev]]-DataColl[[#This Row],[GrossExp]] -> 0 | AA18: =IF(DataColl[[#This Row],[Error]]="X",DataColl[[#This Row],[TotResidual Earnings]],0) -> 0
C19: 14 | D19: MS000MNA | E19: MNA02 | F19: ELIAS BABY FASHION | G19: MS000MNAA1 | H19: 8031816385 | I19: 201709 SEP | J19: =IF(DataColl[[#This Row],[Period]]<>"",DATE(LEFT(DataColl[[#This Row],[Period]],4),MID(DataColl[[#This Row],[Period]],5,2),1),"") -> 2017-09-01 | K19: =(DataColl[[#This Row],[MID]]*100000)+DataColl[[#This Row],[Period_]] -> 803181638542979 | L19: 329.18 | M19: =IF(DataColl[[#This Row],[Net Volume]]<1,0,"Operado") -> Operado | N19: 6 | O19: 4.88 | P19: 0.3 | Q19: 0.69 | R19: 30 | S19: 35.87 | T19: 3.15 | U19: =IF(DataColl[[#This Row],[Error]]<>"X",((DataColl[[#This Row],[GrossRev]]-DataColl[[#This Row],[DiscExp]])*VALUE(MID(DataColl[[#Headers],[MNA20%]],4,3)))+(DataColl[[#This Row],[GrossRev]]*0.05),0) -> 8.3375 | V19: 0.12 | W19: 0.71 | X19: 2 | Y19: =SUM(DataColl[[#This Row],[DiscExp]:[Tot MiscExp]]) -> 14.3175 | Z19: =DataColl[[#This Row],[GrossRev]]-DataColl[[#This Row],[GrossExp]] -> 21.5525 | AA19: =IF(DataColl[[#This Row],[Error]]="X",DataColl[[#This Row],[TotResidual Earnings]],0) -> 0
C20: 15 | D20: MS000MNA | E20: MNA02 | F20: GELI DELISH | G20: MS000MNAA1 | H20: 8031818316 | I20: 201709 SEP | J20: =IF(DataColl[[#This Row],[Period]]<>"",DATE(LEFT(DataColl[[#This Row],[Period]],4),MID(DataColl[[#This Row],[Period]],5,2),1),"") -> 2017-09-01 | K20: =(DataColl[[#This Row],[MID]]*100000)+DataColl[[#This Row],[Period_]] -> 803181831642979 | L20: 190.41 | M20: =IF(DataColl[[#This Row],[Net Volume]]<1,0,"Operado") -> Operado | N20: 13 | O20: 6.16 | P20: 2.8 | Q20: 11.42 | R20: 25 | S20: 45.38 | T20: 4.64 | U20: =IF(DataColl[[#This Row],[Error]]<>"X",((DataColl[[#This Row],[GrossRev]]-DataColl[[#This Row],[DiscExp]])*VALUE(MID(DataColl[[#Headers],[MNA20%]],4,3)))+(DataColl[[#This Row],[GrossRev]]*0.05),0) -> 10.417 | V20: 0.31 | W20: 2.87 | X20: 132 | Y20: =SUM(DataColl[[#This Row],[DiscExp]:[Tot MiscExp]]) -> 150.237 | Z20: =DataColl[[#This Row],[GrossRev]]-DataColl[[#This Row],[GrossExp]] -> -104.857 | AA20: =IF(DataColl[[#This Row],[Error]]="X",DataColl[[#This Row],[TotResidual Earnings]],0) -> 0
C21: 16 | D21: MS000MNA | E21: MNA01 | F21: MANUELITOS RESTAURANT Y TAQUERIA | G21: MS000MNAA1 | H21: 8031819561 | I21: 201709 SEP | J21: =IF(DataColl[[#This Row],[Period]]<>"",DATE(LEFT(DataColl[[#This Row],[Period]],4),MID(DataColl[[#This Row],[Period]],5,2),1),"") -> 2017-09-01 | K21: =(DataColl[[#This Row],[MID]]*100000)+DataColl[[#This Row],[Period_]] -> 803181956142979 | L21: 305.36 | M21: =IF(DataColl[[#This Row],[Net Volume]]<1,0,"Operado") -> Operado | N21: 20 | O21: 10.3 | P21: 2.1 | Q21: 0 | R21: 246.89 | S21: 259.29 | T21: 6.26 | U21: =IF(DataColl[[#This Row],[Error]]<>"X",((DataColl[[#This Row],[GrossRev]]-DataColl[[#This Row],[DiscExp]])*VALUE(MID(DataColl[[#Headers],[MNA20%]],4,3)))+(DataColl[[#This Row],[GrossRev]]*0.05),0) -> 63.5705 | V21: 0.37 | W21: 0.4 | X21: 204 | Y21: =SUM(DataColl[[#This Row],[DiscExp]:[Tot MiscExp]]) -> 274.6005 | Z21: =DataColl[[#This Row],[GrossRev]]-DataColl[[#This Row],[GrossExp]] -> -15.3105 | AA21: =IF(DataColl[[#This Row],[Error]]="X",DataColl[[#This Row],[TotResidual Earnings]],0) -> 0
C22: 17 | D22: MS000MNA | E22: MNA01 | F22: ANGEL RADIADOES 1 | G22: MS000MNAA1 | H22: 8031820353 | I22: 201709 SEP | J22: =IF(DataColl[[#This Row],[Period]]<>"",DATE(LEFT(DataColl[[#This Row],[Period]],4),MID(DataColl[[#This Row],[Period]],5,2),1),"") -> 2017-09-01 | K22: =(DataColl[[#This Row],[MID]]*100000)+DataColl[[#This Row],[Period_]] -> 803182035342979 | L22: 2188.5 | M22: =IF(DataColl[[#This Row],[Net Volume]]<1,0,"Operado") -> Operado | N22: 22 | O22: 43.59 | P22: 1.6 | Q22: 12.55 | R22: 246.98 | S22: 304.72 | T22: 20.88 | U22: =IF(DataColl[[#This Row],[Error]]<>"X",((DataColl[[#This Row],[GrossRev]]-DataColl[[#This Row],[DiscExp]])*VALUE(MID(DataColl[[#Headers],[MNA20%]],4,3)))+(DataColl[[#This Row],[GrossRev]]*0.05),0) -> 72.004 | V22: 0.31 | W22: 5.65 | X22: 184 | Y22: =SUM(DataColl[[#This Row],[DiscExp]:[Tot MiscExp]]) -> 282.844 | Z22: =DataColl[[#This Row],[GrossRev]]-DataColl[[#This Row],[GrossExp]] -> 21.876 | AA22: =IF(DataColl[[#This Row],[Error]]="X",DataColl[[#This Row],[TotResidual Earnings]],0) -> 0
C23: 18 | D23: MS000MNA | E23: MNA02 | F23: PANADERIA DE ANA | G23: MS000MNAA1 | H23: 8031821096 | I23: 201709 SEP | J23: =IF(DataColl[[#This Row],[Period]]<>"",DATE(LEFT(DataColl[[#This Row],[Period]],4),MID(DataColl[[#This Row],[Period]],5,2),1),"") -> 2017-09-01 | K23: =(DataColl[[#This Row],[MID]]*100000)+DataColl[[#This Row],[Period_]] -> 803182109642979 | L23: 0 | M23: =IF(DataColl[[#This Row],[Net Volume]]<1,0,"Operado") -> 0 | N23: 0 | O23: 0.02 | P23: 0.01 | Q23: 0 | R23: 0 | S23: 0.03 | T23: 0.02 | U23: =IF(DataColl[[#This Row],[Error]]<>"X",((DataColl[[#This Row],[GrossRev]]-DataColl[[#This Row],[DiscExp]])*VALUE(MID(DataColl[[#Headers],[MNA20%]],4,3)))+(DataColl[[#This Row],[GrossRev]]*0.05),0) -> 0.0035 | V23: 0.02 | W23: 0 | X23: 580 | Y23: =SUM(DataColl[[#This Row],[DiscExp]:[Tot MiscExp]]) -> 580.0435 | Z23: =DataColl[[#This Row],[GrossRev]]-DataColl[[#This Row],[GrossExp]] -> -580.0135 | AA23: =IF(DataColl[[#This Row],[Error]]="X",DataColl[[#This Row],[TotResidual Earnings]],0) -> 0
C24: 19 | D24: MS000MNA | E24: MNA02 | F24: DIETERS MOTORES IMPORTADOS | G24: MS000MNAA1 | H24: 8031821211 | I24: 201709 SEP | J24: =IF(DataColl[[#This Row],[Period]]<>"",DATE(LEFT(DataColl[[#This Row],[Period]],4),MID(DataColl[[#This Row],[Period]],5,2),1),"") -> 2017-09-01 | K24: =(DataColl[[#This Row],[MID]]*100000)+DataColl[[#This Row],[Period_]] -> 803182121142979 | L24: 0 | M24: =IF(DataColl[[#This Row],[Net Volume]]<1,0,"Operado") -> 0 | N24: 0 | O24: 0.04 | P24: 0.05 | Q24: 0.07 | R24: 20 | S24: 20.16 | T24: 0.04 | U24: =IF(DataColl[[#This Row],[Error]]<>"X",((DataColl[[#This Row],[GrossRev]]-DataColl[[#This Row],[DiscExp]])*VALUE(MID(DataColl[[#Headers],[MNA20%]],4,3)))+(DataColl[[#This Row],[GrossRev]]*0.05),0) -> 5.032 | V24: 0.02 | W24: 0.07 | X24: 202 | Y24: =SUM(DataColl[[#This Row],[DiscExp]:[Tot MiscExp]]) -> 207.162 | Z24: =DataColl[[#This Row],[GrossRev]]-DataColl[[#This Row],[GrossExp]] -> -187.002 | AA24: =IF(DataColl[[#This Row],[Error]]="X",DataColl[[#This Row],[TotResidual Earnings]],0) -> 0
C25: 20 | D25: MS000MNA | E25: MNA01 | F25: TIOS CAFE | G25: MS000MNAA1 | H25: 8031825485 | I25: 201709 SEP | J25: =IF(DataColl[[#This Row],[Period]]<>"",DATE(LEFT(DataColl[[#This Row],[Period]],4),MID(DataColl[[#This Row],[Period]],5,2),1),"") -> 2017-09-01 | K25: =(DataColl[[#This Row],[MID]]*100000)+DataColl[[#This Row],[Period_]] -> 803182548542979 | L25: 6903.74 | M25: =IF(DataColl[[#This Row],[Net Volume]]<1,0,"Operado") -> Operado | N25: 239 | O25: 215.42 | P25: 20.6 | Q25: 0 | R25: 19.98 | S25: 256 | T25: 134.04 | U25: =IF(DataColl[[#This Row],[Error]]<>"X",((DataColl[[#This Row],[GrossRev]]-DataColl[[#This Row],[DiscExp]])*VALUE(MID(DataColl[[#Headers],[MNA20%]],4,3)))+(DataColl[[#This Row],[GrossRev]]*0.05),0) -> 37.192 | V25: 3.22 | W25: 4.62 | X25: 2 | Y25: =SUM(DataColl[[#This Row],[DiscExp]:[Tot MiscExp]]) -> 181.072 | Z25: =DataColl[[#This Row],[GrossRev]]-DataColl[[#This Row],[GrossExp]] -> 74.928 | AA25: =IF(DataColl[[#This Row],[Error]]="X",DataColl[[#This Row],[TotResidual Earnings]],0) -> 0
C26: 21 | D26: MS000MNA | E26: MNA01 | F26: ANGEL RADIADOES 2 | G26: MS000MNAA1 | H26: 8031843744 | I26: 201709 SEP | J26: =IF(DataColl[[#This Row],[Period]]<>"",DATE(LEFT(DataColl[[#This Row],[Period]],4),MID(DataColl[[#This Row],[Period]],5,2),1),"") -> 2017-09-01 | K26: =(DataColl[[#This Row],[MID]]*100000)+DataColl[[#This Row],[Period_]] -> 803184374442979 | L26: 4876.01 | M26: =IF(DataColl[[#This Row],[Net Volume]]<1,0,"Operado") -> Operado | N26: 18 | O26: 75.96 | P26: 1.8 | Q26: 12.18 | R26: 0 | S26: 89.94 | T26: 27.13 | U26: =IF(DataColl[[#This Row],[Error]]<>"X",((DataColl[[#This Row],[GrossRev]]-DataColl[[#This Row],[DiscExp]])*VALUE(MID(DataColl[[#Headers],[MNA20%]],4,3)))+(DataColl[[#This Row],[GrossRev]]*0.05),0) -> 17.059 | V26: 0.34 | W26: 6.46 | X26: 182 | Y26: =SUM(DataColl[[#This Row],[DiscExp]:[Tot MiscExp]]) -> 232.989 | Z26: =DataColl[[#This Row],[GrossRev]]-DataColl[[#This Row],[GrossExp]] -> -143.049 | AA26: =IF(DataColl[[#This Row],[Error]]="X",DataColl[[#This Row],[TotResidual Earnings]],0) -> 0
C27: 22 | D27: MS000MNA | E27: MNA02 | F27: JESSES TACO DE MEXICO | G27: MS000MNAA1 | H27: 8031845202 | I27: 201709 SEP | J27: =IF(DataColl[[#This Row],[Period]]<>"",DATE(LEFT(DataColl[[#This Row],[Period]],4),MID(DataColl[[#This Row],[Period]],5,2),1),"") -> 2017-09-01 | K27: =(DataColl[[#This Row],[MID]]*100000)+DataColl[[#This Row],[Period_]] -> 803184520242979 | L27: 0 | M27: =IF(DataColl[[#This Row],[Net Volume]]<1,0,"Operado") -> 0 | N27: 0 | O27: 0 | P27: 0 | Q27: 0 | R27: 0 | S27: 0 | T27: 0 | U27: =IF(DataColl[[#This Row],[Error]]<>"X",((DataColl[[#This Row],[GrossRev]]-DataColl[[#This Row],[DiscExp]])*VALUE(MID(DataColl[[#Headers],[MNA20%]],4,3)))+(DataColl[[#This Row],[GrossRev]]*0.05),0) -> 0 | V27: 0 | W27: 0 | X27: 0 | Y27: =SUM(DataColl[[#This Row],[DiscExp]:[Tot MiscExp]]) -> 0 | Z27: =DataColl[[#This Row],[GrossRev]]-DataColl[[#This Row],[GrossExp]] -> 0 | AA27: =IF(DataColl[[#This Row],[Error]]="X",DataColl[[#This Row],[TotResidual Earnings]],0) -> 0
C28: 23 | D28: MS000MNA | E28: MNA02 | F28: LA ESTRELLA MARKET | G28: MS000MNAA1 | H28: 8031845368 | I28: 201709 SEP | J28: =IF(DataColl[[#This Row],[Period]]<>"",DATE(LEFT(DataColl[[#This Row],[Period]],4),MID(DataColl[[#This Row],[Period]],5,2),1),"") -> 2017-09-01 | K28: =(DataColl[[#This Row],[MID]]*100000)+DataColl[[#This Row],[Period_]] -> 803184536842979 | L28: 0 | M28: =IF(DataColl[[#This Row],[Net Volume]]<1,0,"Operado") -> 0 | N28: 0 | O28: 0.05 | P28: 0 | Q28: 0.15 | R28: 0 | S28: 0.2 | T28: 0.05 | U28: =IF(DataColl[[#This Row],[Error]]<>"X",((DataColl[[#This Row],[GrossRev]]-DataColl[[#This Row],[DiscExp]])*VALUE(MID(DataColl[[#Headers],[MNA20%]],4,3)))+(DataColl[[#This Row],[GrossRev]]*0.05),0) -> 0.04 | V28: 0 | W28: 0.15 | X28: 5 | Y28: =SUM(DataColl[[#This Row],[DiscExp]:[Tot MiscExp]]) -> 5.24 | Z28: =DataColl[[#This Row],[GrossRev]]-DataColl[[#This Row],[GrossExp]] -> -5.04 | AA28: =IF(DataColl[[#This Row],[Error]]="X",DataColl[[#This Row],[TotResidual Earnings]],0) -> 0
C29: 24 | D29: MS000MNA | E29: MNA01 | F29: LABORATORIOS DENTALES HICERAM | G29: MS000MNAA1 | H29: 8031858239 | I29: 201709 SEP | J29: =IF(DataColl[[#This Row],[Period]]<>"",DATE(LEFT(DataColl[[#This Row],[Period]],4),MID(DataColl[[#This Row],[Period]],5,2),1),"") -> 2017-09-01 | K29: =(DataColl[[#This Row],[MID]]*100000)+DataColl[[#This Row],[Period_]] -> 803185823942979 | L29: 9 | M29: =IF(DataColl[[#This Row],[Net Volume]]<1,0,"Operado") -> Operado | N29: 2 | O29: 0.69 | P29: 0.2 | Q29: 0 | R29: 0 | S29: 0.89 | T29: 0.54 | U29: =IF(DataColl[[#This Row],[Error]]<>"X",((DataColl[[#This Row],[GrossRev]]-DataColl[[#This Row],[DiscExp]])*VALUE(MID(DataColl[[#Headers],[MNA20%]],4,3)))+(DataColl[[#This Row],[GrossRev]]*0.05),0) -> 0.1145 | V29: 0.05 | W29: 0.04 | X29: 0 | Y29: =SUM(DataColl[[#This Row],[DiscExp]:[Tot MiscExp]]) -> 0.7445 | Z29: =DataColl[[#This Row],[GrossRev]]-DataColl[[#This Row],[GrossExp]] -> 0.1455 | AA29: =IF(DataColl[[#This Row],[Error]]="X",DataColl[[#This Row],[TotResidual Earnings]],0) -> 0
C30: 25 | D30: MS000MNA | E30: MNA02 | F30: VC ARENA | G30: MS000MNAA1 | H30: 8031858973 | I30: 201709 SEP | J30: =IF(DataColl[[#This Row],[Period]]<>"",DATE(LEFT(DataColl[[#This Row],[Period]],4),MID(DataColl[[#This Row],[Period]],5,2),1),"") -> 2017-09-01 | K30: =(DataColl[[#This Row],[MID]]*100000)+DataColl[[#This Row],[Period_]] -> 803185897342979 | L30: 1917.77 | M30: =IF(DataColl[[#This Row],[Net Volume]]<1,0,"Operado") -> Operado | N30: 30 | O30: 29.25 | P30: 1.05 | Q30: 6.82 | R30: 0 | S30: 37.12 | T30: 26.13 | U30: =IF(DataColl[[#This Row],[Error]]<>"X",((DataColl[[#This Row],[GrossRev]]-DataColl[[#This Row],[DiscExp]])*VALUE(MID(DataColl[[#Headers],[MNA20%]],4,3)))+(DataColl[[#This Row],[GrossRev]]*0.05),0) -> 4.054 | V30: 0.78 | W30: 5.69 | X30: 0 | Y30: =SUM(DataColl[[#This Row],[DiscExp]:[Tot MiscExp]]) -> 36.654 | Z30: =DataColl[[#This Row],[GrossRev]]-DataColl[[#This Row],[GrossExp]] -> 0.466 | AA30: =IF(DataColl[[#This Row],[Error]]="X",DataColl[[#This Row],[TotResidual Earnings]],0) -> 0
C31: 26 | D31: MS000MNA | E31: MNA01 | F31: CACTUS COMIDA MEXICANA 1 | G31: MS000MNAA1 | H31: 8031689469 | I31: 201710 OCT | J31: =IF(DataColl[[#This Row],[Period]]<>"",DATE(LEFT(DataColl[[#This Row],[Period]],4),MID(DataColl[[#This Row],[Period]],5,2),1),"") -> 2017-10-01 | K31: =(DataColl[[#This Row],[MID]]*100000)+DataColl[[#This Row],[Period_]] -> 803168946943009 | L31: 42095.42 | M31: =IF(DataColl[[#This Row],[Net Volume]]<1,0,"Operado") -> Operado | N31: 3032 | O31: 1459.97 | P31: 308.21 | Q31: 0 | R31: 89.98 | S31: 1858.16 | T31: 985.52 | U31: =IF(DataColl[[#This Row],[Error]]<>"X",((DataColl[[#This Row],[GrossRev]]-DataColl[[#This Row],[DiscExp]])*VALUE(MID(DataColl[[#Headers],[MNA20%]],4,3)))+(DataColl[[#This Row],[GrossRev]]*0.05),0) -> 267.436 | V31: 138.38 | W31: 57.84 | X31: 15 | Y31: =SUM(DataColl[[#This Row],[DiscExp]:[Tot MiscExp]]) -> 1464.176 | Z31: =DataColl[[#This Row],[GrossRev]]-DataColl[[#This Row],[GrossExp]] -> 393.984 | AA31: =IF(DataColl[[#This Row],[Error]]="X",DataColl[[#This Row],[TotResidual Earnings]],0) -> 0
C32: 27 | D32: MS000MNA | E32: MNA01 | F32: SOLUCIONES ADMINISTRATIVAS | G32: MS000MNAA1 | H32: 8031693347 | I32: 201710 OCT | J32: =IF(DataColl[[#This Row],[Period]]<>"",DATE(LEFT(DataColl[[#This Row],[Period]],4),MID(DataColl[[#This Row],[Period]],5,2),1),"") -> 2017-10-01 | K32: =(DataColl[[#This Row],[MID]]*100000)+DataColl[[#This Row],[Period_]] -> 803169334743009 | L32: 0 | M32: =IF(DataColl[[#This Row],[Net Volume]]<1,0,"Operado") -> 0 | N32: 0 | O32: 0 | P32: 0 | Q32: 0 | R32: 0 | S32: 0 | T32: 0 | U32: =IF(DataColl[[#This Row],[Error]]<>"X",((DataColl[[#This Row],[GrossRev]]-DataColl[[#This Row],[DiscExp]])*VALUE(MID(DataColl[[#Headers],[MNA20%]],4,3)))+(DataColl[[#This Row],[GrossRev]]*0.05),0) -> 0 | V32: 0 | W32: 0 | X32: 0 | Y32: =SUM(DataColl[[#This Row],[DiscExp]:[Tot MiscExp]]) -> 0 | Z32: =DataColl[[#This Row],[GrossRev]]-DataColl[[#This Row],[GrossExp]] -> 0 | AA32: =IF(DataColl[[#This Row],[Error]]="X",DataColl[[#This Row],[TotResidual Earnings]],0) -> 0
C33: 28 | D33: MS000MNA | E33: MNA01 | F33: SOLUCIONES ADMINISTRATIVAS | G33: MS000MNAA1 | H33: 8031694931 | I33: 201710 OCT | J33: =IF(DataColl[[#This Row],[Period]]<>"",DATE(LEFT(DataColl[[#This Row],[Period]],4),MID(DataColl[[#This Row],[Period]],5,2),1),"") -> 2017-10-01 | K33: =(DataColl[[#This Row],[MID]]*100000)+DataColl[[#This Row],[Period_]] -> 803169493143009 | L33: 0 | M33: =IF(DataColl[[#This Row],[Net Volume]]<1,0,"Operado") -> 0 | N33: 0 | O33: 0 | P33: 0 | Q33: 0 | R33: 0 | S33: 0 | T33: 0 | U33: =IF(DataColl[[#This Row],[Error]]<>"X",((DataColl[[#This Row],[GrossRev]]-DataColl[[#This Row],[DiscExp]])*VALUE(MID(DataColl[[#Headers],[MNA20%]],4,3)))+(DataColl[[#This Row],[GrossRev]]*0.05),0) -> 0 | V33: 0 | W33: 0 | X33: 0 | Y33: =SUM(DataColl[[#This Row],[DiscExp]:[Tot MiscExp]]) -> 0 | Z33: =DataColl[[#This Row],[GrossRev]]-DataColl[[#This Row],[GrossExp]] -> 0 | AA33: =IF(DataColl[[#This Row],[Error]]="X",DataColl[[#This Row],[TotResidual Earnings]],0) -> 0
C34: 29 | D34: MS000MNA | E34: MNA01 | F34: CACTUS TAQUERIA 4 | G34: MS000MNAA1 | H34: 8031700076 | I34: 201710 OCT | J34: =IF(DataColl[[#This Row],[Period]]<>"",DATE(LEFT(DataColl[[#This Row],[Period]],4),MID(DataColl[[#This Row],[Period]],5,2),1),"") -> 2017-10-01 | K34: =(DataColl[[#This Row],[MID]]*100000)+DataColl[[#This Row],[Period_]] -> 803170007643009 | L34: 0 | M34: =IF(DataColl[[#This Row],[Net Volume]]<1,0,"Operado") -> 0 | N34: 0 | O34: 15 | P34: 0 | Q34: 0 | R34: 34.98 | S34: 49.98 | T34: 7.5 | U34: =IF(DataColl[[#This Row],[Error]]<>"X",((DataColl[[#This Row],[GrossRev]]-DataColl[[#This Row],[DiscExp]])*VALUE(MID(DataColl[[#Headers],[MNA20%]],4,3)))+(DataColl[[#This Row],[GrossRev]]*0.05),0) -> 10.995 | V34: 0 | W34: 0 | X34: 15 | Y34: =SUM(DataColl[[#This Row],[DiscExp]:[Tot MiscExp]]) -> 33.495 | Z34: =DataColl[[#This Row],[GrossRev]]-DataColl[[#This Row],[GrossExp]] -> 16.485 | AA34: =IF(DataColl[[#This Row],[Error]]="X",DataColl[[#This Row],[TotResidual Earnings]],0) -> 0
C35: 30 | D35: MS000MNA | E35: MNA01 | F35: CACTUS TAQUERIA 3 | G35: MS000MNAA1 | H35: 8031700159 | I35: 201710 OCT | J35: =IF(DataColl[[#This Row],[Period]]<>"",DATE(LEFT(DataColl[[#This Row],[Period]],4),MID(DataColl[[#This Row],[Period]],5,2),1),"") -> 2017-10-01 | K35: =(DataColl[[#This Row],[MID]]*100000)+DataColl[[#This Row],[Period_]] -> 803170015943009 | L35: 0 | M35: =IF(DataColl[[#This Row],[Net Volume]]<1,0,"Operado") -> 0 | N35: 0 | O35: 15 | P35: 0 | Q35: 0 | R35: 34.98 | S35: 49.98 | T35: 7.5 | U35: =IF(DataColl[[#This Row],[Error]]<>"X",((DataColl[[#This Row],[GrossRev]]-DataColl[[#This Row],[DiscExp]])*VALUE(MID(DataColl[[#Headers],[MNA20%]],4,3)))+(DataColl[[#This Row],[GrossRev]]*0.05),0) -> 10.995 | V35: 0 | W35: 0 | X35: 15 | Y35: =SUM(DataColl[[#This Row],[DiscExp]:[Tot MiscExp]]) -> 33.495 | Z35: =DataColl[[#This Row],[GrossRev]]-DataColl[[#This Row],[GrossExp]] -> 16.485 | AA35: =IF(DataColl[[#This Row],[Error]]="X",DataColl[[#This Row],[TotResidual Earnings]],0) -> 0
C36: 31 | D36: MS000MNA | E36: MNA02 | F36: LAS PLAYAS DE DON ARTURO | G36: MS000MNAA1 | H36: 8031751814 | I36: 201710 OCT | J36: =IF(DataColl[[#This Row],[Period]]<>"",DATE(LEFT(DataColl[[#This Row],[Period]],4),MID(DataColl[[#This Row],[Period]],5,2),1),"") -> 2017-10-01 | K36: =(DataColl[[#This Row],[MID]]*100000)+DataColl[[#This Row],[Period_]] -> 803175181443009 | L36: 3265.55 | M36: =IF(DataColl[[#This Row],[Net Volume]]<1,0,"Operado") -> Operado | N36: 100 | O36: 81.05 | P36: 20.2 | Q36: 47.78 | R36: 29.99 | S36: 179.02 | T36: 59.89 | U36: =IF(DataColl[[#This Row],[Error]]<>"X",((DataColl[[#This Row],[GrossRev]]-DataColl[[#This Row],[DiscExp]])*VALUE(MID(DataColl[[#Headers],[MNA20%]],4,3)))+(DataColl[[#This Row],[GrossRev]]*0.05),0) -> 32.777 | V36: 3.56 | W36: 31.39 | X36: 13 | Y36: =SUM(DataColl[[#This Row],[DiscExp]:[Tot MiscExp]]) -> 140.617 | Z36: =DataColl[[#This Row],[GrossRev]]-DataColl[[#This Row],[GrossExp]] -> 38.403 | AA36: =IF(DataColl[[#This Row],[Error]]="X",DataColl[[#This Row],[TotResidual Earnings]],0) -> 0
C37: 32 | D37: MS000MNA | E37: MNA01 | F37: LA PEQUENA CAKE DECORACION | G37: MS000MNAA1 | H37: 8031789327 | I37: 201710 OCT | J37: =IF(DataColl[[#This Row],[Period]]<>"",DATE(LEFT(DataColl[[#This Row],[Period]],4),MID(DataColl[[#This Row],[Period]],5,2),1),"") -> 2017-10-01 | K37: =(DataColl[[#This Row],[MID]]*100000)+DataColl[[#This Row],[Period_]] -> 803178932743009 | L37: 958.34 | M37: =IF(DataColl[[#This Row],[Net Volume]]<1,0,"Operado") -> Operado | N37: 37 | O37: 25.68 | P37: 4 | Q37: 5.87 | R37: 19.98 | S37: 55.53 | T37: 15.39 | U37: =IF(DataColl[[#This Row],[Error]]<>"X",((DataColl[[#This Row],[GrossRev]]-DataColl[[#This Row],[DiscExp]])*VALUE(MID(DataColl[[#Headers],[MNA20%]],4,3)))+(DataColl[[#This Row],[GrossRev]]*0.05),0) -> 10.8045 | V37: 2.03 | W37: 3.67 | X37: 15 | Y37: =SUM(DataColl[[#This Row],[DiscExp]:[Tot MiscExp]]) -> 46.8945 | Z37: =DataColl[[#This Row],[GrossRev]]-DataColl[[#This Row],[GrossExp]] -> 8.6355 | AA37: =IF(DataColl[[#This Row],[Error]]="X",DataColl[[#This Row],[TotResidual Earnings]],0) -> 0
C38: =IF(C37="ConsD",1,C37+1) -> 33 | D38: ="MS000MNA" -> MS000MNA | E38: MNA01 | F38: LA PEQUENA PANADERIA | G38: MS000MNAA1 | H38: 8031796280 | I38: 201710 OCT | J38: =IF(DataColl[[#This Row],[Period]]<>"",DATE(LEFT(DataColl[[#This Row],[Period]],4),MID(DataColl[[#This Row],[Period]],5,2),1),"") -> 2017-10-01 | K38: =(DataColl[[#This Row],[MID]]*100000)+DataColl[[#This Row],[Period_]] -> 803179628043009 | L38: 2185.7 | M38: =IF(DataColl[[#This Row],[Net Volume]]<1,0,"Operado") -> Operado | N38: 191 | O38: 102.2 | P38: 27.65 | Q38: 47.09 | R38: 20.97 | S38: 197.91 | T38: 70.55 | U38: =IF(DataColl[[#This Row],[Error]]<>"X",((DataColl[[#This Row],[GrossRev]]-DataColl[[#This Row],[DiscExp]])*VALUE(MID(DataColl[[#Headers],[MNA20%]],4,3)))+(DataColl[[#This Row],[GrossRev]]*0.05),0) -> 35.3675 | V38: 6.08 | W38: 29.52 | X38: 15 | Y38: =SUM(DataColl[[#This Row],[DiscExp]:[Tot MiscExp]]) -> 156.5175 | Z38: =DataColl[[#This Row],[GrossRev]]-DataColl[[#This Row],[GrossExp]] -> 41.3925 | AA38: =IF(DataColl[[#This Row],[Error]]="X",DataColl[[#This Row],[TotResidual Earnings]],0) -> 0
C39: 34 | D39: MS000MNA | E39: MNA01 | F39: PANCAKES CELESTIALES | G39: MS000MNAA1 | H39: 8031806311 | I39: 201710 OCT | J39: =IF(DataColl[[#This Row],[Period]]<>"",DATE(LEFT(DataColl[[#This Row],[Period]],4),MID(DataColl[[#This Row],[Period]],5,2),1),"") -> 2017-10-01 | K39: =(DataColl[[#This Row],[MID]]*100000)+DataColl[[#This Row],[Period_]] -> 803180631143009 | L39: 59314.57 | M39: =IF(DataColl[[#This Row],[Net Volume]]<1,0,"Operado") -> Operado | N39: 1715 | O39: 1549.93 | P39: 176.4 | Q39: 5.81 | R39: 19.98 | S39: 1752.12 | T39: 881.2 | U39: =IF(DataColl[[#This Row],[Error]]<>"X",((DataColl[[#This Row],[GrossRev]]-DataColl[[#This Row],[DiscExp]])*VALUE(MID(DataColl[[#Headers],[MNA20%]],4,3)))+(DataColl[[#This Row],[GrossRev]]*0.05),0) -> 261.79 | V39: 26.94 | W39: 35.66 | X39: 15 | Y39: =SUM(DataColl[[#This Row],[DiscExp]:[Tot MiscExp]]) -> 1220.59 | Z39: =DataColl[[#This Row],[GrossRev]]-DataColl[[#This Row],[GrossExp]] -> 531.53 | AA39: =IF(DataColl[[#This Row],[Error]]="X",DataColl[[#This Row],[TotResidual Earnings]],0) -> 0
C40: 35 | D40: MS000MNA | E40: MNA02 | F40: HELADOS MEXTY 2 | G40: MS000MNAA1 | H40: 8031806618 | I40: 201710 OCT | J40: =IF(DataColl[[#This Row],[Period]]<>"",DATE(LEFT(DataColl[[#This Row],[Period]],4),MID(DataColl[[#This Row],[Period]],5,2),1),"") -> 2017-10-01 | K40: =(DataColl[[#This Row],[MID]]*100000)+DataColl[[#This Row],[Period_]] -> 803180661843009 | L40: 878.74 | M40: =IF(DataColl[[#This Row],[Net Volume]]<1,0,"Operado") -> Operado | N40: 80 | O40: 30.16 | P40: 4 | Q40: 20.23 | R40: 0 | S40: 54.39 | T40: 23.42 | U40: =IF(DataColl[[#This Row],[Error]]<>"X",((DataColl[[#This Row],[GrossRev]]-DataColl[[#This Row],[DiscExp]])*VALUE(MID(DataColl[[#Headers],[MNA20%]],4,3)))+(DataColl[[#This Row],[GrossRev]]*0.05),0) -> 8.9135 | V40: 1.69 | W40: 17.58 | X40: 13 | Y40: =SUM(DataColl[[#This Row],[DiscExp]:[Tot MiscExp]]) -> 64.6035 | Z40: =DataColl[[#This Row],[GrossRev]]-DataColl[[#This Row],[GrossExp]] -> -10.2135 | AA40: =IF(DataColl[[#This Row],[Error]]="X",DataColl[[#This Row],[TotResidual Earnings]],0) -> 0
C41: 36 | D41: MS000MNA | E41: MNA02 | F41: HELADOS MEXTY | G41: MS000MNAA1 | H41: 8031806667 | I41: 201710 OCT | J41: =IF(DataColl[[#This Row],[Period]]<>"",DATE(LEFT(DataColl[[#This Row],[Period]],4),MID(DataColl[[#This Row],[Period]],5,2),1),"") -> 2017-10-01 | K41: =(DataColl[[#This Row],[MID]]*100000)+DataColl[[#This Row],[Period_]] -> 803180666743009 | L41: 377.45 | M41: =IF(DataColl[[#This Row],[Net Volume]]<1,0,"Operado") -> Operado | N41: 41 | O41: 41.41 | P41: 2.1 | Q41: 6.54 | R41: 58.87 | S41: 108.92 | T41: 24.54 | U41: =IF(DataColl[[#This Row],[Error]]<>"X",((DataColl[[#This Row],[GrossRev]]-DataColl[[#This Row],[DiscExp]])*VALUE(MID(DataColl[[#Headers],[MNA20%]],4,3)))+(DataColl[[#This Row],[GrossRev]]*0.05),0) -> 22.322 | V41: 1.18 | W41: 5.94 | X41: -324 | Y41: =SUM(DataColl[[#This Row],[DiscExp]:[Tot MiscExp]]) -> -270.018 | Z41: =DataColl[[#This Row],[GrossRev]]-DataColl[[#This Row],[GrossExp]] -> 378.938 | AA41: =IF(DataColl[[#This Row],[Error]]="X",DataColl[[#This Row],[TotResidual Earnings]],0) -> 0
C42: 37 | D42: MS000MNA | E42: MNA01 | F42: TORTAS MEXICO RESTAURANT | G42: MS000MNAA1 | H42: 8031806931 | I42: 201710 OCT | J42: =IF(DataColl[[#This Row],[Period]]<>"",DATE(LEFT(DataColl[[#This Row],[Period]],4),MID(DataColl[[#This Row],[Period]],5,2),1),"") -> 2017-10-01 | K42: =(DataColl[[#This Row],[MID]]*100000)+DataColl[[#This Row],[Period_]] -> 803180693143009 | L42: 19612.48 | M42: =IF(DataColl[[#This Row],[Net Volume]]<1,0,"Operado") -> Operado | N42: 1133 | O42: 668.9 | P42: 166.2 | Q42: 1.03 | R42: 19.98 | S42: 856.11 | T42: 416.25 | U42: =IF(DataColl[[#This Row],[Error]]<>"X",((DataColl[[#This Row],[GrossRev]]-DataColl[[#This Row],[DiscExp]])*VALUE(MID(DataColl[[#Headers],[MNA20%]],4,3)))+(DataColl[[#This Row],[GrossRev]]*0.05),0) -> 130.7775 | V42: 28.43 | W42: 22.37 | X42: 15 | Y42: =SUM(DataColl[[#This Row],[DiscExp]:[Tot MiscExp]]) -> 612.8275 | Z42: =DataColl[[#This Row],[GrossRev]]-DataColl[[#This Row],[GrossExp]] -> 243.2825 | AA42: =IF(DataColl[[#This Row],[Error]]="X",DataColl[[#This Row],[TotResidual Earnings]],0) -> 0
C43: 38 | D43: MS000MNA | E43: MNA02 | F43: CARNITAS EL REY | G43: MS000MNAA1 | H43: 8031816237 | I43: 201710 OCT | J43: =IF(DataColl[[#This Row],[Period]]<>"",DATE(LEFT(DataColl[[#This Row],[Period]],4),MID(DataColl[[#This Row],[Period]],5,2),1),"") -> 2017-10-01 | K43: =(DataColl[[#This Row],[MID]]*100000)+DataColl[[#This Row],[Period_]] -> 803181623743009 | L43: 67392.39 | M43: =IF(DataColl[[#This Row],[Net Volume]]<1,0,"Operado") -> Operado | N43: 3272 | O43: 1598.48 | P43: 479.5 | Q43: 0 | R43: 15.33 | S43: 2093.31 | T43: 1145.88 | U43: =IF(DataColl[[#This Row],[Error]]<>"X",((DataColl[[#This Row],[GrossRev]]-DataColl[[#This Row],[DiscExp]])*VALUE(MID(DataColl[[#Headers],[MNA20%]],4,3)))+(DataColl[[#This Row],[GrossRev]]*0.05),0) -> 294.1515 | V43: 51.82 | W43: 64.58 | X43: 8.32 | Y43: =SUM(DataColl[[#This Row],[DiscExp]:[Tot MiscExp]]) -> 1564.7515 | Z43: =DataColl[[#This Row],[GrossRev]]-DataColl[[#This Row],[GrossExp]] -> 528.5585 | AA43: =IF(DataColl[[#This Row],[Error]]="X",DataColl[[#This Row],[TotResidual Earnings]],0) -> 0
C44: 39 | D44: MS000MNA | E44: MNA02 | F44: CARNITAS EL REY 2 | G44: MS000MNAA1 | H44: 8031816310 | I44: 201710 OCT | J44: =IF(DataColl[[#This Row],[Period]]<>"",DATE(LEFT(DataColl[[#This Row],[Period]],4),MID(DataColl[[#This Row],[Period]],5,2),1),"") -> 2017-10-01 | K44: =(DataColl[[#This Row],[MID]]*100000)+DataColl[[#This Row],[Period_]] -> 803181631043009 | L44: 0.01 | M44: =IF(DataColl[[#This Row],[Net Volume]]<1,0,"Operado") -> 0 | N44: 1 | O44: 34.33 | P44: 1.2 | Q44: 0 | R44: 81.83 | S44: 117.36 | T44: 17.36 | U44: =IF(DataColl[[#This Row],[Error]]<>"X",((DataColl[[#This Row],[GrossRev]]-DataColl[[#This Row],[DiscExp]])*VALUE(MID(DataColl[[#Headers],[MNA20%]],4,3)))+(DataColl[[#This Row],[GrossRev]]*0.05),0) -> 25.868 | V44: 0.27 | W44: 0.02 | X44: 33 | Y44: =SUM(DataColl[[#This Row],[DiscExp]:[Tot MiscExp]]) -> 76.518 | Z44: =DataColl[[#This Row],[GrossRev]]-DataColl[[#This Row],[GrossExp]] -> 40.842 | AA44: =IF(DataColl[[#This Row],[Error]]="X",DataColl[[#This Row],[TotResidual Earnings]],0) -> 0
C45: 40 | D45: MS000MNA | E45: MNA02 | F45: ELIAS BABY FASHION | G45: MS000MNAA1 | H45: 8031816385 | I45: 201710 OCT | J45: =IF(DataColl[[#This Row],[Period]]<>"",DATE(LEFT(DataColl[[#This Row],[Period]],4),MID(DataColl[[#This Row],[Period]],5,2),1),"") -> 2017-10-01 | K45: =(DataColl[[#This Row],[MID]]*100000)+DataColl[[#This Row],[Period_]] -> 803181638543009 | L45: 8511.72 | M45: =IF(DataColl[[#This Row],[Net Volume]]<1,0,"Operado") -> Operado | N45: 105 | O45: 142.68 | P45: 5.3 | Q45: 6.07 | R45: 91.83 | S45: 245.88 | T45: 100.17 | U45: =IF(DataColl[[#This Row],[Error]]<>"X",((DataColl[[#This Row],[GrossRev]]-DataColl[[#This Row],[DiscExp]])*VALUE(MID(DataColl[[#Headers],[MNA20%]],4,3)))+(DataColl[[#This Row],[GrossRev]]*0.05),0) -> 41.436 | V45: 1.99 | W45: 6.86 | X45: 217 | Y45: =SUM(DataColl[[#This Row],[DiscExp]:[Tot MiscExp]]) -> 367.456 | Z45: =DataColl[[#This Row],[GrossRev]]-DataColl[[#This Row],[GrossExp]] -> -121.576 | AA45: =IF(DataColl[[#This Row],[Error]]="X",DataColl[[#This Row],[TotResidual Earnings]],0) -> 0
C46: 41 | D46: MS000MNA | E46: MNA02 | F46: GELI DELISH | G46: MS000MNAA1 | H46: 8031818316 | I46: 201710 OCT | J46: =IF(DataColl[[#This Row],[Period]]<>"",DATE(LEFT(DataColl[[#This Row],[Period]],4),MID(DataColl[[#This Row],[Period]],5,2),1),"") -> 2017-10-01 | K46: =(DataColl[[#This Row],[MID]]*100000)+DataColl[[#This Row],[Period_]] -> 803181831643009 | L46: 1317.92 | M46: =IF(DataColl[[#This Row],[Net Volume]]<1,0,"Operado") -> Operado | N46: 56 | O46: 31.42 | P46: 12 | Q46: 41.51 | R46: 76.83 | S46: 161.76 | T46: 22.76 | U46: =IF(DataColl[[#This Row],[Error]]<>"X",((DataColl[[#This Row],[GrossRev]]-DataColl[[#This Row],[DiscExp]])*VALUE(MID(DataColl[[#Headers],[MNA20%]],4,3)))+(DataColl[[#This Row],[GrossRev]]*0.05),0) -> 35.888 | V46: 1.26 | W46: 11.01 | X46: -324 | Y46: =SUM(DataColl[[#This Row],[DiscExp]:[Tot MiscExp]]) -> -253.082 | Z46: =DataColl[[#This Row],[GrossRev]]-DataColl[[#This Row],[GrossExp]] -> 414.842 | AA46: =IF(DataColl[[#This Row],[Error]]="X",DataColl[[#This Row],[TotResidual Earnings]],0) -> 0
C47: 42 | D47: MS000MNA | E47: MNA01 | F47: MANUELITOS RESTAURANT Y TAQUERIA | G47: MS000MNAA1 | H47: 8031819561 | I47: 201710 OCT | J47: =IF(DataColl[[#This Row],[Period]]<>"",DATE(LEFT(DataColl[[#This Row],[Period]],4),MID(DataColl[[#This Row],[Period]],5,2),1),"") -> 2017-10-01 | K47: =(DataColl[[#This Row],[MID]]*100000)+DataColl[[#This Row],[Period_]] -> 803181956143009 | L47: 11615.02 | M47: =IF(DataColl[[#This Row],[Net Volume]]<1,0,"Operado") -> Operado | N47: 554 | O47: 352.49 | P47: 58.9 | Q47: 4.62 | R47: 19.89 | S47: 435.9 | T47: 209.4 | U47: =IF(DataColl[[#This Row],[Error]]<>"X",((DataColl[[#This Row],[GrossRev]]-DataColl[[#This Row],[DiscExp]])*VALUE(MID(DataColl[[#Headers],[MNA20%]],4,3)))+(DataColl[[#This Row],[GrossRev]]*0.05),0) -> 67.095 | V47: 9.22 | W47: 13.41 | X47: 15 | Y47: =SUM(DataColl[[#This Row],[DiscExp]:[Tot MiscExp]]) -> 314.125 | Z47: =DataColl[[#This Row],[GrossRev]]-DataColl[[#This Row],[GrossExp]] -> 121.775 | AA47: =IF(DataColl[[#This Row],[Error]]="X",DataColl[[#This Row],[TotResidual Earnings]],0) -> 0
C48: 43 | D48: MS000MNA | E48: MNA01 | F48: ANGEL RADIADOES 1 | G48: MS000MNAA1 | H48: 8031820353 | I48: 201710 OCT | J48: =IF(DataColl[[#This Row],[Period]]<>"",DATE(LEFT(DataColl[[#This Row],[Period]],4),MID(DataColl[[#This Row],[Period]],5,2),1),"") -> 2017-10-01 | K48: =(DataColl[[#This Row],[MID]]*100000)+DataColl[[#This Row],[Period_]] -> 803182035343009 | L48: 23350.5 | M48: =IF(DataColl[[#This Row],[Net Volume]]<1,0,"Operado") -> Operado | N48: 190 | O48: 495.82 | P48: 20.2 | Q48: 93.67 | R48: 19.98 | S48: 629.67 | T48: 257.17 | U48: =IF(DataColl[[#This Row],[Error]]<>"X",((DataColl[[#This Row],[GrossRev]]-DataColl[[#This Row],[DiscExp]])*VALUE(MID(DataColl[[#Headers],[MNA20%]],4,3)))+(DataColl[[#This Row],[GrossRev]]*0.05),0) -> 105.9835 | V48: 3.43 | W48: 49.88 | X48: 15 | Y48: =SUM(DataColl[[#This Row],[DiscExp]:[Tot MiscExp]]) -> 431.4635 | Z48: =DataColl[[#This Row],[GrossRev]]-DataColl[[#This Row],[GrossExp]] -> 198.2065 | AA48: =IF(DataColl[[#This Row],[Error]]="X",DataColl[[#This Row],[TotResidual Earnings]],0) -> 0
C49: 44 | D49: MS000MNA | E49: MNA02 | F49: PANADERIA DE ANA | G49: MS000MNAA1 | H49: 8031821096 | I49: 201710 OCT | J49: =IF(DataColl[[#This Row],[Period]]<>"",DATE(LEFT(DataColl[[#This Row],[Period]],4),MID(DataColl[[#This Row],[Period]],5,2),1),"") -> 2017-10-01 | K49: =(DataColl[[#This Row],[MID]]*100000)+DataColl[[#This Row],[Period_]] -> 803182109643009 | L49: 406.66 | M49: =IF(DataColl[[#This Row],[Net Volume]]<1,0,"Operado") -> Operado | N49: 7 | O49: 39.69 | P49: 0.32 | Q49: 2.38 | R49: 10 | S49: 52.39 | T49: 21.86 | U49: =IF(DataColl[[#This Row],[Error]]<>"X",((DataColl[[#This Row],[GrossRev]]-DataColl[[#This Row],[DiscExp]])*VALUE(MID(DataColl[[#Headers],[MNA20%]],4,3)))+(DataColl[[#This Row],[GrossRev]]*0.05),0) -> 8.7255 | V49: 0.27 | W49: 1.67 | X49: 13 | Y49: =SUM(DataColl[[#This Row],[DiscExp]:[Tot MiscExp]]) -> 45.5255 | Z49: =DataColl[[#This Row],[GrossRev]]-DataColl[[#This Row],[GrossExp]] -> 6.8645 | AA49: =IF(DataColl[[#This Row],[Error]]="X",DataColl[[#This Row],[TotResidual Earnings]],0) -> 0
C50: 45 | D50: MS000MNA | E50: MNA02 | F50: DIETERS MOTORES IMPORTADOS | G50: MS000MNAA1 | H50: 8031821211 | I50: 201710 OCT | J50: =IF(DataColl[[#This Row],[Period]]<>"",DATE(LEFT(DataColl[[#This Row],[Period]],4),MID(DataColl[[#This Row],[Period]],5,2),1),"") -> 2017-10-01 | K50: =(DataColl[[#This Row],[MID]]*100000)+DataColl[[#This Row],[Period_]] -> 803182121143009 | L50: 11030.36 | M50: =IF(DataColl[[#This Row],[Net Volume]]<1,0,"Operado") -> Operado | N50: 20 | O50: 263.99 | P50: 0.8 | Q50: 26.8 | R50: 81.83 | S50: 373.42 | T50: 217.07 | U50: =IF(DataColl[[#This Row],[Error]]<>"X",((DataColl[[#This Row],[GrossRev]]-DataColl[[#This Row],[DiscExp]])*VALUE(MID(DataColl[[#Headers],[MNA20%]],4,3)))+(DataColl[[#This Row],[GrossRev]]*0.05),0) -> 49.941 | V50: 0.37 | W50: 14.17 | X50: 215 | Y50: =SUM(DataColl[[#This Row],[DiscExp]:[Tot MiscExp]]) -> 496.551 | Z50: =DataColl[[#This Row],[GrossRev]]-DataColl[[#This Row],[GrossExp]] -> -123.131 | AA50: =IF(DataColl[[#This Row],[Error]]="X",DataColl[[#This Row],[TotResidual Earnings]],0) -> 0
C51: 46 | D51: MS000MNA | E51: MNA01 | F51: TIOS CAFE | G51: MS000MNAA1 | H51: 8031825485 | I51: 201710 OCT | J51: =IF(DataColl[[#This Row],[Period]]<>"",DATE(LEFT(DataColl[[#This Row],[Period]],4),MID(DataColl[[#This Row],[Period]],5,2),1),"") -> 2017-10-01 | K51: =(DataColl[[#This Row],[MID]]*100000)+DataColl[[#This Row],[Period_]] -> 803182548543009 | L51: 26793.08 | M51: =IF(DataColl[[#This Row],[Net Volume]]<1,0,"Operado") -> Operado | N51: 916 | O51: 779.55 | P51: 96.2 | Q51: 0 | R51: 19.98 | S51: 895.73 | T51: 469.56 | U51: =IF(DataColl[[#This Row],[Error]]<>"X",((DataColl[[#This Row],[GrossRev]]-DataColl[[#This Row],[DiscExp]])*VALUE(MID(DataColl[[#Headers],[MNA20%]],4,3)))+(DataColl[[#This Row],[GrossRev]]*0.05),0) -> 130.0205 | V51: 14.91 | W51: 17.72 | X51: 15 | Y51: =SUM(DataColl[[#This Row],[DiscExp]:[Tot MiscExp]]) -> 647.2105 | Z51: =DataColl[[#This Row],[GrossRev]]-DataColl[[#This Row],[GrossExp]] -> 248.5195 | AA51: =IF(DataColl[[#This Row],[Error]]="X",DataColl[[#This Row],[TotResidual Earnings]],0) -> 0
C52: 47 | D52: MS000MNA | E52: MNA01 | F52: ANGEL RADIADOES 2 | G52: MS000MNAA1 | H52: 8031843744 | I52: 201710 OCT | J52: =IF(DataColl[[#This Row],[Period]]<>"",DATE(LEFT(DataColl[[#This Row],[Period]],4),MID(DataColl[[#This Row],[Period]],5,2),1),"") -> 2017-10-01 | K52: =(DataColl[[#This Row],[MID]]*100000)+DataColl[[#This Row],[Period_]] -> 803184374443009 | L52: 19990 | M52: =IF(DataColl[[#This Row],[Net Volume]]<1,0,"Operado") -> Operado | N52: 109 | O52: 416.08 | P52: 12.8 | Q52: 62.72 | R52: 246.98 | S52: 738.58 | T52: 214.85 | U52: =IF(DataColl[[#This Row],[Error]]<>"X",((DataColl[[#This Row],[GrossRev]]-DataColl[[#This Row],[DiscExp]])*VALUE(MID(DataColl[[#Headers],[MNA20%]],4,3)))+(DataColl[[#This Row],[GrossRev]]*0.05),0) -> 141.675 | V52: 2.41 | W52: 25.21 | X52: 15 | Y52: =SUM(DataColl[[#This Row],[DiscExp]:[Tot MiscExp]]) -> 399.145 | Z52: =DataColl[[#This Row],[GrossRev]]-DataColl[[#This Row],[GrossExp]] -> 339.435 | AA52: =IF(DataColl[[#This Row],[Error]]="X",DataColl[[#This Row],[TotResidual Earnings]],0) -> 0
C53: 48 | D53: MS000MNA | E53: MNA02 | F53: JESSES TACO DE MEXICO | G53: MS000MNAA1 | H53: 8031845202 | I53: 201710 OCT | J53: =IF(DataColl[[#This Row],[Period]]<>"",DATE(LEFT(DataColl[[#This Row],[Period]],4),MID(DataColl[[#This Row],[Period]],5,2),1),"") -> 2017-10-01 | K53: =(DataColl[[#This Row],[MID]]*100000)+DataColl[[#This Row],[Period_]] -> 803184520243009 | L53: 11218.82 | M53: =IF(DataColl[[#This Row],[Net Volume]]<1,0,"Operado") -> Operado | N53: 748 | O53: 337.72 | P53: 0 | Q53: 509.49 | R53: 20 | S53: 867.21 | T53: 294.17 | U53: =IF(DataColl[[#This Row],[Error]]<>"X",((DataColl[[#This Row],[GrossRev]]-DataColl[[#This Row],[DiscExp]])*VALUE(MID(DataColl[[#Headers],[MNA20%]],4,3)))+(DataColl[[#This Row],[GrossRev]]*0.05),0) -> 157.9685 | V53: 52.69 | W53: 402.85 | X53: 13 | Y53: =SUM(DataColl[[#This Row],[DiscExp]:[Tot MiscExp]]) -> 920.6785 | Z53: =DataColl[[#This Row],[GrossRev]]-DataColl[[#This Row],[GrossExp]] -> -53.4685 | AA53: =IF(DataColl[[#This Row],[Error]]="X",DataColl[[#This Row],[TotResidual Earnings]],0) -> 0
C54: 49 | D54: MS000MNA | E54: MNA02 | F54: LA ESTRELLA MARKET | G54: MS000MNAA1 | H54: 8031845368 | I54: 201710 OCT | J54: =IF(DataColl[[#This Row],[Period]]<>"",DATE(LEFT(DataColl[[#This Row],[Period]],4),MID(DataColl[[#This Row],[Period]],5,2),1),"") -> 2017-10-01 | K54: =(DataColl[[#This Row],[MID]]*100000)+DataColl[[#This Row],[Period_]] -> 803184536843009 | L54: 7918.56 | M54: =IF(DataColl[[#This Row],[Net Volume]]<1,0,"Operado") -> Operado | N54: 391 | O54: 206.3 | P54: 41.05 | Q54: 199.79 | R54: 101.83 | S54: 548.97 | T54: 147.75 | U54: =IF(DataColl[[#This Row],[Error]]<>"X",((DataColl[[#This Row],[GrossRev]]-DataColl[[#This Row],[DiscExp]])*VALUE(MID(DataColl[[#Headers],[MNA20%]],4,3)))+(DataColl[[#This Row],[GrossRev]]*0.05),0) -> 107.6925 | V54: 7.07 | W54: 173.72 | X54: 399 | Y54: =SUM(DataColl[[#This Row],[DiscExp]:[Tot MiscExp]]) -> 835.2325 | Z54: =DataColl[[#This Row],[GrossRev]]-DataColl[[#This Row],[GrossExp]] -> -286.2625 | AA54: =IF(DataColl[[#This Row],[Error]]="X",DataColl[[#This Row],[TotResidual Earnings]],0) -> 0
C55: 50 | D55: MS000MNA | E55: MNA01 | F55: LABORATORIOS DENTALES HICERAM | G55: MS000MNAA1 | H55: 8031858239 | I55: 201710 OCT | J55: =IF(DataColl[[#This Row],[Period]]<>"",DATE(LEFT(DataColl[[#This Row],[Period]],4),MID(DataColl[[#This Row],[Period]],5,2),1),"") -> 2017-10-01 | K55: =(DataColl[[#This Row],[MID]]*100000)+DataColl[[#This Row],[Period_]] -> 803185823943009 | L55: 8793.12 | M55: =IF(DataColl[[#This Row],[Net Volume]]<1,0,"Operado") -> Operado | N55: 5 | O55: 315.32 | P55: 0.5 | Q55: 0 | R55: 82.96 | S55: 398.78 | T55: 272.41 | U55: =IF(DataColl[[#This Row],[Error]]<>"X",((DataColl[[#This Row],[GrossRev]]-DataColl[[#This Row],[DiscExp]])*VALUE(MID(DataColl[[#Headers],[MNA20%]],4,3)))+(DataColl[[#This Row],[GrossRev]]*0.05),0) -> 45.213 | V55: 0.14 | W55: 0.1 | X55: 25 | Y55: =SUM(DataColl[[#This Row],[DiscExp]:[Tot MiscExp]]) -> 342.863 | Z55: =DataColl[[#This Row],[GrossRev]]-DataColl[[#This Row],[GrossExp]] -> 55.917 | AA55: =IF(DataColl[[#This Row],[Error]]="X",DataColl[[#This Row],[TotResidual Earnings]],0) -> 0
C56: 51 | D56: MS000MNA | E56: MNA02 | F56: VC ARENA | G56: MS000MNAA1 | H56: 8031858973 | I56: 201710 OCT | J56: =IF(DataColl[[#This Row],[Period]]<>"",DATE(LEFT(DataColl[[#This Row],[Period]],4),MID(DataColl[[#This Row],[Period]],5,2),1),"") -> 2017-10-01 | K56: =(DataColl[[#This Row],[MID]]*100000)+DataColl[[#This Row],[Period_]] -> 803185897343009 | L56: 10850.7 | M56: =IF(DataColl[[#This Row],[Net Volume]]<1,0,"Operado") -> Operado | N56: 152 | O56: 199.69 | P56: 8.45 | Q56: 42.9 | R56: 91.83 | S56: 342.87 | T56: 183.66 | U56: =IF(DataColl[[#This Row],[Error]]<>"X",((DataColl[[#This Row],[GrossRev]]-DataColl[[#This Row],[DiscExp]])*VALUE(MID(DataColl[[#Headers],[MNA20%]],4,3)))+(DataColl[[#This Row],[GrossRev]]*0.05),0) -> 48.9855 | V56: 5.18 | W56: 38.12 | X56: 33 | Y56: =SUM(DataColl[[#This Row],[DiscExp]:[Tot MiscExp]]) -> 308.9455 | Z56: =DataColl[[#This Row],[GrossRev]]-DataColl[[#This Row],[GrossExp]] -> 33.9245 | AA56: =IF(DataColl[[#This Row],[Error]]="X",DataColl[[#This Row],[TotResidual Earnings]],0) -> 0
C57: 52 | D57: MS000MNA | E57: MNA02 | F57: LLANTAS AV | G57: MS000MNAA1 | H57: 8031864849 | I57: 201710 OCT | J57: =IF(DataColl[[#This Row],[Period]]<>"",DATE(LEFT(DataColl[[#This Row],[Period]],4),MID(DataColl[[#This Row],[Period]],5,2),1),"") -> 2017-10-01 | K57: =(DataColl[[#This Row],[MID]]*100000)+DataColl[[#This Row],[Period_]] -> 803186484943009 | L57: 82313.51 | M57: =IF(DataColl[[#This Row],[Net Volume]]<1,0,"Operado") -> Operado | N57: 322 | O57: 1788.91 | P57: 32.3 | Q57: 212.44 | R57: 96.83 | S57: 2130.48 | T57: 1379.07 | U57: =IF(DataColl[[#This Row],[Error]]<>"X",((DataColl[[#This Row],[GrossRev]]-DataColl[[#This Row],[DiscExp]])*VALUE(MID(DataColl[[#Headers],[MNA20%]],4,3)))+(DataColl[[#This Row],[GrossRev]]*0.05),0) -> 256.806 | V57: 6.1 | W57: 162.74 | X57: 1039 | Y57: =SUM(DataColl[[#This Row],[DiscExp]:[Tot MiscExp]]) -> 2843.716 | Z57: =DataColl[[#This Row],[GrossRev]]-DataColl[[#This Row],[GrossExp]] -> -713.236 | AA57: =IF(DataColl[[#This Row],[Error]]="X",DataColl[[#This Row],[TotResidual Earnings]],0) -> 0
C58: 53 | D58: MS000MNA | E58: MNA01 | F58: GLASS BOTTOM DISTRIBUTORES | G58: MS000MNAA1 | H58: 8031873345 | I58: 201710 OCT | J58: =IF(DataColl[[#This Row],[Period]]<>"",DATE(LEFT(DataColl[[#This Row],[Period]],4),MID(DataColl[[#This Row],[Period]],5,2),1),"") -> 2017-10-01 | K58: =(DataColl[[#This Row],[MID]]*100000)+DataColl[[#This Row],[Period_]] -> 803187334543009 | L58: 115 | M58: =IF(DataColl[[#This Row],[Net Volume]]<1,0,"Operado") -> Operado | N58: 1 | O58: 1.12 | P58: 0.3 | Q58: 0 | R58: 148.98 | S58: 150.4 | T58: 0.5 | U58: =IF(DataColl[[#This Row],[Error]]<>"X",((DataColl[[#This Row],[GrossRev]]-DataColl[[#This Row],[DiscExp]])*VALUE(MID(DataColl[[#Headers],[MNA20%]],4,3)))+(DataColl[[#This Row],[GrossRev]]*0.05),0) -> 37.5 | V58: 0.07 | W58: 0.02 | X58: 117 | Y58: =SUM(DataColl[[#This Row],[DiscExp]:[Tot MiscExp]]) -> 155.09 | Z58: =DataColl[[#This Row],[GrossRev]]-DataColl[[#This Row],[GrossExp]] -> -4.69 | AA58: =IF(DataColl[[#This Row],[Error]]="X",DataColl[[#This Row],[TotResidual Earnings]],0) -> 0
C59: 54 | D59: MS000MNA | E59: MNA02 | F59: FUNERARIA LLC | G59: MS000MNAA1 | H59: 8031874814 | I59: 201710 OCT | J59: =IF(DataColl[[#This Row],[Period]]<>"",DATE(LEFT(DataColl[[#This Row],[Period]],4),MID(DataColl[[#This Row],[Period]],5,2),1),"") -> 2017-10-01 | K59: =(DataColl[[#This Row],[MID]]*100000)+DataColl[[#This Row],[Period_]] -> 803187481443009 | L59: 13581.46 | M59: =IF(DataColl[[#This Row],[Net Volume]]<1,0,"Operado") -> Operado | N59: 10 | O59: 214.68 | P59: 0.11 | Q59: 0 | R59: 30 | S59: 244.79 | T59: 134.72 | U59: =IF(DataColl[[#This Row],[Error]]<>"X",((DataColl[[#This Row],[GrossRev]]-DataColl[[#This Row],[DiscExp]])*VALUE(MID(DataColl[[#Headers],[MNA20%]],4,3)))+(DataColl[[#This Row],[GrossRev]]*0.05),0) -> 34.2535 | V59: 0.46 | W59: 0.2 | X59: 20 | Y59: =SUM(DataColl[[#This Row],[DiscExp]:[Tot MiscExp]]) -> 189.6335 | Z59: =DataColl[[#This Row],[GrossRev]]-DataColl[[#This Row],[GrossExp]] -> 55.1565 | AA59: =IF(DataColl[[#This Row],[Error]]="X",DataColl[[#This Row],[TotResidual Earnings]],0) -> 0
C60: 55 | D60: MS000MNA | E60: MNA01 | F60: RASPADOS GDL | G60: MS000MNAA1 | H60: 8031890828 | I60: 201710 OCT | J60: =IF(DataColl[[#This Row],[Period]]<>"",DATE(LEFT(DataColl[[#This Row],[Period]],4),MID(DataColl[[#This Row],[Period]],5,2),1),"") -> 2017-10-01 | K60: =(DataColl[[#This Row],[MID]]*100000)+DataColl[[#This Row],[Period_]] -> 803189082843009 | L60: 1238.94 | M60: =IF(DataColl[[#This Row],[Net Volume]]<1,0,"Operado") -> Operado | N60: 151 | O60: 976.97 | P60: 15.8 | Q60: 28.08 | R60: 424.98 | S60: 1445.83 | T60: 40.19 | U60: =IF(DataColl[[#This Row],[Error]]<>"X",((DataColl[[#This Row],[GrossRev]]-DataColl[[#This Row],[DiscExp]])*VALUE(MID(DataColl[[#Headers],[MNA20%]],4,3)))+(DataColl[[#This Row],[GrossRev]]*0.05),0) -> 353.4195 | V60: 2.59 | W60: 20.91 | X60: 369 | Y60: =SUM(DataColl[[#This Row],[DiscExp]:[Tot MiscExp]]) -> 786.1095 | Z60: =DataColl[[#This Row],[GrossRev]]-DataColl[[#This Row],[GrossExp]] -> 659.7205 | AA60: =IF(DataColl[[#This Row],[Error]]="X",DataColl[[#This Row],[TotResidual Earnings]],0) -> 0
C61: 56 | D61: MS000MNA | E61: MNA02 | F61: JAN DJ COMMUNICACION | G61: MS000MNAA1 | H61: 8031902730 | I61: 201710 OCT | J61: =IF(DataColl[[#This Row],[Period]]<>"",DATE(LEFT(DataColl[[#This Row],[Period]],4),MID(DataColl[[#This Row],[Period]],5,2),1),"") -> 2017-10-01 | K61: =(DataColl[[#This Row],[MID]]*100000)+DataColl[[#This Row],[Period_]] -> 803190273043009 | L61: 550.02 | M61: =IF(DataColl[[#This Row],[Net Volume]]<1,0,"Operado") -> Operado | N61: 10 | O61: 11.69 | P61: 1.5 | Q61: 1.33 | R61: 10 | S61: 24.52 | T61: 8.47 | U61: =IF(DataColl[[#This Row],[Error]]<>"X",((DataColl[[#This Row],[GrossRev]]-DataColl[[#This Row],[DiscExp]])*VALUE(MID(DataColl[[#Headers],[MNA20%]],4,3)))+(DataColl[[#This Row],[GrossRev]]*0.05),0) -> 4.436 | V61: 0.26 | W61: 1.08 | X61: 0 | Y61: =SUM(DataColl[[#This Row],[DiscExp]:[Tot MiscExp]]) -> 14.246 | Z61: =DataColl[[#This Row],[GrossRev]]-DataColl[[#This Row],[GrossExp]] -> 10.274 | AA61: =IF(DataColl[[#This Row],[Error]]="X",DataColl[[#This Row],[TotResidual Earnings]],0) -> 0
C62: 57 | D62: MS000MNA | E62: MNA02 | F62: LA VEROS COMIDA DE MAR Y GRILL | G62: MS000MNAA1 | H62: 8031904702 | I62: 201710 OCT | J62: =IF(DataColl[[#This Row],[Period]]<>"",DATE(LEFT(DataColl[[#This Row],[Period]],4),MID(DataColl[[#This Row],[Period]],5,2),1),"") -> 2017-10-01 | K62: =(DataColl[[#This Row],[MID]]*100000)+DataColl[[#This Row],[Period_]] -> 803190470243009 | L62: 28002.67 | M62: =IF(DataColl[[#This Row],[Net Volume]]<1,0,"Operado") -> Operado | N62: 736 | O62: 12972.62 | P62: 111 | Q62: 0 | R62: 20 | S62: 13103.62 | T62: 339.34 | U62: =IF(DataColl[[#This Row],[Error]]<>"X",((DataColl[[#This Row],[GrossRev]]-DataColl[[#This Row],[DiscExp]])*VALUE(MID(DataColl[[#Headers],[MNA20%]],4,3)))+(DataColl[[#This Row],[GrossRev]]*0.05),0) -> 0 | V62: 11.4 | W62: 14.38 | X62: 0 | Y62: =SUM(DataColl[[#This Row],[DiscExp]:[Tot MiscExp]]) -> 365.12 | Z62: =DataColl[[#This Row],[GrossRev]]-DataColl[[#This Row],[GrossExp]] -> 12738.5 | AA62: =IF(DataColl[[#This Row],[Error]]="X",DataColl[[#This Row],[TotResidual Earnings]],0) -> 12738.5 | AC62: X
C63: 58 | D63: MS000MNA | E63: MNA02 | F63: SALUD MAS VIDA | G63: MS000MNAA1 | H63: 8031919908 | I63: 201710 OCT | J63: =IF(DataColl[[#This Row],[Period]]<>"",DATE(LEFT(DataColl[[#This Row],[Period]],4),MID(DataColl[[#This Row],[Period]],5,2),1),"") -> 2017-10-01 | K63: =(DataColl[[#This Row],[MID]]*100000)+DataColl[[#This Row],[Period_]] -> 803191990843009 | L63: 2599.07 | M63: =IF(DataColl[[#This Row],[Net Volume]]<1,0,"Operado") -> Operado | N63: 29 | O63: 67.08 | P63: 1.6 | Q63: 45.68 | R63: 35 | S63: 149.36 | T63: 52.97 | U63: =IF(DataColl[[#This Row],[Error]]<>"X",((DataColl[[#This Row],[GrossRev]]-DataColl[[#This Row],[DiscExp]])*VALUE(MID(DataColl[[#Headers],[MNA20%]],4,3)))+(DataColl[[#This Row],[GrossRev]]*0.05),0) -> 26.746 | V63: 0.7 | W63: 25.72 | X63: 361 | Y63: =SUM(DataColl[[#This Row],[DiscExp]:[Tot MiscExp]]) -> 467.136 | Z63: =DataColl[[#This Row],[GrossRev]]-DataColl[[#This Row],[GrossExp]] -> -317.776 | AA63: =IF(DataColl[[#This Row],[Error]]="X",DataColl[[#This Row],[TotResidual Earnings]],0) -> 0
C64: 59 | D64: MS000MNA | E64: MNA02 | F64: RUEDAS Y LLANTAS | G64: MS000MNAA1 | H64: 8031921417 | I64: 201710 OCT | J64: =IF(DataColl[[#This Row],[Period]]<>"",DATE(LEFT(DataColl[[#This Row],[Period]],4),MID(DataColl[[#This Row],[Period]],5,2),1),"") -> 2017-10-01 | K64: =(DataColl[[#This Row],[MID]]*100000)+DataColl[[#This Row],[Period_]] -> 803192141743009 | L64: 0 | M64: =IF(DataColl[[#This Row],[Net Volume]]<1,0,"Operado") -> 0 | N64: 0 | O64: 0 | P64: 0 | Q64: 0 | R64: 0 | S64: 0 | T64: 0 | U64: =IF(DataColl[[#This Row],[Error]]<>"X",((DataColl[[#This Row],[GrossRev]]-DataColl[[#This Row],[DiscExp]])*VALUE(MID(DataColl[[#Headers],[MNA20%]],4,3)))+(DataColl[[#This Row],[GrossRev]]*0.05),0) -> 0 | V64: 0 | W64: 0 | X64: 0 | Y64: =SUM(DataColl[[#This Row],[DiscExp]:[Tot MiscExp]]) -> 0 | Z64: =DataColl[[#This Row],[GrossRev]]-DataColl[[#This Row],[GrossExp]] -> 0 | AA64: =IF(DataColl[[#This Row],[Error]]="X",DataColl[[#This Row],[TotResidual Earnings]],0) -> 0
C65: 60 | D65: MS000MNA | E65: MNA01 | F65: NATS WEST | G65: MS000MNAA1 | H65: 8031932653 | I65: 201710 OCT | J65: =IF(DataColl[[#This Row],[Period]]<>"",DATE(LEFT(DataColl[[#This Row],[Period]],4),MID(DataColl[[#This Row],[Period]],5,2),1),"") -> 2017-10-01 | K65: =(DataColl[[#This Row],[MID]]*100000)+DataColl[[#This Row],[Period_]] -> 803193265343009 | L65: 0 | M65: =IF(DataColl[[#This Row],[Net Volume]]<1,0,"Operado") -> 0 | N65: 0 | O65: 0 | P65: 0 | Q65: 0 | R65: 0 | S65: 0 | T65: 0 | U65: =IF(DataColl[[#This Row],[Error]]<>"X",((DataColl[[#This Row],[GrossRev]]-DataColl[[#This Row],[DiscExp]])*VALUE(MID(DataColl[[#Headers],[MNA20%]],4,3)))+(DataColl[[#This Row],[GrossRev]]*0.05),0) -> 0 | V65: 0 | W65: 0 | X65: 0 | Y65: =SUM(DataColl[[#This Row],[DiscExp]:[Tot MiscExp]]) -> 0 | Z65: =DataColl[[#This Row],[GrossRev]]-DataColl[[#This Row],[GrossExp]] -> 0 | AA65: =IF(DataColl[[#This Row],[Error]]="X",DataColl[[#This Row],[TotResidual Earnings]],0) -> 0
C66: 61 | D66: MS000MNA | E66: MNA02 | F66: SALUD MAS VIDA | G66: MS000MNAA1 | H66: 8031946018 | I66: 201710 OCT | J66: =IF(DataColl[[#This Row],[Period]]<>"",DATE(LEFT(DataColl[[#This Row],[Period]],4),MID(DataColl[[#This Row],[Period]],5,2),1),"") -> 2017-10-01 | K66: =(DataColl[[#This Row],[MID]]*100000)+DataColl[[#This Row],[Period_]] -> 803194601843009 | L66: 935.98 | M66: =IF(DataColl[[#This Row],[Net Volume]]<1,0,"Operado") -> Operado | N66: 20 | O66: 24.87 | P66: 0.85 | Q66: 25.66 | R66: 0 | S66: 51.38 | T66: 19.35 | U66: =IF(DataColl[[#This Row],[Error]]<>"X",((DataColl[[#This Row],[GrossRev]]-DataColl[[#This Row],[DiscExp]])*VALUE(MID(DataColl[[#Headers],[MNA20%]],4,3)))+(DataColl[[#This Row],[GrossRev]]*0.05),0) -> 8.975 | V66: 1.35 | W66: 14.06 | X66: 0 | Y66: =SUM(DataColl[[#This Row],[DiscExp]:[Tot MiscExp]]) -> 43.735 | Z66: =DataColl[[#This Row],[GrossRev]]-DataColl[[#This Row],[GrossExp]] -> 7.645 | AA66: =IF(DataColl[[#This Row],[Error]]="X",DataColl[[#This Row],[TotResidual Earnings]],0) -> 0
C67: 62 | D67: MS000MNA | E67: MNA02 | F67: SALUD MAS VIDA | G67: MS000MNAA1 | H67: 8031946091 | I67: 201710 OCT | J67: =IF(DataColl[[#This Row],[Period]]<>"",DATE(LEFT(DataColl[[#This Row],[Period]],4),MID(DataColl[[#This Row],[Period]],5,2),1),"") -> 2017-10-01 | K67: =(DataColl[[#This Row],[MID]]*100000)+DataColl[[#This Row],[Period_]] -> 803194609143009 | L67: 126.65 | M67: =IF(DataColl[[#This Row],[Net Volume]]<1,0,"Operado") -> Operado | N67: 4 | O67: 2.2 | P67: 0.2 | Q67: 6.87 | R67: 0 | S67: 9.27 | T67: 1.38 | U67: =IF(DataColl[[#This Row],[Error]]<>"X",((DataColl[[#This Row],[GrossRev]]-DataColl[[#This Row],[DiscExp]])*VALUE(MID(DataColl[[#Headers],[MNA20%]],4,3)))+(DataColl[[#This Row],[GrossRev]]*0.05),0) -> 2.0415 | V67: 0.41 | W67: 3.94 | X67: 0 | Y67: =SUM(DataColl[[#This Row],[DiscExp]:[Tot MiscExp]]) -> 7.7715 | Z67: =DataColl[[#This Row],[GrossRev]]-DataColl[[#This Row],[GrossExp]] -> 1.4985 | AA67: =IF(DataColl[[#This Row],[Error]]="X",DataColl[[#This Row],[TotResidual Earnings]],0) -> 0
C68: 63 | D68: MS000MNA | E68: MNA02 | F68: EL FINO, ESTETICA | G68: MS000MNAA1 | H68: 8031965497 | I68: 201710 OCT | J68: =IF(DataColl[[#This Row],[Period]]<>"",DATE(LEFT(DataColl[[#This Row],[Period]],4),MID(DataColl[[#This Row],[Period]],5,2),1),"") -> 2017-10-01 | K68: =(DataColl[[#This Row],[MID]]*100000)+DataColl[[#This Row],[Period_]] -> 803196549743009 | L68: 0 | M68: =IF(DataColl[[#This Row],[Net Volume]]<1,0,"Operado") -> 0 | N68: 0 | O68: 0 | P68: 0 | Q68: 0 | R68: 0 | S68: 0 | T68: 0 | U68: =IF(DataColl[[#This Row],[Error]]<>"X",((DataColl[[#This Row],[GrossRev]]-DataColl[[#This Row],[DiscExp]])*VALUE(MID(DataColl[[#Headers],[MNA20%]],4,3)))+(DataColl[[#This Row],[GrossRev]]*0.05),0) -> 0 | V68: 0 | W68: 0 | X68: 0 | Y68: =SUM(DataColl[[#This Row],[DiscExp]:[Tot MiscExp]]) -> 0 | Z68: =DataColl[[#This Row],[GrossRev]]-DataColl[[#This Row],[GrossExp]] -> 0 | AA68: =IF(DataColl[[#This Row],[Error]]="X",DataColl[[#This Row],[TotResidual Earnings]],0) -> 0
C69: 64 | D69: MS000MNA | E69: MNA02 | F69: DULCERIA LA COLMENA | G69: MS000MNAA1 | H69: 8031968616 | I69: 201710 OCT | J69: =IF(DataColl[[#This Row],[Period]]<>"",DATE(LEFT(DataColl[[#This Row],[Period]],4),MID(DataColl[[#This Row],[Period]],5,2),1),"") -> 2017-10-01 | K69: =(DataColl[[#This Row],[MID]]*100000)+DataColl[[#This Row],[Period_]] -> 803196861643009 | L69: 0 | M69: =IF(DataColl[[#This Row],[Net Volume]]<1,0,"Operado") -> 0 | N69: 0 | O69: 0 | P69: 0 | Q69: 0 | R69: 0 | S69: 0 | T69: 0 | U69: =IF(DataColl[[#This Row],[Error]]<>"X",((DataColl[[#This Row],[GrossRev]]-DataColl[[#This Row],[DiscExp]])*VALUE(MID(DataColl[[#Headers],[MNA20%]],4,3)))+(DataColl[[#This Row],[GrossRev]]*0.05),0) -> 0 | V69: 0 | W69: 0 | X69: 177 | Y69: =SUM(DataColl[[#This Row],[DiscExp]:[Tot MiscExp]]) -> 177 | Z69: =DataColl[[#This Row],[GrossRev]]-DataColl[[#This Row],[GrossExp]] -> -177 | AA69: =IF(DataColl[[#This Row],[Error]]="X",DataColl[[#This Row],[TotResidual Earnings]],0) -> 0
C70: =IF(C69="ConsD",1,C69+1) -> 65 | D70: ="MS000MNA" -> MS000MNA | E70: MNA01 | F70: CACTUS COMIDA MEXICANA 1 | G70: MS000MNAA1 | H70: 8031689469 | I70: 201711 NOV | J70: =IF(DataColl[[#This Row],[Period]]<>"",DATE(LEFT(DataColl[[#This Row],[Period]],4),MID(DataColl[[#This Row],[Period]],5,2),1),"") -> 2017-11-01 | K70: =(DataColl[[#This Row],[MID]]*100000)+DataColl[[#This Row],[Period_]] -> 803168946943040 | L70: 43607.63 | M70: =IF(DataColl[[#This Row],[Net Volume]]<1,0,"Operado") -> Operado | N70: 3137 | O70: 1512.04 | P70: 322.3 | Q70: 0 | R70: 149.97 | S70: 1984.31 | T70: 1022.11 | U70: =IF(DataColl[[#This Row],[Error]]<>"X",((DataColl[[#This Row],[GrossRev]]-DataColl[[#This Row],[DiscExp]])*VALUE(MID(DataColl[[#Headers],[MNA20%]],4,3)))+(DataColl[[#This Row],[GrossRev]]*0.05),0) -> 291.6555 | V70: 144.69 | W70: 59.52 | X70: 74.99 | Y70: =SUM(DataColl[[#This Row],[DiscExp]:[Tot MiscExp]]) -> 1592.9655 | Z70: =DataColl[[#This Row],[GrossRev]]-DataColl[[#This Row],[GrossExp]] -> 391.3445 | AA70: =IF(DataColl[[#This Row],[Error]]="X",DataColl[[#This Row],[TotResidual Earnings]],0) -> 0
C71: 66 | D71: MS000MNA | E71: MNA01 | F71: SOLUCIONES ADMINISTRATIVAS | G71: MS000MNAA1 | H71: 8031693347 | I71: 201711 NOV | J71: =IF(DataColl[[#This Row],[Period]]<>"",DATE(LEFT(DataColl[[#This Row],[Period]],4),MID(DataColl[[#This Row],[Period]],5,2),1),"") -> 2017-11-01 | K71: =(DataColl[[#This Row],[MID]]*100000)+DataColl[[#This Row],[Period_]] -> 803169334743040 | L71: 0 | M71: =IF(DataColl[[#This Row],[Net Volume]]<1,0,"Operado") -> 0 | N71: 0 | O71: 0 | P71: 0 | Q71: 0 | R71: 0 | S71: 0 | T71: 0 | U71: =IF(DataColl[[#This Row],[Error]]<>"X",((DataColl[[#This Row],[GrossRev]]-DataColl[[#This Row],[DiscExp]])*VALUE(MID(DataColl[[#Headers],[MNA20%]],4,3)))+(DataColl[[#This Row],[GrossRev]]*0.05),0) -> 0 | V71: 0 | W71: 0 | X71: 0 | Y71: =SUM(DataColl[[#This Row],[DiscExp]:[Tot MiscExp]]) -> 0 | Z71: =DataColl[[#This Row],[GrossRev]]-DataColl[[#This Row],[GrossExp]] -> 0 | AA71: =IF(DataColl[[#This Row],[Error]]="X",DataColl[[#This Row],[TotResidual Earnings]],0) -> 0
C72: 67 | D72: MS000MNA | E72: MNA01 | F72: SOLUCIONES ADMINISTRATIVAS | G72: MS000MNAA1 | H72: 8031694931 | I72: 201711 NOV | J72: =IF(DataColl[[#This Row],[Period]]<>"",DATE(LEFT(DataColl[[#This Row],[Period]],4),MID(DataColl[[#This Row],[Period]],5,2),1),"") -> 2017-11-01 | K72: =(DataColl[[#This Row],[MID]]*100000)+DataColl[[#This Row],[Period_]] -> 803169493143040 | L72: 0 | M72: =IF(DataColl[[#This Row],[Net Volume]]<1,0,"Operado") -> 0 | N72: 0 | O72: 0 | P72: 0 | Q72: 0 | R72: 0 | S72: 0 | T72: 0 | U72: =IF(DataColl[[#This Row],[Error]]<>"X",((DataColl[[#This Row],[GrossRev]]-DataColl[[#This Row],[DiscExp]])*VALUE(MID(DataColl[[#Headers],[MNA20%]],4,3)))+(DataColl[[#This Row],[GrossRev]]*0.05),0) -> 0 | V72: 0 | W72: 0 | X72: 0 | Y72: =SUM(DataColl[[#This Row],[DiscExp]:[Tot MiscExp]]) -> 0 | Z72: =DataColl[[#This Row],[GrossRev]]-DataColl[[#This Row],[GrossExp]] -> 0 | AA72: =IF(DataColl[[#This Row],[Error]]="X",DataColl[[#This Row],[TotResidual Earnings]],0) -> 0
C73: 68 | D73: MS000MNA | E73: MNA01 | F73: CACTUS TAQUERIA 4 | G73: MS000MNAA1 | H73: 8031700076 | I73: 201711 NOV | J73: =IF(DataColl[[#This Row],[Period]]<>"",DATE(LEFT(DataColl[[#This Row],[Period]],4),MID(DataColl[[#This Row],[Period]],5,2),1),"") -> 2017-11-01 | K73: =(DataColl[[#This Row],[MID]]*100000)+DataColl[[#This Row],[Period_]] -> 803170007643040 | L73: 26136.97 | M73: =IF(DataColl[[#This Row],[Net Volume]]<1,0,"Operado") -> Operado | N73: 1521 | O73: 839.27 | P73: 161.3 | Q73: 0.26 | R73: 94.97 | S73: 1095.8 | T73: 552.98 | U73: =IF(DataColl[[#This Row],[Error]]<>"X",((DataColl[[#This Row],[GrossRev]]-DataColl[[#This Row],[DiscExp]])*VALUE(MID(DataColl[[#Headers],[MNA20%]],4,3)))+(DataColl[[#This Row],[GrossRev]]*0.05),0) -> 163.354 | V73: 72.45 | W73: 28.59 | X73: 74.99 | Y73: =SUM(DataColl[[#This Row],[DiscExp]:[Tot MiscExp]]) -> 892.364 | Z73: =DataColl[[#This Row],[GrossRev]]-DataColl[[#This Row],[GrossExp]] -> 203.436 | AA73: =IF(DataColl[[#This Row],[Error]]="X",DataColl[[#This Row],[TotResidual Earnings]],0) -> 0
C74: 69 | D74: MS000MNA | E74: MNA01 | F74: CACTUS TAQUERIA 3 | G74: MS000MNAA1 | H74: 8031700159 | I74: 201711 NOV | J74: =IF(DataColl[[#This Row],[Period]]<>"",DATE(LEFT(DataColl[[#This Row],[Period]],4),MID(DataColl[[#This Row],[Period]],5,2),1),"") -> 2017-11-01 | K74: =(DataColl[[#This Row],[MID]]*100000)+DataColl[[#This Row],[Period_]] -> 803170015943040 | L74: 0 | M74: =IF(DataColl[[#This Row],[Net Volume]]<1,0,"Operado") -> 0 | N74: 0 | O74: 15 | P74: 0 | Q74: 0 | R74: 94.97 | S74: 109.97 | T74: 7.5 | U74: =IF(DataColl[[#This Row],[Error]]<>"X",((DataColl[[#This Row],[GrossRev]]-DataColl[[#This Row],[DiscExp]])*VALUE(MID(DataColl[[#Headers],[MNA20%]],4,3)))+(DataColl[[#This Row],[GrossRev]]*0.05),0) -> 25.9925 | V74: 0 | W74: 0 | X74: 74.99 | Y74: =SUM(DataColl[[#This Row],[DiscExp]:[Tot MiscExp]]) -> 108.4825 | Z74: =DataColl[[#This Row],[GrossRev]]-DataColl[[#This Row],[GrossExp]] -> 1.4875 | AA74: =IF(DataColl[[#This Row],[Error]]="X",DataColl[[#This Row],[TotResidual Earnings]],0) -> 0
C75: 70 | D75: MS000MNA | E75: MNA02 | F75: LAS PLAYAS DE DON ARTURO | G75: MS000MNAA1 | H75: 8031751814 | I75: 201711 NOV | J75: =IF(DataColl[[#This Row],[Period]]<>"",DATE(LEFT(DataColl[[#This Row],[Period]],4),MID(DataColl[[#This Row],[Period]],5,2),1),"") -> 2017-11-01 | K75: =(DataColl[[#This Row],[MID]]*100000)+DataColl[[#This Row],[Period_]] -> 803175181443040 | L75: 1589.31 | M75: =IF(DataColl[[#This Row],[Net Volume]]<1,0,"Operado") -> Operado | N75: 67 | O75: 44.14 | P75: 14.35 | Q75: 63.73 | R75: 89.98 | S75: 212.2 | T75: 32.93 | U75: =IF(DataColl[[#This Row],[Error]]<>"X",((DataColl[[#This Row],[GrossRev]]-DataColl[[#This Row],[DiscExp]])*VALUE(MID(DataColl[[#Headers],[MNA20%]],4,3)))+(DataColl[[#This Row],[GrossRev]]*0.05),0) -> 46.464 | V75: 2.86 | W75: 39.5425 | X75: 77.99 | Y75: =SUM(DataColl[[#This Row],[DiscExp]:[Tot MiscExp]]) -> 199.7865 | Z75: =DataColl[[#This Row],[GrossRev]]-DataColl[[#This Row],[GrossExp]] -> 12.4135 | AA75: =IF(DataColl[[#This Row],[Error]]="X",DataColl[[#This Row],[TotResidual Earnings]],0) -> 0
C76: 71 | D76: MS000MNA | E76: MNA01 | F76: LA PEQUENA CAKE DECORACION | G76: MS000MNAA1 | H76: 8031789327 | I76: 201711 NOV | J76: =IF(DataColl[[#This Row],[Period]]<>"",DATE(LEFT(DataColl[[#This Row],[Period]],4),MID(DataColl[[#This Row],[Period]],5,2),1),"") -> 2017-11-01 | K76: =(DataColl[[#This Row],[MID]]*100000)+DataColl[[#This Row],[Period_]] -> 803178932743040 | L76: 506.72 | M76: =IF(DataColl[[#This Row],[Net Volume]]<1,0,"Operado") -> Operado | N76: 23 | O76: 20.71 | P76: 2.3 | Q76: 1.08 | R76: 19.98 | S76: 44.07 | T76: 11.955 | U76: =IF(DataColl[[#This Row],[Error]]<>"X",((DataColl[[#This Row],[GrossRev]]-DataColl[[#This Row],[DiscExp]])*VALUE(MID(DataColl[[#Headers],[MNA20%]],4,3)))+(DataColl[[#This Row],[GrossRev]]*0.05),0) -> 8.6265 | V76: 1.02 | W76: 1.06 | X76: 15 | Y76: =SUM(DataColl[[#This Row],[DiscExp]:[Tot MiscExp]]) -> 37.6615 | Z76: =DataColl[[#This Row],[GrossRev]]-DataColl[[#This Row],[GrossExp]] -> 6.4085 | AA76: =IF(DataColl[[#This Row],[Error]]="X",DataColl[[#This Row],[TotResidual Earnings]],0) -> 0
C77: 72 | D77: MS000MNA | E77: MNA01 | F77: LA PEQUENA PANADERIA | G77: MS000MNAA1 | H77: 8031796280 | I77: 201711 NOV | J77: =IF(DataColl[[#This Row],[Period]]<>"",DATE(LEFT(DataColl[[#This Row],[Period]],4),MID(DataColl[[#This Row],[Period]],5,2),1),"") -> 2017-11-01 | K77: =(DataColl[[#This Row],[MID]]*100000)+DataColl[[#This Row],[Period_]] -> 803179628043040 | L77: 1635.15 | M77: =IF(DataColl[[#This Row],[Net Volume]]<1,0,"Operado") -> Operado | N77: 133 | O77: 73.21 | P77: 21.1 | Q77: 56.4 | R77: 20.97 | S77: 171.68 | T77: 50.16 | U77: =IF(DataColl[[#This Row],[Error]]<>"X",((DataColl[[#This Row],[GrossRev]]-DataColl[[#This Row],[DiscExp]])*VALUE(MID(DataColl[[#Headers],[MNA20%]],4,3)))+(DataColl[[#This Row],[GrossRev]]*0.05),0) -> 32.888 | V77: 5.1 | W77: 33.42 | X77: 20 | Y77: =SUM(DataColl[[#This Row],[DiscExp]:[Tot MiscExp]]) -> 141.568 | Z77: =DataColl[[#This Row],[GrossRev]]-DataColl[[#This Row],[GrossExp]] -> 30.112 | AA77: =IF(DataColl[[#This Row],[Error]]="X",DataColl[[#This Row],[TotResidual Earnings]],0) -> 0
C78: 73 | D78: MS000MNA | E78: MNA01 | F78: PANCAKES CELESTIALES | G78: MS000MNAA1 | H78: 8031806311 | I78: 201711 NOV | J78: =IF(DataColl[[#This Row],[Period]]<>"",DATE(LEFT(DataColl[[#This Row],[Period]],4),MID(DataColl[[#This Row],[Period]],5,2),1),"") -> 2017-11-01 | K78: =(DataColl[[#This Row],[MID]]*100000)+DataColl[[#This Row],[Period_]] -> 803180631143040 | L78: 58590.98 | M78: =IF(DataColl[[#This Row],[Net Volume]]<1,0,"Operado") -> Operado | N78: 1696 | O78: 1533.09 | P78: 173.1 | Q78: 10.3 | R78: 19.98 | S78: 1736.47 | T78: 871.21 | U78: =IF(DataColl[[#This Row],[Error]]<>"X",((DataColl[[#This Row],[GrossRev]]-DataColl[[#This Row],[DiscExp]])*VALUE(MID(DataColl[[#Headers],[MNA20%]],4,3)))+(DataColl[[#This Row],[GrossRev]]*0.05),0) -> 259.8755 | V78: 26.43 | W78: 37.29 | X78: 15 | Y78: =SUM(DataColl[[#This Row],[DiscExp]:[Tot MiscExp]]) -> 1209.8055 | Z78: =DataColl[[#This Row],[GrossRev]]-DataColl[[#This Row],[GrossExp]] -> 526.6645 | AA78: =IF(DataColl[[#This Row],[Error]]="X",DataColl[[#This Row],[TotResidual Earnings]],0) -> 0
C79: 74 | D79: MS000MNA | E79: MNA02 | F79: HELADOS MEXTY 2 | G79: MS000MNAA1 | H79: 8031806618 | I79: 201711 NOV | J79: =IF(DataColl[[#This Row],[Period]]<>"",DATE(LEFT(DataColl[[#This Row],[Period]],4),MID(DataColl[[#This Row],[Period]],5,2),1),"") -> 2017-11-01 | K79: =(DataColl[[#This Row],[MID]]*100000)+DataColl[[#This Row],[Period_]] -> 803180661843040 | L79: 540.03 | M79: =IF(DataColl[[#This Row],[Net Volume]]<1,0,"Operado") -> Operado | N79: 50 | O79: 20.62 | P79: 2.6 | Q79: 18.25 | R79: 0 | S79: 41.47 | T79: 15.79 | U79: =IF(DataColl[[#This Row],[Error]]<>"X",((DataColl[[#This Row],[GrossRev]]-DataColl[[#This Row],[DiscExp]])*VALUE(MID(DataColl[[#Headers],[MNA20%]],4,3)))+(DataColl[[#This Row],[GrossRev]]*0.05),0) -> 7.2095 | V79: 1.23 | W79: 15.46 | X79: 13 | Y79: =SUM(DataColl[[#This Row],[DiscExp]:[Tot MiscExp]]) -> 52.6895 | Z79: =DataColl[[#This Row],[GrossRev]]-DataColl[[#This Row],[GrossExp]] -> -11.2195 | AA79: =IF(DataColl[[#This Row],[Error]]="X",DataColl[[#This Row],[TotResidual Earnings]],0) -> 0
C80: 75 | D80: MS000MNA | E80: MNA02 | F80: HELADOS MEXTY | G80: MS000MNAA1 | H80: 8031806667 | I80: 201711 NOV | J80: =IF(DataColl[[#This Row],[Period]]<>"",DATE(LEFT(DataColl[[#This Row],[Period]],4),MID(DataColl[[#This Row],[Period]],5,2),1),"") -> 2017-11-01 | K80: =(DataColl[[#This Row],[MID]]*100000)+DataColl[[#This Row],[Period_]] -> 803180666743040 | L80: 332.91 | M80: =IF(DataColl[[#This Row],[Net Volume]]<1,0,"Operado") -> Operado | N80: 30 | O80: 38.81 | P80: 1.7 | Q80: 10.17 | R80: 105 | S80: 155.68 | T80: 22.695 | U80: =IF(DataColl[[#This Row],[Error]]<>"X",((DataColl[[#This Row],[GrossRev]]-DataColl[[#This Row],[DiscExp]])*VALUE(MID(DataColl[[#Headers],[MNA20%]],4,3)))+(DataColl[[#This Row],[GrossRev]]*0.05),0) -> 34.381 | V80: 1.3 | W80: 8.73 | X80: 15 | Y80: =SUM(DataColl[[#This Row],[DiscExp]:[Tot MiscExp]]) -> 82.106 | Z80: =DataColl[[#This Row],[GrossRev]]-DataColl[[#This Row],[GrossExp]] -> 73.574 | AA80: =IF(DataColl[[#This Row],[Error]]="X",DataColl[[#This Row],[TotResidual Earnings]],0) -> 0
C81: 76 | D81: MS000MNA | E81: MNA01 | F81: TORTAS MEXICO RESTAURANT | G81: MS000MNAA1 | H81: 8031806931 | I81: 201711 NOV | J81: =IF(DataColl[[#This Row],[Period]]<>"",DATE(LEFT(DataColl[[#This Row],[Period]],4),MID(DataColl[[#This Row],[Period]],5,2),1),"") -> 2017-11-01 | K81: =(DataColl[[#This Row],[MID]]*100000)+DataColl[[#This Row],[Period_]] -> 803180693143040 | L81: 18003.06 | M81: =IF(DataColl[[#This Row],[Net Volume]]<1,0,"Operado") -> Operado | N81: 974 | O81: 606.74 | P81: 100 | Q81: 1.11 | R81: 19.98 | S81: 727.83 | T81: 380.61 | U81: =IF(DataColl[[#This Row],[Error]]<>"X",((DataColl[[#This Row],[GrossRev]]-DataColl[[#This Row],[DiscExp]])*VALUE(MID(DataColl[[#Headers],[MNA20%]],4,3)))+(DataColl[[#This Row],[GrossRev]]*0.05),0) -> 105.8355 | V81: 15.78 | W81: 18.91 | X81: 15 | Y81: =SUM(DataColl[[#This Row],[DiscExp]:[Tot MiscExp]]) -> 536.1355 | Z81: =DataColl[[#This Row],[GrossRev]]-DataColl[[#This Row],[GrossExp]] -> 191.6945 | AA81: =IF(DataColl[[#This Row],[Error]]="X",DataColl[[#This Row],[TotResidual Earnings]],0) -> 0
C82: 77 | D82: MS000MNA | E82: MNA02 | F82: CARNITAS EL REY | G82: MS000MNAA1 | H82: 8031816237 | I82: 201711 NOV | J82: =IF(DataColl[[#This Row],[Period]]<>"",DATE(LEFT(DataColl[[#This Row],[Period]],4),MID(DataColl[[#This Row],[Period]],5,2),1),"") -> 2017-11-01 | K82: =(DataColl[[#This Row],[MID]]*100000)+DataColl[[#This Row],[Period_]] -> 803181623743040 | L82: 64606.75 | M82: =IF(DataColl[[#This Row],[Net Volume]]<1,0,"Operado") -> Operado | N82: 3040 | O82: 1495.49 | P82: 429.7 | Q82: 0 | R82: 120 | S82: 2045.19 | T82: 1069.07 | U82: =IF(DataColl[[#This Row],[Error]]<>"X",((DataColl[[#This Row],[GrossRev]]-DataColl[[#This Row],[DiscExp]])*VALUE(MID(DataColl[[#Headers],[MNA20%]],4,3)))+(DataColl[[#This Row],[GrossRev]]*0.05),0) -> 297.4835 | V82: 46.53 | W82: 60.02 | X82: 13 | Y82: =SUM(DataColl[[#This Row],[DiscExp]:[Tot MiscExp]]) -> 1486.1035 | Z82: =DataColl[[#This Row],[GrossRev]]-DataColl[[#This Row],[GrossExp]] -> 559.0865 | AA82: =IF(DataColl[[#This Row],[Error]]="X",DataColl[[#This Row],[TotResidual Earnings]],0) -> 0
C83: 78 | D83: MS000MNA | E83: MNA02 | F83: CARNITAS EL REY 2 | G83: MS000MNAA1 | H83: 8031816310 | I83: 201711 NOV | J83: =IF(DataColl[[#This Row],[Period]]<>"",DATE(LEFT(DataColl[[#This Row],[Period]],4),MID(DataColl[[#This Row],[Period]],5,2),1),"") -> 2017-11-01 | K83: =(DataColl[[#This Row],[MID]]*100000)+DataColl[[#This Row],[Period_]] -> 803181631043040 | L83: 0 | M83: =IF(DataColl[[#This Row],[Net Volume]]<1,0,"Operado") -> 0 | N83: 0 | O83: 35.34 | P83: 0 | Q83: 0 | R83: 120 | S83: 155.34 | T83: 17.84 | U83: =IF(DataColl[[#This Row],[Error]]<>"X",((DataColl[[#This Row],[GrossRev]]-DataColl[[#This Row],[DiscExp]])*VALUE(MID(DataColl[[#Headers],[MNA20%]],4,3)))+(DataColl[[#This Row],[GrossRev]]*0.05),0) -> 35.267 | V83: 0 | W83: 0 | X83: 13 | Y83: =SUM(DataColl[[#This Row],[DiscExp]:[Tot MiscExp]]) -> 66.107 | Z83: =DataColl[[#This Row],[GrossRev]]-DataColl[[#This Row],[GrossExp]] -> 89.233 | AA83: =IF(DataColl[[#This Row],[Error]]="X",DataColl[[#This Row],[TotResidual Earnings]],0) -> 0
C84: 79 | D84: MS000MNA | E84: MNA02 | F84: ELIAS BABY FASHION | G84: MS000MNAA1 | H84: 8031816385 | I84: 201711 NOV | J84: =IF(DataColl[[#This Row],[Period]]<>"",DATE(LEFT(DataColl[[#This Row],[Period]],4),MID(DataColl[[#This Row],[Period]],5,2),1),"") -> 2017-11-01 | K84: =(DataColl[[#This Row],[MID]]*100000)+DataColl[[#This Row],[Period_]] -> 803181638543040 | L84: 6209.1 | M84: =IF(DataColl[[#This Row],[Net Volume]]<1,0,"Operado") -> Operado | N84: 84 | O84: 111.72 | P84: 4.2 | Q84: 3.27 | R84: 130 | S84: 249.19 | T84: 80.69 | U84: =IF(DataColl[[#This Row],[Error]]<>"X",((DataColl[[#This Row],[GrossRev]]-DataColl[[#This Row],[DiscExp]])*VALUE(MID(DataColl[[#Headers],[MNA20%]],4,3)))+(DataColl[[#This Row],[GrossRev]]*0.05),0) -> 46.1595 | V84: 1.65 | W84: 4.2 | X84: 15 | Y84: =SUM(DataColl[[#This Row],[DiscExp]:[Tot MiscExp]]) -> 147.6995 | Z84: =DataColl[[#This Row],[GrossRev]]-DataColl[[#This Row],[GrossExp]] -> 101.4905 | AA84: =IF(DataColl[[#This Row],[Error]]="X",DataColl[[#This Row],[TotResidual Earnings]],0) -> 0
C85: 80 | D85: MS000MNA | E85: MNA02 | F85: GELI DELISH | G85: MS000MNAA1 | H85: 8031818316 | I85: 201711 NOV | J85: =IF(DataColl[[#This Row],[Period]]<>"",DATE(LEFT(DataColl[[#This Row],[Period]],4),MID(DataColl[[#This Row],[Period]],5,2),1),"") -> 2017-11-01 | K85: =(DataColl[[#This Row],[MID]]*100000)+DataColl[[#This Row],[Period_]] -> 803181831643040 | L85: 674.29 | M85: =IF(DataColl[[#This Row],[Net Volume]]<1,0,"Operado") -> Operado | N85: 29 | O85: 17.32 | P85: 5.8 | Q85: 46.21 | R85: 125 | S85: 194.33 | T85: 12.82 | U85: =IF(DataColl[[#This Row],[Error]]<>"X",((DataColl[[#This Row],[GrossRev]]-DataColl[[#This Row],[DiscExp]])*VALUE(MID(DataColl[[#Headers],[MNA20%]],4,3)))+(DataColl[[#This Row],[GrossRev]]*0.05),0) -> 46.0185 | V85: 0.73 | W85: 12.97 | X85: 15 | Y85: =SUM(DataColl[[#This Row],[DiscExp]:[Tot MiscExp]]) -> 87.5385 | Z85: =DataColl[[#This Row],[GrossRev]]-DataColl[[#This Row],[GrossExp]] -> 106.7915 | AA85: =IF(DataColl[[#This Row],[Error]]="X",DataColl[[#This Row],[TotResidual Earnings]],0) -> 0
C86: 81 | D86: MS000MNA | E86: MNA01 | F86: MANUELITOS RESTAURANT Y TAQUERIA | G86: MS000MNAA1 | H86: 8031819561 | I86: 201711 NOV | J86: =IF(DataColl[[#This Row],[Period]]<>"",DATE(LEFT(DataColl[[#This Row],[Period]],4),MID(DataColl[[#This Row],[Period]],5,2),1),"") -> 2017-11-01 | K86: =(DataColl[[#This Row],[MID]]*100000)+DataColl[[#This Row],[Period_]] -> 803181956143040 | L86: 10925.46 | M86: =IF(DataColl[[#This Row],[Net Volume]]<1,0,"Operado") -> Operado | N86: 466 | O86: 297.39 | P86: 47.7 | Q86: 1.97 | R86: 19.89 | S86: 366.95 | T86: 165.66 | U86: =IF(DataColl[[#This Row],[Error]]<>"X",((DataColl[[#This Row],[GrossRev]]-DataColl[[#This Row],[DiscExp]])*VALUE(MID(DataColl[[#Headers],[MNA20%]],4,3)))+(DataColl[[#This Row],[GrossRev]]*0.05),0) -> 58.6055 | V86: 7.57 | W86: 10.15 | X86: 15 | Y86: =SUM(DataColl[[#This Row],[DiscExp]:[Tot MiscExp]]) -> 256.9855 | Z86: =DataColl[[#This Row],[GrossRev]]-DataColl[[#This Row],[GrossExp]] -> 109.9645 | AA86: =IF(DataColl[[#This Row],[Error]]="X",DataColl[[#This Row],[TotResidual Earnings]],0) -> 0
C87: 82 | D87: MS000MNA | E87: MNA01 | F87: ANGEL RADIADOES 1 | G87: MS000MNAA1 | H87: 8031820353 | I87: 201711 NOV | J87: =IF(DataColl[[#This Row],[Period]]<>"",DATE(LEFT(DataColl[[#This Row],[Period]],4),MID(DataColl[[#This Row],[Period]],5,2),1),"") -> 2017-11-01 | K87: =(DataColl[[#This Row],[MID]]*100000)+DataColl[[#This Row],[Period_]] -> 803182035343040 | L87: 21477.19 | M87: =IF(DataColl[[#This Row],[Net Volume]]<1,0,"Operado") -> Operado | N87: 173 | O87: 460.84 | P87: 18.4 | Q87: 88.99 | R87: 19.98 | S87: 588.21 | T87: 235.69 | U87: =IF(DataColl[[#This Row],[Error]]<>"X",((DataColl[[#This Row],[GrossRev]]-DataColl[[#This Row],[DiscExp]])*VALUE(MID(DataColl[[#Headers],[MNA20%]],4,3)))+(DataColl[[#This Row],[GrossRev]]*0.05),0) -> 99.9145 | V87: 3.16 | W87: 46.18 | X87: 15 | Y87: =SUM(DataColl[[#This Row],[DiscExp]:[Tot MiscExp]]) -> 399.9445 | Z87: =DataColl[[#This Row],[GrossRev]]-DataColl[[#This Row],[GrossExp]] -> 188.2655 | AA87: =IF(DataColl[[#This Row],[Error]]="X",DataColl[[#This Row],[TotResidual Earnings]],0) -> 0
C88: 83 | D88: MS000MNA | E88: MNA02 | F88: PANADERIA DE ANA | G88: MS000MNAA1 | H88: 8031821096 | I88: 201711 NOV | J88: =IF(DataColl[[#This Row],[Period]]<>"",DATE(LEFT(DataColl[[#This Row],[Period]],4),MID(DataColl[[#This Row],[Period]],5,2),1),"") -> 2017-11-01 | K88: =(DataColl[[#This Row],[MID]]*100000)+DataColl[[#This Row],[Period_]] -> 803182109643040 | L88: 2088.95 | M88: =IF(DataColl[[#This Row],[Net Volume]]<1,0,"Operado") -> Operado | N88: 78 | O88: 71.46 | P88: 5.32 | Q88: 14.63 | R88: 110 | S88: 201.41 | T88: 53.63 | U88: =IF(DataColl[[#This Row],[Error]]<>"X",((DataColl[[#This Row],[GrossRev]]-DataColl[[#This Row],[DiscExp]])*VALUE(MID(DataColl[[#Headers],[MNA20%]],4,3)))+(DataColl[[#This Row],[GrossRev]]*0.05),0) -> 39.6265 | V88: 2.75 | W88: 11 | X88: 18 | Y88: =SUM(DataColl[[#This Row],[DiscExp]:[Tot MiscExp]]) -> 125.0065 | Z88: =DataColl[[#This Row],[GrossRev]]-DataColl[[#This Row],[GrossExp]] -> 76.4035 | AA88: =IF(DataColl[[#This Row],[Error]]="X",DataColl[[#This Row],[TotResidual Earnings]],0) -> 0
C89: 84 | D89: MS000MNA | E89: MNA02 | F89: DIETERS MOTORES IMPORTADOS | G89: MS000MNAA1 | H89: 8031821211 | I89: 201711 NOV | J89: =IF(DataColl[[#This Row],[Period]]<>"",DATE(LEFT(DataColl[[#This Row],[Period]],4),MID(DataColl[[#This Row],[Period]],5,2),1),"") -> 2017-11-01 | K89: =(DataColl[[#This Row],[MID]]*100000)+DataColl[[#This Row],[Period_]] -> 803182121143040 | L89: 30935.64 | M89: =IF(DataColl[[#This Row],[Net Volume]]<1,0,"Operado") -> Operado | N89: 60 | O89: 718.14 | P89: 3.05 | Q89: 12.14 | R89: 120 | S89: 853.33 | T89: 587.65 | U89: =IF(DataColl[[#This Row],[Error]]<>"X",((DataColl[[#This Row],[GrossRev]]-DataColl[[#This Row],[DiscExp]])*VALUE(MID(DataColl[[#Headers],[MNA20%]],4,3)))+(DataColl[[#This Row],[GrossRev]]*0.05),0) -> 95.8025 | V89: 1.26 | W89: 6.83 | X89: 13 | Y89: =SUM(DataColl[[#This Row],[DiscExp]:[Tot MiscExp]]) -> 704.5425 | Z89: =DataColl[[#This Row],[GrossRev]]-DataColl[[#This Row],[GrossExp]] -> 148.7875 | AA89: =IF(DataColl[[#This Row],[Error]]="X",DataColl[[#This Row],[TotResidual Earnings]],0) -> 0
C90: 85 | D90: MS000MNA | E90: MNA01 | F90: TIOS CAFE | G90: MS000MNAA1 | H90: 8031825485 | I90: 201711 NOV | J90: =IF(DataColl[[#This Row],[Period]]<>"",DATE(LEFT(DataColl[[#This Row],[Period]],4),MID(DataColl[[#This Row],[Period]],5,2),1),"") -> 2017-11-01 | K90: =(DataColl[[#This Row],[MID]]*100000)+DataColl[[#This Row],[Period_]] -> 803182548543040 | L90: 29873.98 | M90: =IF(DataColl[[#This Row],[Net Volume]]<1,0,"Operado") -> Operado | N90: 982 | O90: 884.83 | P90: 99.6 | Q90: 0.52 | R90: 19.98 | S90: 1004.93 | T90: 541.07 | U90: =IF(DataColl[[#This Row],[Error]]<>"X",((DataColl[[#This Row],[GrossRev]]-DataColl[[#This Row],[DiscExp]])*VALUE(MID(DataColl[[#Headers],[MNA20%]],4,3)))+(DataColl[[#This Row],[GrossRev]]*0.05),0) -> 143.0185 | V90: 15.37 | W90: 19.46 | X90: 15 | Y90: =SUM(DataColl[[#This Row],[DiscExp]:[Tot MiscExp]]) -> 733.9185 | Z90: =DataColl[[#This Row],[GrossRev]]-DataColl[[#This Row],[GrossExp]] -> 271.0115 | AA90: =IF(DataColl[[#This Row],[Error]]="X",DataColl[[#This Row],[TotResidual Earnings]],0) -> 0
C91: 86 | D91: MS000MNA | E91: MNA01 | F91: ANGEL RADIADOES 2 | G91: MS000MNAA1 | H91: 8031843744 | I91: 201711 NOV | J91: =IF(DataColl[[#This Row],[Period]]<>"",DATE(LEFT(DataColl[[#This Row],[Period]],4),MID(DataColl[[#This Row],[Period]],5,2),1),"") -> 2017-11-01 | K91: =(DataColl[[#This Row],[MID]]*100000)+DataColl[[#This Row],[Period_]] -> 803184374443040 | L91: 20268 | M91: =IF(DataColl[[#This Row],[Net Volume]]<1,0,"Operado") -> Operado | N91: 104 | O91: 398.02 | P91: 11.3 | Q91: 45.01 | R91: 19.98 | S91: 474.31 | T91: 195.93 | U91: =IF(DataColl[[#This Row],[Error]]<>"X",((DataColl[[#This Row],[GrossRev]]-DataColl[[#This Row],[DiscExp]])*VALUE(MID(DataColl[[#Headers],[MNA20%]],4,3)))+(DataColl[[#This Row],[GrossRev]]*0.05),0) -> 79.3915 | V91: 2.08 | W91: 21.7 | X91: 15 | Y91: =SUM(DataColl[[#This Row],[DiscExp]:[Tot MiscExp]]) -> 314.1015 | Z91: =DataColl[[#This Row],[GrossRev]]-DataColl[[#This Row],[GrossExp]] -> 160.2085 | AA91: =IF(DataColl[[#This Row],[Error]]="X",DataColl[[#This Row],[TotResidual Earnings]],0) -> 0
C92: 87 | D92: MS000MNA | E92: MNA02 | F92: JESSES TACO DE MEXICO | G92: MS000MNAA1 | H92: 8031845202 | I92: 201711 NOV | J92: =IF(DataColl[[#This Row],[Period]]<>"",DATE(LEFT(DataColl[[#This Row],[Period]],4),MID(DataColl[[#This Row],[Period]],5,2),1),"") -> 2017-11-01 | K92: =(DataColl[[#This Row],[MID]]*100000)+DataColl[[#This Row],[Period_]] -> 803184520243040 | L92: 26116.85 | M92: =IF(DataColl[[#This Row],[Net Volume]]<1,0,"Operado") -> Operado | N92: 1727 | O92: 662.91 | P92: 0 | Q92: 435.58 | R92: 120 | S92: 1218.49 | T92: 562.97 | U92: =IF(DataColl[[#This Row],[Error]]<>"X",((DataColl[[#This Row],[GrossRev]]-DataColl[[#This Row],[DiscExp]])*VALUE(MID(DataColl[[#Headers],[MNA20%]],4,3)))+(DataColl[[#This Row],[GrossRev]]*0.05),0) -> 192.0285 | V92: 83.78 | W92: 368.3425 | X92: 13 | Y92: =SUM(DataColl[[#This Row],[DiscExp]:[Tot MiscExp]]) -> 1220.121 | Z92: =DataColl[[#This Row],[GrossRev]]-DataColl[[#This Row],[GrossExp]] -> -1.631 | AA92: =IF(DataColl[[#This Row],[Error]]="X",DataColl[[#This Row],[TotResidual Earnings]],0) -> 0
C93: 88 | D93: MS000MNA | E93: MNA02 | F93: LA ESTRELLA MARKET | G93: MS000MNAA1 | H93: 8031845368 | I93: 201711 NOV | J93: =IF(DataColl[[#This Row],[Period]]<>"",DATE(LEFT(DataColl[[#This Row],[Period]],4),MID(DataColl[[#This Row],[Period]],5,2),1),"") -> 2017-11-01 | K93: =(DataColl[[#This Row],[MID]]*100000)+DataColl[[#This Row],[Period_]] -> 803184536843040 | L93: 9881.19 | M93: =IF(DataColl[[#This Row],[Net Volume]]<1,0,"Operado") -> Operado | N93: 493 | O93: 252.6 | P93: 50.5 | Q93: 279.43 | R93: 140 | S93: 722.53 | T93: 179.32 | U93: =IF(DataColl[[#This Row],[Error]]<>"X",((DataColl[[#This Row],[GrossRev]]-DataColl[[#This Row],[DiscExp]])*VALUE(MID(DataColl[[#Headers],[MNA20%]],4,3)))+(DataColl[[#This Row],[GrossRev]]*0.05),0) -> 144.7685 | V93: 8.5 | W93: 239.98 | X93: 20 | Y93: =SUM(DataColl[[#This Row],[DiscExp]:[Tot MiscExp]]) -> 592.5685 | Z93: =DataColl[[#This Row],[GrossRev]]-DataColl[[#This Row],[GrossExp]] -> 129.9615 | AA93: =IF(DataColl[[#This Row],[Error]]="X",DataColl[[#This Row],[TotResidual Earnings]],0) -> 0
C94: 89 | D94: MS000MNA | E94: MNA01 | F94: LABORATORIOS DENTALES HICERAM | G94: MS000MNAA1 | H94: 8031858239 | I94: 201711 NOV | J94: =IF(DataColl[[#This Row],[Period]]<>"",DATE(LEFT(DataColl[[#This Row],[Period]],4),MID(DataColl[[#This Row],[Period]],5,2),1),"") -> 2017-11-01 | K94: =(DataColl[[#This Row],[MID]]*100000)+DataColl[[#This Row],[Period_]] -> 803185823943040 | L94: 10112.35 | M94: =IF(DataColl[[#This Row],[Net Volume]]<1,0,"Operado") -> Operado | N94: 3 | O94: 271.69 | P94: 0.3 | Q94: 0 | R94: 32.97 | S94: 304.96 | T94: 222.49 | U94: =IF(DataColl[[#This Row],[Error]]<>"X",((DataColl[[#This Row],[GrossRev]]-DataColl[[#This Row],[DiscExp]])*VALUE(MID(DataColl[[#Headers],[MNA20%]],4,3)))+(DataColl[[#This Row],[GrossRev]]*0.05),0) -> 31.742 | V94: 0.08 | W94: 0.06 | X94: 25 | Y94: =SUM(DataColl[[#This Row],[DiscExp]:[Tot MiscExp]]) -> 279.372 | Z94: =DataColl[[#This Row],[GrossRev]]-DataColl[[#This Row],[GrossExp]] -> 25.588 | AA94: =IF(DataColl[[#This Row],[Error]]="X",DataColl[[#This Row],[TotResidual Earnings]],0) -> 0
C95: 90 | D95: MS000MNA | E95: MNA02 | F95: VC ARENA | G95: MS000MNAA1 | H95: 8031858973 | I95: 201711 NOV | J95: =IF(DataColl[[#This Row],[Period]]<>"",DATE(LEFT(DataColl[[#This Row],[Period]],4),MID(DataColl[[#This Row],[Period]],5,2),1),"") -> 2017-11-01 | K95: =(DataColl[[#This Row],[MID]]*100000)+DataColl[[#This Row],[Period_]] -> 803185897343040 | L95: 13974.19 | M95: =IF(DataColl[[#This Row],[Net Volume]]<1,0,"Operado") -> Operado | N95: 186 | O95: 268.69 | P95: 9.5 | Q95: 39.02 | R95: 130 | S95: 447.21 | T95: 250.51 | U95: =IF(DataColl[[#This Row],[Error]]<>"X",((DataColl[[#This Row],[GrossRev]]-DataColl[[#This Row],[DiscExp]])*VALUE(MID(DataColl[[#Headers],[MNA20%]],4,3)))+(DataColl[[#This Row],[GrossRev]]*0.05),0) -> 61.7005 | V95: 3.37 | W95: 34.54 | X95: 13 | Y95: =SUM(DataColl[[#This Row],[DiscExp]:[Tot MiscExp]]) -> 363.1205 | Z95: =DataColl[[#This Row],[GrossRev]]-DataColl[[#This Row],[GrossExp]] -> 84.0895 | AA95: =IF(DataColl[[#This Row],[Error]]="X",DataColl[[#This Row],[TotResidual Earnings]],0) -> 0
C96: 91 | D96: MS000MNA | E96: MNA02 | F96: LLANTAS AV | G96: MS000MNAA1 | H96: 8031864849 | I96: 201711 NOV | J96: =IF(DataColl[[#This Row],[Period]]<>"",DATE(LEFT(DataColl[[#This Row],[Period]],4),MID(DataColl[[#This Row],[Period]],5,2),1),"") -> 2017-11-01 | K96: =(DataColl[[#This Row],[MID]]*100000)+DataColl[[#This Row],[Period_]] -> 803186484943040 | L96: 87861.84 | M96: =IF(DataColl[[#This Row],[Net Volume]]<1,0,"Operado") -> Operado | N96: 411 | O96: 1950.13 | P96: 44 | Q96: 238.74 | R96: 115 | S96: 2347.87 | T96: 1510.3 | U96: =IF(DataColl[[#This Row],[Error]]<>"X",((DataColl[[#This Row],[GrossRev]]-DataColl[[#This Row],[DiscExp]])*VALUE(MID(DataColl[[#Headers],[MNA20%]],4,3)))+(DataColl[[#This Row],[GrossRev]]*0.05),0) -> 284.9075 | V96: 7.94 | W96: 181.25 | X96: 15 | Y96: =SUM(DataColl[[#This Row],[DiscExp]:[Tot MiscExp]]) -> 1999.3975 | Z96: =DataColl[[#This Row],[GrossRev]]-DataColl[[#This Row],[GrossExp]] -> 348.4725 | AA96: =IF(DataColl[[#This Row],[Error]]="X",DataColl[[#This Row],[TotResidual Earnings]],0) -> 0
C97: 92 | D97: MS000MNA | E97: MNA01 | F97: GLASS BOTTOM DISTRIBUTORES | G97: MS000MNAA1 | H97: 8031873345 | I97: 201711 NOV | J97: =IF(DataColl[[#This Row],[Period]]<>"",DATE(LEFT(DataColl[[#This Row],[Period]],4),MID(DataColl[[#This Row],[Period]],5,2),1),"") -> 2017-11-01 | K97: =(DataColl[[#This Row],[MID]]*100000)+DataColl[[#This Row],[Period_]] -> 803187334543040 | L97: 742.74 | M97: =IF(DataColl[[#This Row],[Net Volume]]<1,0,"Operado") -> Operado | N97: 2 | O97: 21.7 | P97: 0.3 | Q97: 0 | R97: 19.98 | S97: 41.98 | T97: 12.545 | U97: =IF(DataColl[[#This Row],[Error]]<>"X",((DataColl[[#This Row],[GrossRev]]-DataColl[[#This Row],[DiscExp]])*VALUE(MID(DataColl[[#Headers],[MNA20%]],4,3)))+(DataColl[[#This Row],[GrossRev]]*0.05),0) -> 7.986 | V97: 0.08 | W97: 0.04 | X97: 15 | Y97: =SUM(DataColl[[#This Row],[DiscExp]:[Tot MiscExp]]) -> 35.651 | Z97: =DataColl[[#This Row],[GrossRev]]-DataColl[[#This Row],[GrossExp]] -> 6.329 | AA97: =IF(DataColl[[#This Row],[Error]]="X",DataColl[[#This Row],[TotResidual Earnings]],0) -> 0
C98: 93 | D98: MS000MNA | E98: MNA02 | F98: FUNERARIA LLC | G98: MS000MNAA1 | H98: 8031874814 | I98: 201711 NOV | J98: =IF(DataColl[[#This Row],[Period]]<>"",DATE(LEFT(DataColl[[#This Row],[Period]],4),MID(DataColl[[#This Row],[Period]],5,2),1),"") -> 2017-11-01 | K98: =(DataColl[[#This Row],[MID]]*100000)+DataColl[[#This Row],[Period_]] -> 803187481443040 | L98: 38610.87 | M98: =IF(DataColl[[#This Row],[Net Volume]]<1,0,"Operado") -> Operado | N98: 36 | O98: 763.55 | P98: 0.47 | Q98: 0 | R98: 130 | S98: 894.02 | T98: 535.79 | U98: =IF(DataColl[[#This Row],[Error]]<>"X",((DataColl[[#This Row],[GrossRev]]-DataColl[[#This Row],[DiscExp]])*VALUE(MID(DataColl[[#Headers],[MNA20%]],4,3)))+(DataColl[[#This Row],[GrossRev]]*0.05),0) -> 116.347 | V98: 1.95 | W98: 0.72 | X98: 13 | Y98: =SUM(DataColl[[#This Row],[DiscExp]:[Tot MiscExp]]) -> 667.807 | Z98: =DataColl[[#This Row],[GrossRev]]-DataColl[[#This Row],[GrossExp]] -> 226.213 | AA98: =IF(DataColl[[#This Row],[Error]]="X",DataColl[[#This Row],[TotResidual Earnings]],0) -> 0
C99: 94 | D99: MS000MNA | E99: MNA01 | F99: RASPADOS GDL | G99: MS000MNAA1 | H99: 8031890828 | I99: 201711 NOV | J99: =IF(DataColl[[#This Row],[Period]]<>"",DATE(LEFT(DataColl[[#This Row],[Period]],4),MID(DataColl[[#This Row],[Period]],5,2),1),"") -> 2017-11-01 | K99: =(DataColl[[#This Row],[MID]]*100000)+DataColl[[#This Row],[Period_]] -> 803189082843040 | L99: 3459.24 | M99: =IF(DataColl[[#This Row],[Net Volume]]<1,0,"Operado") -> Operado | N99: 343 | O99: 141.74 | P99: 34.9 | Q99: 67 | R99: 29.98 | S99: 273.62 | T99: 98.69 | U99: =IF(DataColl[[#This Row],[Error]]<>"X",((DataColl[[#This Row],[GrossRev]]-DataColl[[#This Row],[DiscExp]])*VALUE(MID(DataColl[[#Headers],[MNA20%]],4,3)))+(DataColl[[#This Row],[GrossRev]]*0.05),0) -> 48.667 | V99: 5.69 | W99: 49.67 | X99: 19 | Y99: =SUM(DataColl[[#This Row],[DiscExp]:[Tot MiscExp]]) -> 221.717 | Z99: =DataColl[[#This Row],[GrossRev]]-DataColl[[#This Row],[GrossExp]] -> 51.903 | AA99: =IF(DataColl[[#This Row],[Error]]="X",DataColl[[#This Row],[TotResidual Earnings]],0) -> 0
C100: 95 | D100: MS000MNA | E100: MNA02 | F100: JAN DJ COMMUNICACION | G100: MS000MNAA1 | H100: 8031902730 | I100: 201711 NOV | J100: =IF(DataColl[[#This Row],[Period]]<>"",DATE(LEFT(DataColl[[#This Row],[Period]],4),MID(DataColl[[#This Row],[Period]],5,2),1),"") -> 2017-11-01 | K100: =(DataColl[[#This Row],[MID]]*100000)+DataColl[[#This Row],[Period_]] -> 803190273043040 | L100: 1413.42 | M100: =IF(DataColl[[#This Row],[Net Volume]]<1,0,"Operado") -> Operado | N100: 17 | O100: 40.38 | P100: 2.4 | Q100: 5.88 | R100: 110 | S100: 158.66 | T100: 32.84 | U100: =IF(DataColl[[#This Row],[Error]]<>"X",((DataColl[[#This Row],[GrossRev]]-DataColl[[#This Row],[DiscExp]])*VALUE(MID(DataColl[[#Headers],[MNA20%]],4,3)))+(DataColl[[#This Row],[GrossRev]]*0.05),0) -> 33.097 | V100: 0.61 | W100: 3.22 | X100: 13 | Y100: =SUM(DataColl[[#This Row],[DiscExp]:[Tot MiscExp]]) -> 82.767 | Z100: =DataColl[[#This Row],[GrossRev]]-DataColl[[#This Row],[GrossExp]] -> 75.893 | AA100: =IF(DataColl[[#This Row],[Error]]="X",DataColl[[#This Row],[TotResidual Earnings]],0) -> 0
C101: 96 | D101: MS000MNA | E101: MNA02 | F101: LA VEROS COMIDA DE MAR Y GRILL | G101: MS000MNAA1 | H101: 8031904702 | I101: 201711 NOV | J101: =IF(DataColl[[#This Row],[Period]]<>"",DATE(LEFT(DataColl[[#This Row],[Period]],4),MID(DataColl[[#This Row],[Period]],5,2),1),"") -> 2017-11-01 | K101: =(DataColl[[#This Row],[MID]]*100000)+DataColl[[#This Row],[Period_]] -> 803190470243040 | L101: 37567.96 | M101: =IF(DataColl[[#This Row],[Net Volume]]<1,0,"Operado") -> Operado | N101: 977 | O101: 676.39 | P101: 148.65 | Q101: 0 | R101: 120 | S101: 945.04 | T101: 464.33 | U101: =IF(DataColl[[#This Row],[Error]]<>"X",((DataColl[[#This Row],[GrossRev]]-DataColl[[#This Row],[DiscExp]])*VALUE(MID(DataColl[[#Headers],[MNA20%]],4,3)))+(DataColl[[#This Row],[GrossRev]]*0.05),0) -> 143.394 | V101: 15.25 | W101: 19.28 | X101: 13 | Y101: =SUM(DataColl[[#This Row],[DiscExp]:[Tot MiscExp]]) -> 655.254 | Z101: =DataColl[[#This Row],[GrossRev]]-DataColl[[#This Row],[GrossExp]] -> 289.786 | AA101: =IF(DataColl[[#This Row],[Error]]="X",DataColl[[#This Row],[TotResidual Earnings]],0) -> 0
C102: 97 | D102: ="MS000MNA" -> MS000MNA | E102: MNA02 | F102: SALUD MAS VIDA | G102: MS000MNAA1 | H102: 8031919908 | I102: 201711 NOV | J102: =IF(DataColl[[#This Row],[Period]]<>"",DATE(LEFT(DataColl[[#This Row],[Period]],4),MID(DataColl[[#This Row],[Period]],5,2),1),"") -> 2017-11-01 | K102: =(DataColl[[#This Row],[MID]]*100000)+DataColl[[#This Row],[Period_]] -> 803191990843040 | L102: 8566.28 | M102: =IF(DataColl[[#This Row],[Net Volume]]<1,0,"Operado") -> Operado | N102: 106 | O102: 221.79 | P102: 5.4 | Q102: 216.89 | R102: 135 | S102: 579.08 | T102: 174.81 | U102: =IF(DataColl[[#This Row],[Error]]<>"X",((DataColl[[#This Row],[GrossRev]]-DataColl[[#This Row],[DiscExp]])*VALUE(MID(DataColl[[#Headers],[MNA20%]],4,3)))+(DataColl[[#This Row],[GrossRev]]*0.05),0) -> 109.808 | V102: 2.18 | W102: 117.22 | X102: 15 | Y102: =SUM(DataColl[[#This Row],[DiscExp]:[Tot MiscExp]]) -> 419.018 | Z102: =DataColl[[#This Row],[GrossRev]]-DataColl[[#This Row],[GrossExp]] -> 160.062 | AA102: =IF(DataColl[[#This Row],[Error]]="X",DataColl[[#This Row],[TotResidual Earnings]],0) -> 0
C103: 98 | D103: MS000MNA | E103: MNA02 | F103: RUEDAS Y LLANTAS | G103: MS000MNAA1 | H103: 8031921417 | I103: 201711 NOV | J103: =IF(DataColl[[#This Row],[Period]]<>"",DATE(LEFT(DataColl[[#This Row],[Period]],4),MID(DataColl[[#This Row],[Period]],5,2),1),"") -> 2017-11-01 | K103: =(DataColl[[#This Row],[MID]]*100000)+DataColl[[#This Row],[Period_]] -> 803192141743040 | L103: 40.03 | M103: =IF(DataColl[[#This Row],[Net Volume]]<1,0,"Operado") -> Operado | N103: 4 | O103: 35.98 | P103: 0.2 | Q103: 0 | R103: 130 | S103: 166.18 | T103: 18.43 | U103: =IF(DataColl[[#This Row],[Error]]<>"X",((DataColl[[#This Row],[GrossRev]]-DataColl[[#This Row],[DiscExp]])*VALUE(MID(DataColl[[#Headers],[MNA20%]],4,3)))+(DataColl[[#This Row],[GrossRev]]*0.05),0) -> 37.859 | V103: 0.17 | W103: 0.08 | X103: 13 | Y103: =SUM(DataColl[[#This Row],[DiscExp]:[Tot MiscExp]]) -> 69.539 | Z103: =DataColl[[#This Row],[GrossRev]]-DataColl[[#This Row],[GrossExp]] -> 96.641 | AA103: =IF(DataColl[[#This Row],[Error]]="X",DataColl[[#This Row],[TotResidual Earnings]],0) -> 0
C104: 99 | D104: MS000MNA | E104: MNA01 | F104: NATS WEST | G104: MS000MNAA1 | H104: 8031932653 | I104: 201711 NOV | J104: =IF(DataColl[[#This Row],[Period]]<>"",DATE(LEFT(DataColl[[#This Row],[Period]],4),MID(DataColl[[#This Row],[Period]],5,2),1),"") -> 2017-11-01 | K104: =(DataColl[[#This Row],[MID]]*100000)+DataColl[[#This Row],[Period_]] -> 803193265343040 | L104: 0 | M104: =IF(DataColl[[#This Row],[Net Volume]]<1,0,"Operado") -> 0 | N104: 0 | O104: 14.9 | P104: 0.1 | Q104: 0 | R104: 19.98 | S104: 34.98 | T104: 7.45 | U104: =IF(DataColl[[#This Row],[Error]]<>"X",((DataColl[[#This Row],[GrossRev]]-DataColl[[#This Row],[DiscExp]])*VALUE(MID(DataColl[[#Headers],[MNA20%]],4,3)))+(DataColl[[#This Row],[GrossRev]]*0.05),0) -> 7.255 | V104: 0.08 | W104: 0 | X104: 15 | Y104: =SUM(DataColl[[#This Row],[DiscExp]:[Tot MiscExp]]) -> 29.785 | Z104: =DataColl[[#This Row],[GrossRev]]-DataColl[[#This Row],[GrossExp]] -> 5.195 | AA104: =IF(DataColl[[#This Row],[Error]]="X",DataColl[[#This Row],[TotResidual Earnings]],0) -> 0
C105: 100 | D105: MS000MNA | E105: MNA02 | F105: SALUD MAS VIDA | G105: MS000MNAA1 | H105: 8031946018 | I105: 201711 NOV | J105: =IF(DataColl[[#This Row],[Period]]<>"",DATE(LEFT(DataColl[[#This Row],[Period]],4),MID(DataColl[[#This Row],[Period]],5,2),1),"") -> 2017-11-01 | K105: =(DataColl[[#This Row],[MID]]*100000)+DataColl[[#This Row],[Period_]] -> 803194601843040 | L105: 7288.39 | M105: =IF(DataColl[[#This Row],[Net Volume]]<1,0,"Operado") -> Operado | N105: 73 | O105: 156.28 | P105: 4.55 | Q105: 129.45 | R105: 135 | S105: 425.28 | T105: 117.74 | U105: =IF(DataColl[[#This Row],[Error]]<>"X",((DataColl[[#This Row],[GrossRev]]-DataColl[[#This Row],[DiscExp]])*VALUE(MID(DataColl[[#Headers],[MNA20%]],4,3)))+(DataColl[[#This Row],[GrossRev]]*0.05),0) -> 82.772 | V105: 7.67 | W105: 69.62 | X105: 15 | Y105: =SUM(DataColl[[#This Row],[DiscExp]:[Tot MiscExp]]) -> 292.802 | Z105: =DataColl[[#This Row],[GrossRev]]-DataColl[[#This Row],[GrossExp]] -> 132.478 | AA105: =IF(DataColl[[#This Row],[Error]]="X",DataColl[[#This Row],[TotResidual Earnings]],0) -> 0
C106: 101 | D106: MS000MNA | E106: MNA02 | F106: SALUD MAS VIDA | G106: MS000MNAA1 | H106: 8031946091 | I106: 201711 NOV | J106: =IF(DataColl[[#This Row],[Period]]<>"",DATE(LEFT(DataColl[[#This Row],[Period]],4),MID(DataColl[[#This Row],[Period]],5,2),1),"") -> 2017-11-01 | K106: =(DataColl[[#This Row],[MID]]*100000)+DataColl[[#This Row],[Period_]] -> 803194609143040 | L106: 804.31 | M106: =IF(DataColl[[#This Row],[Net Volume]]<1,0,"Operado") -> Operado | N106: 19 | O106: 21.84 | P106: 0.95 | Q106: 27.32 | R106: 135 | S106: 185.11 | T106: 16.96 | U106: =IF(DataColl[[#This Row],[Error]]<>"X",((DataColl[[#This Row],[GrossRev]]-DataColl[[#This Row],[DiscExp]])*VALUE(MID(DataColl[[#Headers],[MNA20%]],4,3)))+(DataColl[[#This Row],[GrossRev]]*0.05),0) -> 42.8855 | V106: 1.82 | W106: 15.76 | X106: 15 | Y106: =SUM(DataColl[[#This Row],[DiscExp]:[Tot MiscExp]]) -> 92.4255 | Z106: =DataColl[[#This Row],[GrossRev]]-DataColl[[#This Row],[GrossExp]] -> 92.6845 | AA106: =IF(DataColl[[#This Row],[Error]]="X",DataColl[[#This Row],[TotResidual Earnings]],0) -> 0
C107: 102 | D107: MS000MNA | E107: MNA02 | F107: EL FINO, ESTETICA | G107: MS000MNAA1 | H107: 8031965497 | I107: 201711 NOV | J107: =IF(DataColl[[#This Row],[Period]]<>"",DATE(LEFT(DataColl[[#This Row],[Period]],4),MID(DataColl[[#This Row],[Period]],5,2),1),"") -> 2017-11-01 | K107: =(DataColl[[#This Row],[MID]]*100000)+DataColl[[#This Row],[Period_]] -> 803196549743040 | L107: 5551.56 | M107: =IF(DataColl[[#This Row],[Net Volume]]<1,0,"Operado") -> Operado | N107: 353 | O107: 161.82 | P107: 17.95 | Q107: 0 | R107: 0 | S107: 179.77 | T107: 116.52 | U107: =IF(DataColl[[#This Row],[Error]]<>"X",((DataColl[[#This Row],[GrossRev]]-DataColl[[#This Row],[DiscExp]])*VALUE(MID(DataColl[[#Headers],[MNA20%]],4,3)))+(DataColl[[#This Row],[GrossRev]]*0.05),0) -> 21.6385 | V107: 5.81 | W107: 7.06 | X107: 13 | Y107: =SUM(DataColl[[#This Row],[DiscExp]:[Tot MiscExp]]) -> 164.0285 | Z107: =DataColl[[#This Row],[GrossRev]]-DataColl[[#This Row],[GrossExp]] -> 15.7415 | AA107: =IF(DataColl[[#This Row],[Error]]="X",DataColl[[#This Row],[TotResidual Earnings]],0) -> 0
C108: 103 | D108: MS000MNA | E108: MNA02 | F108: DULCERIA LA COLMENA | G108: MS000MNAA1 | H108: 8031968616 | I108: 201711 NOV | J108: =IF(DataColl[[#This Row],[Period]]<>"",DATE(LEFT(DataColl[[#This Row],[Period]],4),MID(DataColl[[#This Row],[Period]],5,2),1),"") -> 2017-11-01 | K108: =(DataColl[[#This Row],[MID]]*100000)+DataColl[[#This Row],[Period_]] -> 803196861643040 | L108: 3574.99 | M108: =IF(DataColl[[#This Row],[Net Volume]]<1,0,"Operado") -> Operado | N108: 72 | O108: 98.36 | P108: 3.7 | Q108: 151.29 | R108: 135 | S108: 388.35 | T108: 90.13 | U108: =IF(DataColl[[#This Row],[Error]]<>"X",((DataColl[[#This Row],[GrossRev]]-DataColl[[#This Row],[DiscExp]])*VALUE(MID(DataColl[[#Headers],[MNA20%]],4,3)))+(DataColl[[#This Row],[GrossRev]]*0.05),0) -> 79.0615 | V108: 9.85 | W108: 119.46 | X108: -142 | Y108: =SUM(DataColl[[#This Row],[DiscExp]:[Tot MiscExp]]) -> 156.5015 | Z108: =DataColl[[#This Row],[GrossRev]]-DataColl[[#This Row],[GrossExp]] -> 231.8485 | AA108: =IF(DataColl[[#This Row],[Error]]="X",DataColl[[#This Row],[TotResidual Earnings]],0) -> 0
C109: 104 | D109: MS000MNA | E109: MNA02 | F109: OXNARD HERRAMIENTAS DE ACERO | G109: MS000MNAA1 | H109: 8031981536 | I109: 201711 NOV | J109: =IF(DataColl[[#This Row],[Period]]<>"",DATE(LEFT(DataColl[[#This Row],[Period]],4),MID(DataColl[[#This Row],[Period]],5,2),1),"") -> 2017-11-01 | K109: =(DataColl[[#This Row],[MID]]*100000)+DataColl[[#This Row],[Period_]] -> 803198153643040 | L109: 10690.86 | M109: =IF(DataColl[[#This Row],[Net Volume]]<1,0,"Operado") -> Operado | N109: 104 | O109: 196.83 | P109: 10.5 | Q109: 0 | R109: 130 | S109: 337.33 | T109: 118.52 | U109: =IF(DataColl[[#This Row],[Error]]<>"X",((DataColl[[#This Row],[GrossRev]]-DataColl[[#This Row],[DiscExp]])*VALUE(MID(DataColl[[#Headers],[MNA20%]],4,3)))+(DataColl[[#This Row],[GrossRev]]*0.05),0) -> 60.6285 | V109: 1.92 | W109: 2.02 | X109: 0 | Y109: =SUM(DataColl[[#This Row],[DiscExp]:[Tot MiscExp]]) -> 183.0885 | Z109: =DataColl[[#This Row],[GrossRev]]-DataColl[[#This Row],[GrossExp]] -> 154.2415 | AA109: =IF(DataColl[[#This Row],[Error]]="X",DataColl[[#This Row],[TotResidual Earnings]],0) -> 0
C110: 105 | D110: MS000MNA | E110: MNA02 | F110: MR CAMARON 2 | G110: MS000MNAA1 | H110: 8031988127 | I110: 201711 NOV | J110: =IF(DataColl[[#This Row],[Period]]<>"",DATE(LEFT(DataColl[[#This Row],[Period]],4),MID(DataColl[[#This Row],[Period]],5,2),1),"") -> 2017-11-01 | K110: =(DataColl[[#This Row],[MID]]*100000)+DataColl[[#This Row],[Period_]] -> 803198812743040 | L110: 0.01 | M110: =IF(DataColl[[#This Row],[Net Volume]]<1,0,"Operado") -> 0 | N110: 1 | O110: 0.19 | P110: 0.1 | Q110: 0.39 | R110: 125 | S110: 125.68 | T110: 0.14 | U110: =IF(DataColl[[#This Row],[Error]]<>"X",((DataColl[[#This Row],[GrossRev]]-DataColl[[#This Row],[DiscExp]])*VALUE(MID(DataColl[[#Headers],[MNA20%]],4,3)))+(DataColl[[#This Row],[GrossRev]]*0.05),0) -> 31.392 | V110: 0.02 | W110: 0.31 | X110: 199 | Y110: =SUM(DataColl[[#This Row],[DiscExp]:[Tot MiscExp]]) -> 230.862 | Z110: =DataColl[[#This Row],[GrossRev]]-DataColl[[#This Row],[GrossExp]] -> -105.182 | AA110: =IF(DataColl[[#This Row],[Error]]="X",DataColl[[#This Row],[TotResidual Earnings]],0) -> 0
C111: 106 | D111: MS000MNA | E111: MNA02 | F111: VEROS, COMIDA MEXICANA DE MAR Y BAR | G111: MS000MNAA1 | H111: 8031988580 | I111: 201711 NOV | J111: =IF(DataColl[[#This Row],[Period]]<>"",DATE(LEFT(DataColl[[#This Row],[Period]],4),MID(DataColl[[#This Row],[Period]],5,2),1),"") -> 2017-11-01 | K111: =(DataColl[[#This Row],[MID]]*100000)+DataColl[[#This Row],[Period_]] -> 803198858043040 | L111: 40964 | M111: =IF(DataColl[[#This Row],[Net Volume]]<1,0,"Operado") -> Operado | N111: 1023 | O111: 862.73 | P111: 113.52 | Q111: 0 | R111: 130 | S111: 1106.25 | T111: 541.16 | U111: =IF(DataColl[[#This Row],[Error]]<>"X",((DataColl[[#This Row],[GrossRev]]-DataColl[[#This Row],[DiscExp]])*VALUE(MID(DataColl[[#Headers],[MNA20%]],4,3)))+(DataColl[[#This Row],[GrossRev]]*0.05),0) -> 168.3305 | V111: 16.12 | W111: 20.08 | X111: 0 | Y111: =SUM(DataColl[[#This Row],[DiscExp]:[Tot MiscExp]]) -> 745.6905 | Z111: =DataColl[[#This Row],[GrossRev]]-DataColl[[#This Row],[GrossExp]] -> 360.5595 | AA111: =IF(DataColl[[#This Row],[Error]]="X",DataColl[[#This Row],[TotResidual Earnings]],0) -> 0
C112: 107 | D112: MS000MNA | E112: MNA01 | F112: CACTUS TAQUERIA 2 EN PROV | G112: MS000MNAA1 | H112: 8032001698 | I112: 201711 NOV | J112: =IF(DataColl[[#This Row],[Period]]<>"",DATE(LEFT(DataColl[[#This Row],[Period]],4),MID(DataColl[[#This Row],[Period]],5,2),1),"") -> 2017-11-01 | K112: =(DataColl[[#This Row],[MID]]*100000)+DataColl[[#This Row],[Period_]] -> 803200169843040 | L112: 24441.58 | M112: =IF(DataColl[[#This Row],[Net Volume]]<1,0,"Operado") -> Operado | N112: 1649 | O112: 818.07 | P112: 167.32 | Q112: 0 | R112: 29.99 | S112: 1015.38 | T112: 544.85 | U112: =IF(DataColl[[#This Row],[Error]]<>"X",((DataColl[[#This Row],[GrossRev]]-DataColl[[#This Row],[DiscExp]])*VALUE(MID(DataColl[[#Headers],[MNA20%]],4,3)))+(DataColl[[#This Row],[GrossRev]]*0.05),0) -> 144.875 | V112: 72.41 | W112: 32.22 | X112: 0 | Y112: =SUM(DataColl[[#This Row],[DiscExp]:[Tot MiscExp]]) -> 794.355 | Z112: =DataColl[[#This Row],[GrossRev]]-DataColl[[#This Row],[GrossExp]] -> 221.025 | AA112: =IF(DataColl[[#This Row],[Error]]="X",DataColl[[#This Row],[TotResidual Earnings]],0) -> 0
C113: 108 | D113: MS000MNA | E113: MNA02 | F113: BARRERAS RESTAURANT Y PANADERIA | G113: MS000MNAA1 | H113: 8032008487 | I113: 201711 NOV | J113: =IF(DataColl[[#This Row],[Period]]<>"",DATE(LEFT(DataColl[[#This Row],[Period]],4),MID(DataColl[[#This Row],[Period]],5,2),1),"") -> 2017-11-01 | K113: =(DataColl[[#This Row],[MID]]*100000)+DataColl[[#This Row],[Period_]] -> 803200848743040 | L113: 7024.59 | M113: =IF(DataColl[[#This Row],[Net Volume]]<1,0,"Operado") -> Operado | N113: 251 | O113: 152.23 | P113: 12.3 | Q113: 0 | R113: 120 | S113: 284.53 | T113: 108.53 | U113: =IF(DataColl[[#This Row],[Error]]<>"X",((DataColl[[#This Row],[GrossRev]]-DataColl[[#This Row],[DiscExp]])*VALUE(MID(DataColl[[#Headers],[MNA20%]],4,3)))+(DataColl[[#This Row],[GrossRev]]*0.05),0) -> 49.4265 | V113: 9.11 | W113: 5 | X113: 7.5 | Y113: =SUM(DataColl[[#This Row],[DiscExp]:[Tot MiscExp]]) -> 179.5665 | Z113: =DataColl[[#This Row],[GrossRev]]-DataColl[[#This Row],[GrossExp]] -> 104.9635 | AA113: =IF(DataColl[[#This Row],[Error]]="X",DataColl[[#This Row],[TotResidual Earnings]],0) -> 0
C114: 109 | D114: MS000MNA | E114: MNA02 | F114: TACOS JALISCO | G114: MS000MNAA1 | H114: 8032019443 | I114: 201711 NOV | J114: =IF(DataColl[[#This Row],[Period]]<>"",DATE(LEFT(DataColl[[#This Row],[Period]],4),MID(DataColl[[#This Row],[Period]],5,2),1),"") -> 2017-11-01 | K114: =(DataColl[[#This Row],[MID]]*100000)+DataColl[[#This Row],[Period_]] -> 803201944343040 | L114: 1660.39 | M114: =IF(DataColl[[#This Row],[Net Volume]]<1,0,"Operado") -> Operado | N114: 110 | O114: 60.94 | P114: 5.5 | Q114: 0 | R114: 0 | S114: 66.44 | T114: 44.43 | U114: =IF(DataColl[[#This Row],[Error]]<>"X",((DataColl[[#This Row],[GrossRev]]-DataColl[[#This Row],[DiscExp]])*VALUE(MID(DataColl[[#Headers],[MNA20%]],4,3)))+(DataColl[[#This Row],[GrossRev]]*0.05),0) -> 7.724 | V114: 1.85 | W114: 2.18 | X114: 0 | Y114: =SUM(DataColl[[#This Row],[DiscExp]:[Tot MiscExp]]) -> 56.184 | Z114: =DataColl[[#This Row],[GrossRev]]-DataColl[[#This Row],[GrossExp]] -> 10.256 | AA114: =IF(DataColl[[#This Row],[Error]]="X",DataColl[[#This Row],[TotResidual Earnings]],0) -> 0
C115: 110 | D115: MS000MNA | E115: MNA02 | F115: CAFFE VERONA | G115: MS000MNAA1 | H115: 8032029665 | I115: 201711 NOV | J115: =IF(DataColl[[#This Row],[Period]]<>"",DATE(LEFT(DataColl[[#This Row],[Period]],4),MID(DataColl[[#This Row],[Period]],5,2),1),"") -> 2017-11-01 | K115: =(DataColl[[#This Row],[MID]]*100000)+DataColl[[#This Row],[Period_]] -> 803202966543040 | L115: 1.25 | M115: =IF(DataColl[[#This Row],[Net Volume]]<1,0,"Operado") -> Operado | N115: 4 | O115: 1.19 | P115: 0.3 | Q115: 0 | R115: 120 | S115: 121.49 | T115: 0.99 | U115: =IF(DataColl[[#This Row],[Error]]<>"X",((DataColl[[#This Row],[GrossRev]]-DataColl[[#This Row],[DiscExp]])*VALUE(MID(DataColl[[#Headers],[MNA20%]],4,3)))+(DataColl[[#This Row],[GrossRev]]*0.05),0) -> 30.1745 | V115: 0.12 | W115: 0.08 | X115: 177 | Y115: =SUM(DataColl[[#This Row],[DiscExp]:[Tot MiscExp]]) -> 208.3645 | Z115: =DataColl[[#This Row],[GrossRev]]-DataColl[[#This Row],[GrossExp]] -> -86.8745 | AA115: =IF(DataColl[[#This Row],[Error]]="X",DataColl[[#This Row],[TotResidual Earnings]],0) -> 0
C116: 111 | D116: MS000MNA | E116: MNA02 | F116: EL AGAVE AZUL, RESTAURANT | G116: MS000MNAA1 | H116: 8032030135 | I116: 201711 NOV | J116: =IF(DataColl[[#This Row],[Period]]<>"",DATE(LEFT(DataColl[[#This Row],[Period]],4),MID(DataColl[[#This Row],[Period]],5,2),1),"") -> 2017-11-01 | K116: =(DataColl[[#This Row],[MID]]*100000)+DataColl[[#This Row],[Period_]] -> 803203013543040 | L116: 0 | M116: =IF(DataColl[[#This Row],[Net Volume]]<1,0,"Operado") -> 0 | N116: 0 | O116: 0.34 | P116: 0 | Q116: 0 | R116: 200 | S116: 200.34 | T116: 0.22 | U116: =IF(DataColl[[#This Row],[Error]]<>"X",((DataColl[[#This Row],[GrossRev]]-DataColl[[#This Row],[DiscExp]])*VALUE(MID(DataColl[[#Headers],[MNA20%]],4,3)))+(DataColl[[#This Row],[GrossRev]]*0.05),0) -> 50.041 | V116: 0.02 | W116: 0.02 | X116: 0 | Y116: =SUM(DataColl[[#This Row],[DiscExp]:[Tot MiscExp]]) -> 50.301 | Z116: =DataColl[[#This Row],[GrossRev]]-DataColl[[#This Row],[GrossExp]] -> 150.039 | AA116: =IF(DataColl[[#This Row],[Error]]="X",DataColl[[#This Row],[TotResidual Earnings]],0) -> 0
C117: 112 | D117: MS000MNA | E117: MNA01 | F117: VANCOUVER WINGS | G117: MS000MNAA1 | H117: 8032045620 | I117: 201711 NOV | J117: =IF(DataColl[[#This Row],[Period]]<>"",DATE(LEFT(DataColl[[#This Row],[Period]],4),MID(DataColl[[#This Row],[Period]],5,2),1),"") -> 2017-11-01 | K117: =(DataColl[[#This Row],[MID]]*100000)+DataColl[[#This Row],[Period_]] -> 803204562043040 | L117: 0 | M117: =IF(DataColl[[#This Row],[Net Volume]]<1,0,"Operado") -> 0 | N117: 0 | O117: 0 | P117: 0 | Q117: 0 | R117: 0 | S117: 0 | T117: 0 | U117: =IF(DataColl[[#This Row],[Error]]<>"X",((DataColl[[#This Row],[GrossRev]]-DataColl[[#This Row],[DiscExp]])*VALUE(MID(DataColl[[#Headers],[MNA20%]],4,3)))+(DataColl[[#This Row],[GrossRev]]*0.05),0) -> 0 | V117: 0 | W117: 0 | X117: 0 | Y117: =SUM(DataColl[[#This Row],[DiscExp]:[Tot MiscExp]]) -> 0 | Z117: =DataColl[[#This Row],[GrossRev]]-DataColl[[#This Row],[GrossExp]] -> 0 | AA117: =IF(DataColl[[#This Row],[Error]]="X",DataColl[[#This Row],[TotResidual Earnings]],0) -> 0
C118: =IF(C117="ConsD",1,C117+1) -> 113 | D118: MS000MNA | E118: MNA01 | F118: CACTUS COMIDA MEXICANA 1 | G118: MS000MNAA1 | H118: 8031689469 | I118: 201712 DEC | J118: =IF(DataColl[[#This Row],[Period]]<>"",DATE(LEFT(DataColl[[#This Row],[Period]],4),MID(DataColl[[#This Row],[Period]],5,2),1),"") -> 2017-12-01 | K118: =(DataColl[[#This Row],[MID]]*100000)+DataColl[[#This Row],[Period_]] -> 803168946943070 | L118: 41753.23 | M118: =IF(DataColl[[#This Row],[Net Volume]]<1,0,"Operado") -> Operado | N118: 2840 | O118: 1414.12 | P118: 288.88 | Q118: 0 | R118: 199.96 | S118: 1902.96 | T118: 947.76 | U118: =IF(DataColl[[#This Row],[Error]]<>"X",((DataColl[[#This Row],[GrossRev]]-DataColl[[#This Row],[DiscExp]])*VALUE(MID(DataColl[[#Headers],[MNA20%]],4,3)))+(DataColl[[#This Row],[GrossRev]]*0.05),0) -> 286.188 | V118: 129.64 | W118: 54.22 | X118: 74.99 | Y118: =SUM(DataColl[[#This Row],[DiscExp]:[Tot MiscExp]]) -> 1492.798 | Z118: =DataColl[[#This Row],[GrossRev]]-DataColl[[#This Row],[GrossExp]] -> 410.162 | AA118: =IF(DataColl[[#This Row],[Error]]="X",DataColl[[#This Row],[TotResidual Earnings]],0) -> 0
C119: 114 | D119: MS000MNA | E119: MNA01 | F119: SOLUCIONES ADMINISTRATIVAS | G119: MS000MNAA1 | H119: 8031693347 | I119: 201712 DEC | J119: =IF(DataColl[[#This Row],[Period]]<>"",DATE(LEFT(DataColl[[#This Row],[Period]],4),MID(DataColl[[#This Row],[Period]],5,2),1),"") -> 2017-12-01 | K119: =(DataColl[[#This Row],[MID]]*100000)+DataColl[[#This Row],[Period_]] -> 803169334743070 | L119: 0 | M119: =IF(DataColl[[#This Row],[Net Volume]]<1,0,"Operado") -> 0 | N119: 0 | O119: 0 | P119: 0 | Q119: 0 | R119: 0 | S119: 0 | T119: 0 | U119: =IF(DataColl[[#This Row],[Error]]<>"X",((DataColl[[#This Row],[GrossRev]]-DataColl[[#This Row],[DiscExp]])*VALUE(MID(DataColl[[#Headers],[MNA20%]],4,3)))+(DataColl[[#This Row],[GrossRev]]*0.05),0) -> 0 | V119: 0 | W119: 0 | X119: 0 | Y119: =SUM(DataColl[[#This Row],[DiscExp]:[Tot MiscExp]]) -> 0 | Z119: =DataColl[[#This Row],[GrossRev]]-DataColl[[#This Row],[GrossExp]] -> 0 | AA119: =IF(DataColl[[#This Row],[Error]]="X",DataColl[[#This Row],[TotResidual Earnings]],0) -> 0
C120: 115 | D120: MS000MNA | E120: MNA01 | F120: SOLUCIONES ADMINISTRATIVAS | G120: MS000MNAA1 | H120: 8031694931 | I120: 201712 DEC | J120: =IF(DataColl[[#This Row],[Period]]<>"",DATE(LEFT(DataColl[[#This Row],[Period]],4),MID(DataColl[[#This Row],[Period]],5,2),1),"") -> 2017-12-01 | K120: =(DataColl[[#This Row],[MID]]*100000)+DataColl[[#This Row],[Period_]] -> 803169493143070 | L120: 0 | M120: =IF(DataColl[[#This Row],[Net Volume]]<1,0,"Operado") -> 0 | N120: 0 | O120: 0 | P120: 0 | Q120: 0 | R120: 0 | S120: 0 | T120: 0 | U120: =IF(DataColl[[#This Row],[Error]]<>"X",((DataColl[[#This Row],[GrossRev]]-DataColl[[#This Row],[DiscExp]])*VALUE(MID(DataColl[[#Headers],[MNA20%]],4,3)))+(DataColl[[#This Row],[GrossRev]]*0.05),0) -> 0 | V120: 0 | W120: 0 | X120: 0 | Y120: =SUM(DataColl[[#This Row],[DiscExp]:[Tot MiscExp]]) -> 0 | Z120: =DataColl[[#This Row],[GrossRev]]-DataColl[[#This Row],[GrossExp]] -> 0 | AA120: =IF(DataColl[[#This Row],[Error]]="X",DataColl[[#This Row],[TotResidual Earnings]],0) -> 0
C121: 116 | D121: MS000MNA | E121: MNA01 | F121: CACTUS TAQUERIA 4 | G121: MS000MNAA1 | H121: 8031700076 | I121: 201712 DEC | J121: =IF(DataColl[[#This Row],[Period]]<>"",DATE(LEFT(DataColl[[#This Row],[Period]],4),MID(DataColl[[#This Row],[Period]],5,2),1),"") -> 2017-12-01 | K121: =(DataColl[[#This Row],[MID]]*100000)+DataColl[[#This Row],[Period_]] -> 803170007643070 | L121: 93012.44 | M121: =IF(DataColl[[#This Row],[Net Volume]]<1,0,"Operado") -> Operado | N121: 5801 | O121: 3081.15 | P121: 628.5 | Q121: 0 | R121: 144.96 | S121: 3854.61 | T121: 2055.95 | U121: =IF(DataColl[[#This Row],[Error]]<>"X",((DataColl[[#This Row],[GrossRev]]-DataColl[[#This Row],[DiscExp]])*VALUE(MID(DataColl[[#Headers],[MNA20%]],4,3)))+(DataColl[[#This Row],[GrossRev]]*0.05),0) -> 552.4625 | V121: 282.77 | W121: 109.44 | X121: 74.99 | Y121: =SUM(DataColl[[#This Row],[DiscExp]:[Tot MiscExp]]) -> 3075.6125 | Z121: =DataColl[[#This Row],[GrossRev]]-DataColl[[#This Row],[GrossExp]] -> 778.9975 | AA121: =IF(DataColl[[#This Row],[Error]]="X",DataColl[[#This Row],[TotResidual Earnings]],0) -> 0
C122: 117 | D122: MS000MNA | E122: MNA01 | F122: CACTUS TAQUERIA 3 | G122: MS000MNAA1 | H122: 8031700159 | I122: 201712 DEC | J122: =IF(DataColl[[#This Row],[Period]]<>"",DATE(LEFT(DataColl[[#This Row],[Period]],4),MID(DataColl[[#This Row],[Period]],5,2),1),"") -> 2017-12-01 | K122: =(DataColl[[#This Row],[MID]]*100000)+DataColl[[#This Row],[Period_]] -> 803170015943070 | L122: 0 | M122: =IF(DataColl[[#This Row],[Net Volume]]<1,0,"Operado") -> 0 | N122: 0 | O122: 15 | P122: 0 | Q122: 0 | R122: 144.96 | S122: 159.96 | T122: 7.5 | U122: =IF(DataColl[[#This Row],[Error]]<>"X",((DataColl[[#This Row],[GrossRev]]-DataColl[[#This Row],[DiscExp]])*VALUE(MID(DataColl[[#Headers],[MNA20%]],4,3)))+(DataColl[[#This Row],[GrossRev]]*0.05),0) -> 38.49 | V122: 0 | W122: 0 | X122: 74.99 | Y122: =SUM(DataColl[[#This Row],[DiscExp]:[Tot MiscExp]]) -> 120.98 | Z122: =DataColl[[#This Row],[GrossRev]]-DataColl[[#This Row],[GrossExp]] -> 38.98 | AA122: =IF(DataColl[[#This Row],[Error]]="X",DataColl[[#This Row],[TotResidual Earnings]],0) -> 0
C123: 118 | D123: MS000MNA | E123: MNA02 | F123: LAS PLAYAS DE DON ARTURO | G123: MS000MNAA1 | H123: 8031751814 | I123: 201712 DEC | J123: =IF(DataColl[[#This Row],[Period]]<>"",DATE(LEFT(DataColl[[#This Row],[Period]],4),MID(DataColl[[#This Row],[Period]],5,2),1),"") -> 2017-12-01 | K123: =(DataColl[[#This Row],[MID]]*100000)+DataColl[[#This Row],[Period_]] -> 803175181443070 | L123: 1297.85 | M123: =IF(DataColl[[#This Row],[Net Volume]]<1,0,"Operado") -> Operado | N123: 55 | O123: 43.97 | P123: 16.5 | Q123: 86.22 | R123: 129.99 | S123: 276.68 | T123: 34.8 | U123: =IF(DataColl[[#This Row],[Error]]<>"X",((DataColl[[#This Row],[GrossRev]]-DataColl[[#This Row],[DiscExp]])*VALUE(MID(DataColl[[#Headers],[MNA20%]],4,3)))+(DataColl[[#This Row],[GrossRev]]*0.05),0) -> 62.21 | V123: 4.08 | W123: 54.1125 | X123: 18 | Y123: =SUM(DataColl[[#This Row],[DiscExp]:[Tot MiscExp]]) -> 173.2025 | Z123: =DataColl[[#This Row],[GrossRev]]-DataColl[[#This Row],[GrossExp]] -> 103.4775 | AA123: =IF(DataColl[[#This Row],[Error]]="X",DataColl[[#This Row],[TotResidual Earnings]],0) -> 0
C124: 119 | D124: MS000MNA | E124: MNA01 | F124: LA PEQUENA CAKE DECORACION | G124: MS000MNAA1 | H124: 8031789327 | I124: 201712 DEC | J124: =IF(DataColl[[#This Row],[Period]]<>"",DATE(LEFT(DataColl[[#This Row],[Period]],4),MID(DataColl[[#This Row],[Period]],5,2),1),"") -> 2017-12-01 | K124: =(DataColl[[#This Row],[MID]]*100000)+DataColl[[#This Row],[Period_]] -> 803178932743070 | L124: 1129.15 | M124: =IF(DataColl[[#This Row],[Net Volume]]<1,0,"Operado") -> Operado | N124: 45 | O124: 29.52 | P124: 4.9 | Q124: 0.76 | R124: 129.96 | S124: 165.14 | T124: 17.65 | U124: =IF(DataColl[[#This Row],[Error]]<>"X",((DataColl[[#This Row],[GrossRev]]-DataColl[[#This Row],[DiscExp]])*VALUE(MID(DataColl[[#Headers],[MNA20%]],4,3)))+(DataColl[[#This Row],[GrossRev]]*0.05),0) -> 37.755 | V124: 2.06 | W124: 1.24 | X124: 74.99 | Y124: =SUM(DataColl[[#This Row],[DiscExp]:[Tot MiscExp]]) -> 133.695 | Z124: =DataColl[[#This Row],[GrossRev]]-DataColl[[#This Row],[GrossExp]] -> 31.445 | AA124: =IF(DataColl[[#This Row],[Error]]="X",DataColl[[#This Row],[TotResidual Earnings]],0) -> 0
C125: 120 | D125: MS000MNA | E125: MNA01 | F125: LA PEQUENA PANADERIA | G125: MS000MNAA1 | H125: 8031796280 | I125: 201712 DEC | J125: =IF(DataColl[[#This Row],[Period]]<>"",DATE(LEFT(DataColl[[#This Row],[Period]],4),MID(DataColl[[#This Row],[Period]],5,2),1),"") -> 2017-12-01 | K125: =(DataColl[[#This Row],[MID]]*100000)+DataColl[[#This Row],[Period_]] -> 803179628043070 | L125: 2319.3 | M125: =IF(DataColl[[#This Row],[Net Volume]]<1,0,"Operado") -> Operado | N125: 190 | O125: 98.35 | P125: 28.15 | Q125: 23.42 | R125: 130.95 | S125: 280.87 | T125: 65.61 | U125: =IF(DataColl[[#This Row],[Error]]<>"X",((DataColl[[#This Row],[GrossRev]]-DataColl[[#This Row],[DiscExp]])*VALUE(MID(DataColl[[#Headers],[MNA20%]],4,3)))+(DataColl[[#This Row],[GrossRev]]*0.05),0) -> 57.0955 | V125: 6.36 | W125: 16.52 | X125: 79.99 | Y125: =SUM(DataColl[[#This Row],[DiscExp]:[Tot MiscExp]]) -> 225.5755 | Z125: =DataColl[[#This Row],[GrossRev]]-DataColl[[#This Row],[GrossExp]] -> 55.2945 | AA125: =IF(DataColl[[#This Row],[Error]]="X",DataColl[[#This Row],[TotResidual Earnings]],0) -> 0
C126: 121 | D126: MS000MNA | E126: MNA01 | F126: PANCAKES CELESTIALES | G126: MS000MNAA1 | H126: 8031806311 | I126: 201712 DEC | J126: =IF(DataColl[[#This Row],[Period]]<>"",DATE(LEFT(DataColl[[#This Row],[Period]],4),MID(DataColl[[#This Row],[Period]],5,2),1),"") -> 2017-12-01 | K126: =(DataColl[[#This Row],[MID]]*100000)+DataColl[[#This Row],[Period_]] -> 803180631143070 | L126: 70443.38 | M126: =IF(DataColl[[#This Row],[Net Volume]]<1,0,"Operado") -> Operado | N126: 1832 | O126: 1808.28 | P126: 183 | Q126: 10.19 | R126: 129.96 | S126: 2131.43 | T126: 1025.48 | U126: =IF(DataColl[[#This Row],[Error]]<>"X",((DataColl[[#This Row],[GrossRev]]-DataColl[[#This Row],[DiscExp]])*VALUE(MID(DataColl[[#Headers],[MNA20%]],4,3)))+(DataColl[[#This Row],[GrossRev]]*0.05),0) -> 327.7615 | V126: 27.97 | W126: 39.82 | X126: 74.99 | Y126: =SUM(DataColl[[#This Row],[DiscExp]:[Tot MiscExp]]) -> 1496.0215 | Z126: =DataColl[[#This Row],[GrossRev]]-DataColl[[#This Row],[GrossExp]] -> 635.4085 | AA126: =IF(DataColl[[#This Row],[Error]]="X",DataColl[[#This Row],[TotResidual Earnings]],0) -> 0
C127: 122 | D127: MS000MNA | E127: MNA02 | F127: HELADOS MEXTY 2 | G127: MS000MNAA1 | H127: 8031806618 | I127: 201712 DEC | J127: =IF(DataColl[[#This Row],[Period]]<>"",DATE(LEFT(DataColl[[#This Row],[Period]],4),MID(DataColl[[#This Row],[Period]],5,2),1),"") -> 2017-12-01 | K127: =(DataColl[[#This Row],[MID]]*100000)+DataColl[[#This Row],[Period_]] -> 803180661843070 | L127: 689.57 | M127: =IF(DataColl[[#This Row],[Net Volume]]<1,0,"Operado") -> Operado | N127: 58 | O127: 24.19 | P127: 3 | Q127: 24.51 | R127: 100 | S127: 151.7 | T127: 19.17 | U127: =IF(DataColl[[#This Row],[Error]]<>"X",((DataColl[[#This Row],[GrossRev]]-DataColl[[#This Row],[DiscExp]])*VALUE(MID(DataColl[[#Headers],[MNA20%]],4,3)))+(DataColl[[#This Row],[GrossRev]]*0.05),0) -> 34.091 | V127: 1.35 | W127: 20.4 | X127: 13 | Y127: =SUM(DataColl[[#This Row],[DiscExp]:[Tot MiscExp]]) -> 88.011 | Z127: =DataColl[[#This Row],[GrossRev]]-DataColl[[#This Row],[GrossExp]] -> 63.689 | AA127: =IF(DataColl[[#This Row],[Error]]="X",DataColl[[#This Row],[TotResidual Earnings]],0) -> 0
C128: 123 | D128: MS000MNA | E128: MNA02 | F128: HELADOS MEXTY | G128: MS000MNAA1 | H128: 8031806667 | I128: 201712 DEC | J128: =IF(DataColl[[#This Row],[Period]]<>"",DATE(LEFT(DataColl[[#This Row],[Period]],4),MID(DataColl[[#This Row],[Period]],5,2),1),"") -> 2017-12-01 | K128: =(DataColl[[#This Row],[MID]]*100000)+DataColl[[#This Row],[Period_]] -> 803180666743070 | L128: 443.39 | M128: =IF(DataColl[[#This Row],[Net Volume]]<1,0,"Operado") -> Operado | N128: 42 | O128: 42.48 | P128: 2.2 | Q128: 5.35 | R128: 5 | S128: 55.03 | T128: 25.285 | U128: =IF(DataColl[[#This Row],[Error]]<>"X",((DataColl[[#This Row],[GrossRev]]-DataColl[[#This Row],[DiscExp]])*VALUE(MID(DataColl[[#Headers],[MNA20%]],4,3)))+(DataColl[[#This Row],[GrossRev]]*0.05),0) -> 8.7005 | V128: 1.5 | W128: 5.07 | X128: 15 | Y128: =SUM(DataColl[[#This Row],[DiscExp]:[Tot MiscExp]]) -> 55.5555 | Z128: =DataColl[[#This Row],[GrossRev]]-DataColl[[#This Row],[GrossExp]] -> -0.5255 | AA128: =IF(DataColl[[#This Row],[Error]]="X",DataColl[[#This Row],[TotResidual Earnings]],0) -> 0
C129: 124 | D129: MS000MNA | E129: MNA01 | F129: TORTAS MEXICO RESTAURANT | G129: MS000MNAA1 | H129: 8031806931 | I129: 201712 DEC | J129: =IF(DataColl[[#This Row],[Period]]<>"",DATE(LEFT(DataColl[[#This Row],[Period]],4),MID(DataColl[[#This Row],[Period]],5,2),1),"") -> 2017-12-01 | K129: =(DataColl[[#This Row],[MID]]*100000)+DataColl[[#This Row],[Period_]] -> 803180693143070 | L129: 18056.51 | M129: =IF(DataColl[[#This Row],[Net Volume]]<1,0,"Operado") -> Operado | N129: 939 | O129: 604.72 | P129: 95.9 | Q129: 2.03 | R129: 129.96 | S129: 832.61 | T129: 378.08 | U129: =IF(DataColl[[#This Row],[Error]]<>"X",((DataColl[[#This Row],[GrossRev]]-DataColl[[#This Row],[DiscExp]])*VALUE(MID(DataColl[[#Headers],[MNA20%]],4,3)))+(DataColl[[#This Row],[GrossRev]]*0.05),0) -> 132.5365 | V129: 15.27 | W129: 18.99 | X129: 74.99 | Y129: =SUM(DataColl[[#This Row],[DiscExp]:[Tot MiscExp]]) -> 619.8665 | Z129: =DataColl[[#This Row],[GrossRev]]-DataColl[[#This Row],[GrossExp]] -> 212.7435 | AA129: =IF(DataColl[[#This Row],[Error]]="X",DataColl[[#This Row],[TotResidual Earnings]],0) -> 0
C130: 125 | D130: MS000MNA | E130: MNA02 | F130: CARNITAS EL REY | G130: MS000MNAA1 | H130: 8031816237 | I130: 201712 DEC | J130: =IF(DataColl[[#This Row],[Period]]<>"",DATE(LEFT(DataColl[[#This Row],[Period]],4),MID(DataColl[[#This Row],[Period]],5,2),1),"") -> 2017-12-01 | K130: =(DataColl[[#This Row],[MID]]*100000)+DataColl[[#This Row],[Period_]] -> 803181623743070 | L130: 71746.54 | M130: =IF(DataColl[[#This Row],[Net Volume]]<1,0,"Operado") -> Operado | N130: 3123 | O130: 1607.42 | P130: 446.9 | Q130: 0 | R130: 20 | S130: 2074.32 | T130: 1162.24 | U130: =IF(DataColl[[#This Row],[Error]]<>"X",((DataColl[[#This Row],[GrossRev]]-DataColl[[#This Row],[DiscExp]])*VALUE(MID(DataColl[[#Headers],[MNA20%]],4,3)))+(DataColl[[#This Row],[GrossRev]]*0.05),0) -> 286.132 | V130: 48.41 | W130: 61.64 | X130: 13 | Y130: =SUM(DataColl[[#This Row],[DiscExp]:[Tot MiscExp]]) -> 1571.422 | Z130: =DataColl[[#This Row],[GrossRev]]-DataColl[[#This Row],[GrossExp]] -> 502.898 | AA130: =IF(DataColl[[#This Row],[Error]]="X",DataColl[[#This Row],[TotResidual Earnings]],0) -> 0
C131: 126 | D131: MS000MNA | E131: MNA02 | F131: CARNITAS EL REY 2 | G131: MS000MNAA1 | H131: 8031816310 | I131: 201712 DEC | J131: =IF(DataColl[[#This Row],[Period]]<>"",DATE(LEFT(DataColl[[#This Row],[Period]],4),MID(DataColl[[#This Row],[Period]],5,2),1),"") -> 2017-12-01 | K131: =(DataColl[[#This Row],[MID]]*100000)+DataColl[[#This Row],[Period_]] -> 803181631043070 | L131: 0.01 | M131: =IF(DataColl[[#This Row],[Net Volume]]<1,0,"Operado") -> 0 | N131: 1 | O131: 35.09 | P131: 0.15 | Q131: 0 | R131: 20 | S131: 55.24 | T131: 17.615 | U131: =IF(DataColl[[#This Row],[Error]]<>"X",((DataColl[[#This Row],[GrossRev]]-DataColl[[#This Row],[DiscExp]])*VALUE(MID(DataColl[[#Headers],[MNA20%]],4,3)))+(DataColl[[#This Row],[GrossRev]]*0.05),0) -> 10.287 | V131: 0.04 | W131: 0.02 | X131: 13 | Y131: =SUM(DataColl[[#This Row],[DiscExp]:[Tot MiscExp]]) -> 40.962 | Z131: =DataColl[[#This Row],[GrossRev]]-DataColl[[#This Row],[GrossExp]] -> 14.278 | AA131: =IF(DataColl[[#This Row],[Error]]="X",DataColl[[#This Row],[TotResidual Earnings]],0) -> 0
C132: 127 | D132: MS000MNA | E132: MNA02 | F132: ELIAS BABY FASHION | G132: MS000MNAA1 | H132: 8031816385 | I132: 201712 DEC | J132: =IF(DataColl[[#This Row],[Period]]<>"",DATE(LEFT(DataColl[[#This Row],[Period]],4),MID(DataColl[[#This Row],[Period]],5,2),1),"") -> 2017-12-01 | K132: =(DataColl[[#This Row],[MID]]*100000)+DataColl[[#This Row],[Period_]] -> 803181638543070 | L132: 3855.23 | M132: =IF(DataColl[[#This Row],[Net Volume]]<1,0,"Operado") -> Operado | N132: 50 | O132: 70.45 | P132: 2.5 | Q132: 3.22 | R132: 30 | S132: 106.17 | T132: 51.09 | U132: =IF(DataColl[[#This Row],[Error]]<>"X",((DataColl[[#This Row],[GrossRev]]-DataColl[[#This Row],[DiscExp]])*VALUE(MID(DataColl[[#Headers],[MNA20%]],4,3)))+(DataColl[[#This Row],[GrossRev]]*0.05),0) -> 16.3245 | V132: 1.08 | W132: 3.57 | X132: 15 | Y132: =SUM(DataColl[[#This Row],[DiscExp]:[Tot MiscExp]]) -> 87.0645 | Z132: =DataColl[[#This Row],[GrossRev]]-DataColl[[#This Row],[GrossExp]] -> 19.1055 | AA132: =IF(DataColl[[#This Row],[Error]]="X",DataColl[[#This Row],[TotResidual Earnings]],0) -> 0
C133: 128 | D133: MS000MNA | E133: MNA02 | F133: GELI DELISH | G133: MS000MNAA1 | H133: 8031818316 | I133: 201712 DEC | J133: =IF(DataColl[[#This Row],[Period]]<>"",DATE(LEFT(DataColl[[#This Row],[Period]],4),MID(DataColl[[#This Row],[Period]],5,2),1),"") -> 2017-12-01 | K133: =(DataColl[[#This Row],[MID]]*100000)+DataColl[[#This Row],[Period_]] -> 803181831643070 | L133: 0 | M133: =IF(DataColl[[#This Row],[Net Volume]]<1,0,"Operado") -> 0 | N133: 0 | O133: 0 | P133: 0 | Q133: 0 | R133: 0 | S133: 0 | T133: 0 | U133: =IF(DataColl[[#This Row],[Error]]<>"X",((DataColl[[#This Row],[GrossRev]]-DataColl[[#This Row],[DiscExp]])*VALUE(MID(DataColl[[#Headers],[MNA20%]],4,3)))+(DataColl[[#This Row],[GrossRev]]*0.05),0) -> 0 | V133: 0 | W133: 0 | X133: 0 | Y133: =SUM(DataColl[[#This Row],[DiscExp]:[Tot MiscExp]]) -> 0 | Z133: =DataColl[[#This Row],[GrossRev]]-DataColl[[#This Row],[GrossExp]] -> 0 | AA133: =IF(DataColl[[#This Row],[Error]]="X",DataColl[[#This Row],[TotResidual Earnings]],0) -> 0
C134: 129 | D134: ="MS000MNA" -> MS000MNA | E134: MNA01 | F134: MANUELITOS RESTAURANT Y TAQUERIA | G134: MS000MNAA1 | H134: 8031819561 | I134: 201712 DEC | J134: =IF(DataColl[[#This Row],[Period]]<>"",DATE(LEFT(DataColl[[#This Row],[Period]],4),MID(DataColl[[#This Row],[Period]],5,2),1),"") -> 2017-12-01 | K134: =(DataColl[[#This Row],[MID]]*100000)+DataColl[[#This Row],[Period_]] -> 803181956143070 | L134: 12178.65 | M134: =IF(DataColl[[#This Row],[Net Volume]]<1,0,"Operado") -> Operado | N134: 534 | O134: 332.83 | P134: 54.8 | Q134: 1.89 | R134: 129.87 | S134: 519.39 | T134: 185.39 | U134: =IF(DataColl[[#This Row],[Error]]<>"X",((DataColl[[#This Row],[GrossRev]]-DataColl[[#This Row],[DiscExp]])*VALUE(MID(DataColl[[#Headers],[MNA20%]],4,3)))+(DataColl[[#This Row],[GrossRev]]*0.05),0) -> 92.7695 | V134: 8.64 | W134: 11.57 | X134: 74.99 | Y134: =SUM(DataColl[[#This Row],[DiscExp]:[Tot MiscExp]]) -> 373.3595 | Z134: =DataColl[[#This Row],[GrossRev]]-DataColl[[#This Row],[GrossExp]] -> 146.0305 | AA134: =IF(DataColl[[#This Row],[Error]]="X",DataColl[[#This Row],[TotResidual Earnings]],0) -> 0
C135: 130 | D135: MS000MNA | E135: MNA01 | F135: ANGEL RADIADOES 1 | G135: MS000MNAA1 | H135: 8031820353 | I135: 201712 DEC | J135: =IF(DataColl[[#This Row],[Period]]<>"",DATE(LEFT(DataColl[[#This Row],[Period]],4),MID(DataColl[[#This Row],[Period]],5,2),1),"") -> 2017-12-01 | K135: =(DataColl[[#This Row],[MID]]*100000)+DataColl[[#This Row],[Period_]] -> 803182035343070 | L135: 19246.8 | M135: =IF(DataColl[[#This Row],[Net Volume]]<1,0,"Operado") -> Operado | N135: 168 | O135: 316.25 | P135: 18.6 | Q135: 56.13 | R135: 129.96 | S135: 520.94 | T135: 194.24 | U135: =IF(DataColl[[#This Row],[Error]]<>"X",((DataColl[[#This Row],[GrossRev]]-DataColl[[#This Row],[DiscExp]])*VALUE(MID(DataColl[[#Headers],[MNA20%]],4,3)))+(DataColl[[#This Row],[GrossRev]]*0.05),0) -> 91.387 | V135: 3.2 | W135: 32.42 | X135: 74.99 | Y135: =SUM(DataColl[[#This Row],[DiscExp]:[Tot MiscExp]]) -> 396.237 | Z135: =DataColl[[#This Row],[GrossRev]]-DataColl[[#This Row],[GrossExp]] -> 124.703 | AA135: =IF(DataColl[[#This Row],[Error]]="X",DataColl[[#This Row],[TotResidual Earnings]],0) -> 0
C136: 131 | D136: MS000MNA | E136: MNA02 | F136: PANADERIA DE ANA | G136: MS000MNAA1 | H136: 8031821096 | I136: 201712 DEC | J136: =IF(DataColl[[#This Row],[Period]]<>"",DATE(LEFT(DataColl[[#This Row],[Period]],4),MID(DataColl[[#This Row],[Period]],5,2),1),"") -> 2017-12-01 | K136: =(DataColl[[#This Row],[MID]]*100000)+DataColl[[#This Row],[Period_]] -> 803182109643070 | L136: 2919.94 | M136: =IF(DataColl[[#This Row],[Net Volume]]<1,0,"Operado") -> Operado | N136: 98 | O136: 73.81 | P136: 5.66 | Q136: 25.35 | R136: 10 | S136: 114.82 | T136: 56.33 | U136: =IF(DataColl[[#This Row],[Error]]<>"X",((DataColl[[#This Row],[GrossRev]]-DataColl[[#This Row],[DiscExp]])*VALUE(MID(DataColl[[#Headers],[MNA20%]],4,3)))+(DataColl[[#This Row],[GrossRev]]*0.05),0) -> 17.439 | V136: 2.83 | W136: 16.65 | X136: 18 | Y136: =SUM(DataColl[[#This Row],[DiscExp]:[Tot MiscExp]]) -> 111.249 | Z136: =DataColl[[#This Row],[GrossRev]]-DataColl[[#This Row],[GrossExp]] -> 3.571 | AA136: =IF(DataColl[[#This Row],[Error]]="X",DataColl[[#This Row],[TotResidual Earnings]],0) -> 0
C137: 132 | D137: MS000MNA | E137: MNA02 | F137: DIETERS MOTORES IMPORTADOS | G137: MS000MNAA1 | H137: 8031821211 | I137: 201712 DEC | J137: =IF(DataColl[[#This Row],[Period]]<>"",DATE(LEFT(DataColl[[#This Row],[Period]],4),MID(DataColl[[#This Row],[Period]],5,2),1),"") -> 2017-12-01 | K137: =(DataColl[[#This Row],[MID]]*100000)+DataColl[[#This Row],[Period_]] -> 803182121143070 | L137: 22940.34 | M137: =IF(DataColl[[#This Row],[Net Volume]]<1,0,"Operado") -> Operado | N137: 49 | O137: 498.73 | P137: 2.6 | Q137: 1.53 | R137: 20 | S137: 522.86 | T137: 407.71 | U137: =IF(DataColl[[#This Row],[Error]]<>"X",((DataColl[[#This Row],[GrossRev]]-DataColl[[#This Row],[DiscExp]])*VALUE(MID(DataColl[[#Headers],[MNA20%]],4,3)))+(DataColl[[#This Row],[GrossRev]]*0.05),0) -> 49.173 | V137: 1.11 | W137: 1.77 | X137: 13 | Y137: =SUM(DataColl[[#This Row],[DiscExp]:[Tot MiscExp]]) -> 472.763 | Z137: =DataColl[[#This Row],[GrossRev]]-DataColl[[#This Row],[GrossExp]] -> 50.097 | AA137: =IF(DataColl[[#This Row],[Error]]="X",DataColl[[#This Row],[TotResidual Earnings]],0) -> 0
C138: 133 | D138: MS000MNA | E138: MNA01 | F138: TIOS CAFE | G138: MS000MNAA1 | H138: 8031825485 | I138: 201712 DEC | J138: =IF(DataColl[[#This Row],[Period]]<>"",DATE(LEFT(DataColl[[#This Row],[Period]],4),MID(DataColl[[#This Row],[Period]],5,2),1),"") -> 2017-12-01 | K138: =(DataColl[[#This Row],[MID]]*100000)+DataColl[[#This Row],[Period_]] -> 803182548543070 | L138: 33114.15 | M138: =IF(DataColl[[#This Row],[Net Volume]]<1,0,"Operado") -> Operado | N138: 1057 | O138: 957.58 | P138: 103 | Q138: 0.68 | R138: 149.96 | S138: 1211.22 | T138: 579.06 | U138: =IF(DataColl[[#This Row],[Error]]<>"X",((DataColl[[#This Row],[GrossRev]]-DataColl[[#This Row],[DiscExp]])*VALUE(MID(DataColl[[#Headers],[MNA20%]],4,3)))+(DataColl[[#This Row],[GrossRev]]*0.05),0) -> 186.993 | V138: 15.91 | W138: 20.7 | X138: 94.99 | Y138: =SUM(DataColl[[#This Row],[DiscExp]:[Tot MiscExp]]) -> 897.653 | Z138: =DataColl[[#This Row],[GrossRev]]-DataColl[[#This Row],[GrossExp]] -> 313.567 | AA138: =IF(DataColl[[#This Row],[Error]]="X",DataColl[[#This Row],[TotResidual Earnings]],0) -> 0
C139: 134 | D139: MS000MNA | E139: MNA01 | F139: ANGEL RADIADOES 2 | G139: MS000MNAA1 | H139: 8031843744 | I139: 201712 DEC | J139: =IF(DataColl[[#This Row],[Period]]<>"",DATE(LEFT(DataColl[[#This Row],[Period]],4),MID(DataColl[[#This Row],[Period]],5,2),1),"") -> 2017-12-01 | K139: =(DataColl[[#This Row],[MID]]*100000)+DataColl[[#This Row],[Period_]] -> 803184374443070 | L139: 24215.28 | M139: =IF(DataColl[[#This Row],[Net Volume]]<1,0,"Operado") -> Operado | N139: 109 | O139: 448.76 | P139: 12.1 | Q139: 29.66 | R139: 129.96 | S139: 620.48 | T139: 307.73 | U139: =IF(DataColl[[#This Row],[Error]]<>"X",((DataColl[[#This Row],[GrossRev]]-DataColl[[#This Row],[DiscExp]])*VALUE(MID(DataColl[[#Headers],[MNA20%]],4,3)))+(DataColl[[#This Row],[GrossRev]]*0.05),0) -> 93.574 | V139: 2.2 | W139: 18.2 | X139: 74.99 | Y139: =SUM(DataColl[[#This Row],[DiscExp]:[Tot MiscExp]]) -> 496.694 | Z139: =DataColl[[#This Row],[GrossRev]]-DataColl[[#This Row],[GrossExp]] -> 123.786 | AA139: =IF(DataColl[[#This Row],[Error]]="X",DataColl[[#This Row],[TotResidual Earnings]],0) -> 0
C140: 135 | D140: MS000MNA | E140: MNA02 | F140: JESSES TACO DE MEXICO | G140: MS000MNAA1 | H140: 8031845202 | I140: 201712 DEC | J140: =IF(DataColl[[#This Row],[Period]]<>"",DATE(LEFT(DataColl[[#This Row],[Period]],4),MID(DataColl[[#This Row],[Period]],5,2),1),"") -> 2017-12-01 | K140: =(DataColl[[#This Row],[MID]]*100000)+DataColl[[#This Row],[Period_]] -> 803184520243070 | L140: 45196.97 | M140: =IF(DataColl[[#This Row],[Net Volume]]<1,0,"Operado") -> Operado | N140: 2906 | O140: 1208.22 | P140: 176.1 | Q140: 0 | R140: 50 | S140: 1434.32 | T140: 876.8 | U140: =IF(DataColl[[#This Row],[Error]]<>"X",((DataColl[[#This Row],[GrossRev]]-DataColl[[#This Row],[DiscExp]])*VALUE(MID(DataColl[[#Headers],[MNA20%]],4,3)))+(DataColl[[#This Row],[GrossRev]]*0.05),0) -> 183.22 | V140: 103.82 | W140: 57.54 | X140: 13 | Y140: =SUM(DataColl[[#This Row],[DiscExp]:[Tot MiscExp]]) -> 1234.38 | Z140: =DataColl[[#This Row],[GrossRev]]-DataColl[[#This Row],[GrossExp]] -> 199.94 | AA140: =IF(DataColl[[#This Row],[Error]]="X",DataColl[[#This Row],[TotResidual Earnings]],0) -> 0
C141: 136 | D141: MS000MNA | E141: MNA02 | F141: LA ESTRELLA MARKET | G141: MS000MNAA1 | H141: 8031845368 | I141: 201712 DEC | J141: =IF(DataColl[[#This Row],[Period]]<>"",DATE(LEFT(DataColl[[#This Row],[Period]],4),MID(DataColl[[#This Row],[Period]],5,2),1),"") -> 2017-12-01 | K141: =(DataColl[[#This Row],[MID]]*100000)+DataColl[[#This Row],[Period_]] -> 803184536843070 | L141: 9889.74 | M141: =IF(DataColl[[#This Row],[Net Volume]]<1,0,"Operado") -> Operado | N141: 507 | O141: 255.56 | P141: 50.6 | Q141: 266.35 | R141: 40 | S141: 612.51 | T141: 181.45 | U141: =IF(DataColl[[#This Row],[Error]]<>"X",((DataColl[[#This Row],[GrossRev]]-DataColl[[#This Row],[DiscExp]])*VALUE(MID(DataColl[[#Headers],[MNA20%]],4,3)))+(DataColl[[#This Row],[GrossRev]]*0.05),0) -> 116.8375 | V141: 8.61 | W141: 228.83 | X141: 20 | Y141: =SUM(DataColl[[#This Row],[DiscExp]:[Tot MiscExp]]) -> 555.7275 | Z141: =DataColl[[#This Row],[GrossRev]]-DataColl[[#This Row],[GrossExp]] -> 56.7825 | AA141: =IF(DataColl[[#This Row],[Error]]="X",DataColl[[#This Row],[TotResidual Earnings]],0) -> 0
C142: 137 | D142: MS000MNA | E142: MNA01 | F142: LABORATORIOS DENTALES HICERAM | G142: MS000MNAA1 | H142: 8031858239 | I142: 201712 DEC | J142: =IF(DataColl[[#This Row],[Period]]<>"",DATE(LEFT(DataColl[[#This Row],[Period]],4),MID(DataColl[[#This Row],[Period]],5,2),1),"") -> 2017-12-01 | K142: =(DataColl[[#This Row],[MID]]*100000)+DataColl[[#This Row],[Period_]] -> 803185823943070 | L142: 8588 | M142: =IF(DataColl[[#This Row],[Net Volume]]<1,0,"Operado") -> Operado | N142: 4 | O142: 208.98 | P142: 0.4 | Q142: 0 | R142: 142.95 | S142: 352.33 | T142: 167.12 | U142: =IF(DataColl[[#This Row],[Error]]<>"X",((DataColl[[#This Row],[GrossRev]]-DataColl[[#This Row],[DiscExp]])*VALUE(MID(DataColl[[#Headers],[MNA20%]],4,3)))+(DataColl[[#This Row],[GrossRev]]*0.05),0) -> 54.6585 | V142: 0.12 | W142: 0.08 | X142: 84.99 | Y142: =SUM(DataColl[[#This Row],[DiscExp]:[Tot MiscExp]]) -> 306.9685 | Z142: =DataColl[[#This Row],[GrossRev]]-DataColl[[#This Row],[GrossExp]] -> 45.3615 | AA142: =IF(DataColl[[#This Row],[Error]]="X",DataColl[[#This Row],[TotResidual Earnings]],0) -> 0
C143: 138 | D143: MS000MNA | E143: MNA02 | F143: VC ARENA | G143: MS000MNAA1 | H143: 8031858973 | I143: 201712 DEC | J143: =IF(DataColl[[#This Row],[Period]]<>"",DATE(LEFT(DataColl[[#This Row],[Period]],4),MID(DataColl[[#This Row],[Period]],5,2),1),"") -> 2017-12-01 | K143: =(DataColl[[#This Row],[MID]]*100000)+DataColl[[#This Row],[Period_]] -> 803185897343070 | L143: 6970.08 | M143: =IF(DataColl[[#This Row],[Net Volume]]<1,0,"Operado") -> Operado | N143: 115 | O143: 134.87 | P143: 5.8 | Q143: 52.81 | R143: 30 | S143: 223.48 | T143: 123.87 | U143: =IF(DataColl[[#This Row],[Error]]<>"X",((DataColl[[#This Row],[GrossRev]]-DataColl[[#This Row],[DiscExp]])*VALUE(MID(DataColl[[#Headers],[MNA20%]],4,3)))+(DataColl[[#This Row],[GrossRev]]*0.05),0) -> 31.096 | V143: 2.2 | W143: 45.12 | X143: 113 | Y143: =SUM(DataColl[[#This Row],[DiscExp]:[Tot MiscExp]]) -> 315.286 | Z143: =DataColl[[#This Row],[GrossRev]]-DataColl[[#This Row],[GrossExp]] -> -91.806 | AA143: =IF(DataColl[[#This Row],[Error]]="X",DataColl[[#This Row],[TotResidual Earnings]],0) -> 0
C144: 139 | D144: MS000MNA | E144: MNA02 | F144: LLANTAS AV | G144: MS000MNAA1 | H144: 8031864849 | I144: 201712 DEC | J144: =IF(DataColl[[#This Row],[Period]]<>"",DATE(LEFT(DataColl[[#This Row],[Period]],4),MID(DataColl[[#This Row],[Period]],5,2),1),"") -> 2017-12-01 | K144: =(DataColl[[#This Row],[MID]]*100000)+DataColl[[#This Row],[Period_]] -> 803186484943070 | L144: 110550.27 | M144: =IF(DataColl[[#This Row],[Net Volume]]<1,0,"Operado") -> Operado | N144: 450 | O144: 2237.4 | P144: 46.15 | Q144: 230 | R144: 15 | S144: 2528.55 | T144: 1688.92 | U144: =IF(DataColl[[#This Row],[Error]]<>"X",((DataColl[[#This Row],[GrossRev]]-DataColl[[#This Row],[DiscExp]])*VALUE(MID(DataColl[[#Headers],[MNA20%]],4,3)))+(DataColl[[#This Row],[GrossRev]]*0.05),0) -> 294.3535 | V144: 8.78 | W144: 175.9425 | X144: 15 | Y144: =SUM(DataColl[[#This Row],[DiscExp]:[Tot MiscExp]]) -> 2182.996 | Z144: =DataColl[[#This Row],[GrossRev]]-DataColl[[#This Row],[GrossExp]] -> 345.554 | AA144: =IF(DataColl[[#This Row],[Error]]="X",DataColl[[#This Row],[TotResidual Earnings]],0) -> 0
C145: 140 | D145: MS000MNA | E145: MNA01 | F145: GLASS BOTTOM DISTRIBUTORES | G145: MS000MNAA1 | H145: 8031873345 | I145: 201712 DEC | J145: =IF(DataColl[[#This Row],[Period]]<>"",DATE(LEFT(DataColl[[#This Row],[Period]],4),MID(DataColl[[#This Row],[Period]],5,2),1),"") -> 2017-12-01 | K145: =(DataColl[[#This Row],[MID]]*100000)+DataColl[[#This Row],[Period_]] -> 803187334543070 | L145: 539.85 | M145: =IF(DataColl[[#This Row],[Net Volume]]<1,0,"Operado") -> Operado | N145: 3 | O145: 21.94 | P145: 0.3 | Q145: 0 | R145: 69.97 | S145: 92.21 | T145: 13.675 | U145: =IF(DataColl[[#This Row],[Error]]<>"X",((DataColl[[#This Row],[GrossRev]]-DataColl[[#This Row],[DiscExp]])*VALUE(MID(DataColl[[#Headers],[MNA20%]],4,3)))+(DataColl[[#This Row],[GrossRev]]*0.05),0) -> 20.3175 | V145: 0.1 | W145: 0.04 | X145: 15 | Y145: =SUM(DataColl[[#This Row],[DiscExp]:[Tot MiscExp]]) -> 49.1325 | Z145: =DataColl[[#This Row],[GrossRev]]-DataColl[[#This Row],[GrossExp]] -> 43.0775 | AA145: =IF(DataColl[[#This Row],[Error]]="X",DataColl[[#This Row],[TotResidual Earnings]],0) -> 0
C146: 141 | D146: MS000MNA | E146: MNA02 | F146: FUNERARIA LLC | G146: MS000MNAA1 | H146: 8031874814 | I146: 201712 DEC | J146: =IF(DataColl[[#This Row],[Period]]<>"",DATE(LEFT(DataColl[[#This Row],[Period]],4),MID(DataColl[[#This Row],[Period]],5,2),1),"") -> 2017-12-01 | K146: =(DataColl[[#This Row],[MID]]*100000)+DataColl[[#This Row],[Period_]] -> 803187481443070 | L146: 46665.5 | M146: =IF(DataColl[[#This Row],[Net Volume]]<1,0,"Operado") -> Operado | N146: 15 | O146: 794.97 | P146: 0.17 | Q146: 0 | R146: 30 | S146: 825.14 | T146: 521.18 | U146: =IF(DataColl[[#This Row],[Error]]<>"X",((DataColl[[#This Row],[GrossRev]]-DataColl[[#This Row],[DiscExp]])*VALUE(MID(DataColl[[#Headers],[MNA20%]],4,3)))+(DataColl[[#This Row],[GrossRev]]*0.05),0) -> 102.049 | V146: 0.8 | W146: 0.3 | X146: 13 | Y146: =SUM(DataColl[[#This Row],[DiscExp]:[Tot MiscExp]]) -> 637.329 | Z146: =DataColl[[#This Row],[GrossRev]]-DataColl[[#This Row],[GrossExp]] -> 187.811 | AA146: =IF(DataColl[[#This Row],[Error]]="X",DataColl[[#This Row],[TotResidual Earnings]],0) -> 0
C147: 142 | D147: MS000MNA | E147: MNA01 | F147: RASPADOS GDL | G147: MS000MNAA1 | H147: 8031890828 | I147: 201712 DEC | J147: =IF(DataColl[[#This Row],[Period]]<>"",DATE(LEFT(DataColl[[#This Row],[Period]],4),MID(DataColl[[#This Row],[Period]],5,2),1),"") -> 2017-12-01 | K147: =(DataColl[[#This Row],[MID]]*100000)+DataColl[[#This Row],[Period_]] -> 803189082843070 | L147: 2652.84 | M147: =IF(DataColl[[#This Row],[Net Volume]]<1,0,"Operado") -> Operado | N147: 278 | O147: 111.26 | P147: 28.1 | Q147: 48.82 | R147: -920.03 | S147: -731.85 | T147: 77.34 | U147: =IF(DataColl[[#This Row],[Error]]<>"X",((DataColl[[#This Row],[GrossRev]]-DataColl[[#This Row],[DiscExp]])*VALUE(MID(DataColl[[#Headers],[MNA20%]],4,3)))+(DataColl[[#This Row],[GrossRev]]*0.05),0) -> -198.4305 | V147: 4.67 | W147: 36.84 | X147: 19 | Y147: =SUM(DataColl[[#This Row],[DiscExp]:[Tot MiscExp]]) -> -60.5805 | Z147: =DataColl[[#This Row],[GrossRev]]-DataColl[[#This Row],[GrossExp]] -> -671.2695 | AA147: =IF(DataColl[[#This Row],[Error]]="X",DataColl[[#This Row],[TotResidual Earnings]],0) -> 0
C148: 143 | D148: MS000MNA | E148: MNA02 | F148: JAN DJ COMMUNICACION | G148: MS000MNAA1 | H148: 8031902730 | I148: 201712 DEC | J148: =IF(DataColl[[#This Row],[Period]]<>"",DATE(LEFT(DataColl[[#This Row],[Period]],4),MID(DataColl[[#This Row],[Period]],5,2),1),"") -> 2017-12-01 | K148: =(DataColl[[#This Row],[MID]]*100000)+DataColl[[#This Row],[Period_]] -> 803190273043070 | L148: 638 | M148: =IF(DataColl[[#This Row],[Net Volume]]<1,0,"Operado") -> Operado | N148: 11 | O148: 16.37 | P148: 1.8 | Q148: 19.49 | R148: 10 | S148: 47.66 | T148: 12.68 | U148: =IF(DataColl[[#This Row],[Error]]<>"X",((DataColl[[#This Row],[GrossRev]]-DataColl[[#This Row],[DiscExp]])*VALUE(MID(DataColl[[#Headers],[MNA20%]],4,3)))+(DataColl[[#This Row],[GrossRev]]*0.05),0) -> 9.379 | V148: 0.48 | W148: 9.61 | X148: 13 | Y148: =SUM(DataColl[[#This Row],[DiscExp]:[Tot MiscExp]]) -> 45.149 | Z148: =DataColl[[#This Row],[GrossRev]]-DataColl[[#This Row],[GrossExp]] -> 2.511 | AA148: =IF(DataColl[[#This Row],[Error]]="X",DataColl[[#This Row],[TotResidual Earnings]],0) -> 0
C149: 144 | D149: MS000MNA | E149: MNA02 | F149: LA VEROS COMIDA DE MAR Y GRILL | G149: MS000MNAA1 | H149: 8031904702 | I149: 201712 DEC | J149: =IF(DataColl[[#This Row],[Period]]<>"",DATE(LEFT(DataColl[[#This Row],[Period]],4),MID(DataColl[[#This Row],[Period]],5,2),1),"") -> 2017-12-01 | K149: =(DataColl[[#This Row],[MID]]*100000)+DataColl[[#This Row],[Period_]] -> 803190470243070 | L149: 46118.76 | M149: =IF(DataColl[[#This Row],[Net Volume]]<1,0,"Operado") -> Operado | N149: 1189 | O149: 815.4 | P149: 173.85 | Q149: 0 | R149: 20 | S149: 1009.25 | T149: 555.29 | U149: =IF(DataColl[[#This Row],[Error]]<>"X",((DataColl[[#This Row],[GrossRev]]-DataColl[[#This Row],[DiscExp]])*VALUE(MID(DataColl[[#Headers],[MNA20%]],4,3)))+(DataColl[[#This Row],[GrossRev]]*0.05),0) -> 141.2545 | V149: 17.8 | W149: 23.38 | X149: 13 | Y149: =SUM(DataColl[[#This Row],[DiscExp]:[Tot MiscExp]]) -> 750.7245 | Z149: =DataColl[[#This Row],[GrossRev]]-DataColl[[#This Row],[GrossExp]] -> 258.5255 | AA149: =IF(DataColl[[#This Row],[Error]]="X",DataColl[[#This Row],[TotResidual Earnings]],0) -> 0
C150: =IF(C149="ConsD",1,C149+1) -> 145 | D150: MS000MNA | E150: MNA02 | F150: SALUD MAS VIDA | G150: MS000MNAA1 | H150: 8031919908 | I150: 201712 DEC | J150: =IF(DataColl[[#This Row],[Period]]<>"",DATE(LEFT(DataColl[[#This Row],[Period]],4),MID(DataColl[[#This Row],[Period]],5,2),1),"") -> 2017-12-01 | K150: =(DataColl[[#This Row],[MID]]*100000)+DataColl[[#This Row],[Period_]] -> 803191990843070 | L150: 9661.72 | M150: =IF(DataColl[[#This Row],[Net Volume]]<1,0,"Operado") -> Operado | N150: 124 | O150: 229.1 | P150: 5.85 | Q150: 211.08 | R150: 35 | S150: 481.03 | T150: 176.48 | U150: =IF(DataColl[[#This Row],[Error]]<>"X",((DataColl[[#This Row],[GrossRev]]-DataColl[[#This Row],[DiscExp]])*VALUE(MID(DataColl[[#Headers],[MNA20%]],4,3)))+(DataColl[[#This Row],[GrossRev]]*0.05),0) -> 84.9615 | V150: 4.52 | W150: 117.22 | X150: 15 | Y150: =SUM(DataColl[[#This Row],[DiscExp]:[Tot MiscExp]]) -> 398.1815 | Z150: =DataColl[[#This Row],[GrossRev]]-DataColl[[#This Row],[GrossExp]] -> 82.8485 | AA150: =IF(DataColl[[#This Row],[Error]]="X",DataColl[[#This Row],[TotResidual Earnings]],0) -> 0
C151: 146 | D151: MS000MNA | E151: MNA02 | F151: RUEDAS Y LLANTAS | G151: MS000MNAA1 | H151: 8031921417 | I151: 201712 DEC | J151: =IF(DataColl[[#This Row],[Period]]<>"",DATE(LEFT(DataColl[[#This Row],[Period]],4),MID(DataColl[[#This Row],[Period]],5,2),1),"") -> 2017-12-01 | K151: =(DataColl[[#This Row],[MID]]*100000)+DataColl[[#This Row],[Period_]] -> 803192141743070 | L151: 10254.01 | M151: =IF(DataColl[[#This Row],[Net Volume]]<1,0,"Operado") -> Operado | N151: 91 | O151: 119.8 | P151: 4.6 | Q151: 0 | R151: 30 | S151: 154.4 | T151: 85.87 | U151: =IF(DataColl[[#This Row],[Error]]<>"X",((DataColl[[#This Row],[GrossRev]]-DataColl[[#This Row],[DiscExp]])*VALUE(MID(DataColl[[#Headers],[MNA20%]],4,3)))+(DataColl[[#This Row],[GrossRev]]*0.05),0) -> 21.426 | V151: 1.83 | W151: 1.78 | X151: 13 | Y151: =SUM(DataColl[[#This Row],[DiscExp]:[Tot MiscExp]]) -> 123.906 | Z151: =DataColl[[#This Row],[GrossRev]]-DataColl[[#This Row],[GrossExp]] -> 30.494 | AA151: =IF(DataColl[[#This Row],[Error]]="X",DataColl[[#This Row],[TotResidual Earnings]],0) -> 0
C152: 147 | D152: MS000MNA | E152: MNA01 | F152: NATS WEST | G152: MS000MNAA1 | H152: 8031932653 | I152: 201712 DEC | J152: =IF(DataColl[[#This Row],[Period]]<>"",DATE(LEFT(DataColl[[#This Row],[Period]],4),MID(DataColl[[#This Row],[Period]],5,2),1),"") -> 2017-12-01 | K152: =(DataColl[[#This Row],[MID]]*100000)+DataColl[[#This Row],[Period_]] -> 803193265343070 | L152: 0 | M152: =IF(DataColl[[#This Row],[Net Volume]]<1,0,"Operado") -> 0 | N152: 0 | O152: 14.9 | P152: 0.1 | Q152: 0 | R152: 69.97 | S152: 84.97 | T152: 7.45 | U152: =IF(DataColl[[#This Row],[Error]]<>"X",((DataColl[[#This Row],[GrossRev]]-DataColl[[#This Row],[DiscExp]])*VALUE(MID(DataColl[[#Headers],[MNA20%]],4,3)))+(DataColl[[#This Row],[GrossRev]]*0.05),0) -> 19.7525 | V152: 0.08 | W152: 0 | X152: 15 | Y152: =SUM(DataColl[[#This Row],[DiscExp]:[Tot MiscExp]]) -> 42.2825 | Z152: =DataColl[[#This Row],[GrossRev]]-DataColl[[#This Row],[GrossExp]] -> 42.6875 | AA152: =IF(DataColl[[#This Row],[Error]]="X",DataColl[[#This Row],[TotResidual Earnings]],0) -> 0
C153: 148 | D153: MS000MNA | E153: MNA02 | F153: SALUD MAS VIDA | G153: MS000MNAA1 | H153: 8031946018 | I153: 201712 DEC | J153: =IF(DataColl[[#This Row],[Period]]<>"",DATE(LEFT(DataColl[[#This Row],[Period]],4),MID(DataColl[[#This Row],[Period]],5,2),1),"") -> 2017-12-01 | K153: =(DataColl[[#This Row],[MID]]*100000)+DataColl[[#This Row],[Period_]] -> 803194601843070 | L153: 6956.93 | M153: =IF(DataColl[[#This Row],[Net Volume]]<1,0,"Operado") -> Operado | N153: 63 | O153: 147.07 | P153: 3.3 | Q153: 119.93 | R153: 35 | S153: 305.3 | T153: 110.24 | U153: =IF(DataColl[[#This Row],[Error]]<>"X",((DataColl[[#This Row],[GrossRev]]-DataColl[[#This Row],[DiscExp]])*VALUE(MID(DataColl[[#Headers],[MNA20%]],4,3)))+(DataColl[[#This Row],[GrossRev]]*0.05),0) -> 54.277 | V153: 6.45 | W153: 65.02 | X153: 15 | Y153: =SUM(DataColl[[#This Row],[DiscExp]:[Tot MiscExp]]) -> 250.987 | Z153: =DataColl[[#This Row],[GrossRev]]-DataColl[[#This Row],[GrossExp]] -> 54.313 | AA153: =IF(DataColl[[#This Row],[Error]]="X",DataColl[[#This Row],[TotResidual Earnings]],0) -> 0
C154: 149 | D154: MS000MNA | E154: MNA02 | F154: SALUD MAS VIDA | G154: MS000MNAA1 | H154: 8031946091 | I154: 201712 DEC | J154: =IF(DataColl[[#This Row],[Period]]<>"",DATE(LEFT(DataColl[[#This Row],[Period]],4),MID(DataColl[[#This Row],[Period]],5,2),1),"") -> 2017-12-01 | K154: =(DataColl[[#This Row],[MID]]*100000)+DataColl[[#This Row],[Period_]] -> 803194609143070 | L154: 576.19 | M154: =IF(DataColl[[#This Row],[Net Volume]]<1,0,"Operado") -> Operado | N154: 10 | O154: 20.35 | P154: 0.5 | Q154: 23.24 | R154: 35 | S154: 79.09 | T154: 13.22 | U154: =IF(DataColl[[#This Row],[Error]]<>"X",((DataColl[[#This Row],[GrossRev]]-DataColl[[#This Row],[DiscExp]])*VALUE(MID(DataColl[[#Headers],[MNA20%]],4,3)))+(DataColl[[#This Row],[GrossRev]]*0.05),0) -> 17.1285 | V154: 1.43 | W154: 13.12 | X154: 15 | Y154: =SUM(DataColl[[#This Row],[DiscExp]:[Tot MiscExp]]) -> 59.8985 | Z154: =DataColl[[#This Row],[GrossRev]]-DataColl[[#This Row],[GrossExp]] -> 19.1915 | AA154: =IF(DataColl[[#This Row],[Error]]="X",DataColl[[#This Row],[TotResidual Earnings]],0) -> 0
C155: 150 | D155: MS000MNA | E155: MNA02 | F155: EL FINO, ESTETICA | G155: MS000MNAA1 | H155: 8031965497 | I155: 201712 DEC | J155: =IF(DataColl[[#This Row],[Period]]<>"",DATE(LEFT(DataColl[[#This Row],[Period]],4),MID(DataColl[[#This Row],[Period]],5,2),1),"") -> 2017-12-01 | K155: =(DataColl[[#This Row],[MID]]*100000)+DataColl[[#This Row],[Period_]] -> 803196549743070 | L155: 6943.01 | M155: =IF(DataColl[[#This Row],[Net Volume]]<1,0,"Operado") -> Operado | N155: 398 | O155: 187.67 | P155: 20.2 | Q155: 0 | R155: 0 | S155: 207.87 | T155: 133.23 | U155: =IF(DataColl[[#This Row],[Error]]<>"X",((DataColl[[#This Row],[GrossRev]]-DataColl[[#This Row],[DiscExp]])*VALUE(MID(DataColl[[#Headers],[MNA20%]],4,3)))+(DataColl[[#This Row],[GrossRev]]*0.05),0) -> 25.3215 | V155: 10.79 | W155: 7.96 | X155: 13 | Y155: =SUM(DataColl[[#This Row],[DiscExp]:[Tot MiscExp]]) -> 190.3015 | Z155: =DataColl[[#This Row],[GrossRev]]-DataColl[[#This Row],[GrossExp]] -> 17.5685 | AA155: =IF(DataColl[[#This Row],[Error]]="X",DataColl[[#This Row],[TotResidual Earnings]],0) -> 0
C156: 151 | D156: MS000MNA | E156: MNA02 | F156: DULCERIA LA COLMENA | G156: MS000MNAA1 | H156: 8031968616 | I156: 201712 DEC | J156: =IF(DataColl[[#This Row],[Period]]<>"",DATE(LEFT(DataColl[[#This Row],[Period]],4),MID(DataColl[[#This Row],[Period]],5,2),1),"") -> 2017-12-01 | K156: =(DataColl[[#This Row],[MID]]*100000)+DataColl[[#This Row],[Period_]] -> 803196861643070 | L156: 3943.64 | M156: =IF(DataColl[[#This Row],[Net Volume]]<1,0,"Operado") -> Operado | N156: 84 | O156: 109.36 | P156: 4.45 | Q156: 199.88 | R156: 35 | S156: 348.69 | T156: 100.01 | U156: =IF(DataColl[[#This Row],[Error]]<>"X",((DataColl[[#This Row],[GrossRev]]-DataColl[[#This Row],[DiscExp]])*VALUE(MID(DataColl[[#Headers],[MNA20%]],4,3)))+(DataColl[[#This Row],[GrossRev]]*0.05),0) -> 67.1705 | V156: 12.06 | W156: 154.22 | X156: 15 | Y156: =SUM(DataColl[[#This Row],[DiscExp]:[Tot MiscExp]]) -> 348.4605 | Z156: =DataColl[[#This Row],[GrossRev]]-DataColl[[#This Row],[GrossExp]] -> 0.2295 | AA156: =IF(DataColl[[#This Row],[Error]]="X",DataColl[[#This Row],[TotResidual Earnings]],0) -> 0
C157: 152 | D157: MS000MNA | E157: MNA02 | F157: OXNARD HERRAMIENTAS DE ACERO | G157: MS000MNAA1 | H157: 8031981536 | I157: 201712 DEC | J157: =IF(DataColl[[#This Row],[Period]]<>"",DATE(LEFT(DataColl[[#This Row],[Period]],4),MID(DataColl[[#This Row],[Period]],5,2),1),"") -> 2017-12-01 | K157: =(DataColl[[#This Row],[MID]]*100000)+DataColl[[#This Row],[Period_]] -> 803198153643070 | L157: 15652.93 | M157: =IF(DataColl[[#This Row],[Net Volume]]<1,0,"Operado") -> Operado | N157: 86 | O157: 446.89 | P157: 9.6 | Q157: 0 | R157: 30 | S157: 486.49 | T157: 338.48 | U157: =IF(DataColl[[#This Row],[Error]]<>"X",((DataColl[[#This Row],[GrossRev]]-DataColl[[#This Row],[DiscExp]])*VALUE(MID(DataColl[[#Headers],[MNA20%]],4,3)))+(DataColl[[#This Row],[GrossRev]]*0.05),0) -> 53.9265 | V157: 1.8 | W157: 1.68 | X157: 13 | Y157: =SUM(DataColl[[#This Row],[DiscExp]:[Tot MiscExp]]) -> 408.8865 | Z157: =DataColl[[#This Row],[GrossRev]]-DataColl[[#This Row],[GrossExp]] -> 77.6035 | AA157: =IF(DataColl[[#This Row],[Error]]="X",DataColl[[#This Row],[TotResidual Earnings]],0) -> 0
C158: 153 | D158: MS000MNA | E158: MNA02 | F158: MR CAMARON 2 | G158: MS000MNAA1 | H158: 8031988127 | I158: 201712 DEC | J158: =IF(DataColl[[#This Row],[Period]]<>"",DATE(LEFT(DataColl[[#This Row],[Period]],4),MID(DataColl[[#This Row],[Period]],5,2),1),"") -> 2017-12-01 | K158: =(DataColl[[#This Row],[MID]]*100000)+DataColl[[#This Row],[Period_]] -> 803198812743070 | L158: 0.02 | M158: =IF(DataColl[[#This Row],[Net Volume]]<1,0,"Operado") -> 0 | N158: 2 | O158: 35.13 | P158: 0.2 | Q158: 0.81 | R158: 25 | S158: 61.14 | T158: 17.83 | U158: =IF(DataColl[[#This Row],[Error]]<>"X",((DataColl[[#This Row],[GrossRev]]-DataColl[[#This Row],[DiscExp]])*VALUE(MID(DataColl[[#Headers],[MNA20%]],4,3)))+(DataColl[[#This Row],[GrossRev]]*0.05),0) -> 11.719 | V158: 0.05 | W158: 0.65 | X158: 15 | Y158: =SUM(DataColl[[#This Row],[DiscExp]:[Tot MiscExp]]) -> 45.249 | Z158: =DataColl[[#This Row],[GrossRev]]-DataColl[[#This Row],[GrossExp]] -> 15.891 | AA158: =IF(DataColl[[#This Row],[Error]]="X",DataColl[[#This Row],[TotResidual Earnings]],0) -> 0
C159: 154 | D159: MS000MNA | E159: MNA02 | F159: VEROS, COMIDA MEXICANA DE MAR Y BAR | G159: MS000MNAA1 | H159: 8031988580 | I159: 201712 DEC | J159: =IF(DataColl[[#This Row],[Period]]<>"",DATE(LEFT(DataColl[[#This Row],[Period]],4),MID(DataColl[[#This Row],[Period]],5,2),1),"") -> 2017-12-01 | K159: =(DataColl[[#This Row],[MID]]*100000)+DataColl[[#This Row],[Period_]] -> 803198858043070 | L159: 62599.8 | M159: =IF(DataColl[[#This Row],[Net Volume]]<1,0,"Operado") -> Operado | N159: 1386 | O159: 1378 | P159: 158.73 | Q159: 0 | R159: 30 | S159: 1566.73 | T159: 906.42 | U159: =IF(DataColl[[#This Row],[Error]]<>"X",((DataColl[[#This Row],[GrossRev]]-DataColl[[#This Row],[DiscExp]])*VALUE(MID(DataColl[[#Headers],[MNA20%]],4,3)))+(DataColl[[#This Row],[GrossRev]]*0.05),0) -> 210.3985 | V159: 22.22 | W159: 27.02 | X159: 13 | Y159: =SUM(DataColl[[#This Row],[DiscExp]:[Tot MiscExp]]) -> 1179.0585 | Z159: =DataColl[[#This Row],[GrossRev]]-DataColl[[#This Row],[GrossExp]] -> 387.6715 | AA159: =IF(DataColl[[#This Row],[Error]]="X",DataColl[[#This Row],[TotResidual Earnings]],0) -> 0
C160: 155 | D160: MS000MNA | E160: MNA01 | F160: CACTUS TAQUERIA 2 EN PROV | G160: MS000MNAA1 | H160: 8032001698 | I160: 201712 DEC | J160: =IF(DataColl[[#This Row],[Period]]<>"",DATE(LEFT(DataColl[[#This Row],[Period]],4),MID(DataColl[[#This Row],[Period]],5,2),1),"") -> 2017-12-01 | K160: =(DataColl[[#This Row],[MID]]*100000)+DataColl[[#This Row],[Period_]] -> 803200169843070 | L160: 36140.79 | M160: =IF(DataColl[[#This Row],[Net Volume]]<1,0,"Operado") -> Operado | N160: 2308 | O160: 1147.48 | P160: 236.42 | Q160: 0.84 | R160: 79.98 | S160: 1464.72 | T160: 744.35 | U160: =IF(DataColl[[#This Row],[Error]]<>"X",((DataColl[[#This Row],[GrossRev]]-DataColl[[#This Row],[DiscExp]])*VALUE(MID(DataColl[[#Headers],[MNA20%]],4,3)))+(DataColl[[#This Row],[GrossRev]]*0.05),0) -> 217.31 | V160: 65.28 | W160: 45.57 | X160: 13 | Y160: =SUM(DataColl[[#This Row],[DiscExp]:[Tot MiscExp]]) -> 1085.51 | Z160: =DataColl[[#This Row],[GrossRev]]-DataColl[[#This Row],[GrossExp]] -> 379.21 | AA160: =IF(DataColl[[#This Row],[Error]]="X",DataColl[[#This Row],[TotResidual Earnings]],0) -> 0
C161: 156 | D161: MS000MNA | E161: MNA02 | F161: BARRERAS RESTAURANT Y PANADERIA | G161: MS000MNAA1 | H161: 8032008487 | I161: 201712 DEC | J161: =IF(DataColl[[#This Row],[Period]]<>"",DATE(LEFT(DataColl[[#This Row],[Period]],4),MID(DataColl[[#This Row],[Period]],5,2),1),"") -> 2017-12-01 | K161: =(DataColl[[#This Row],[MID]]*100000)+DataColl[[#This Row],[Period_]] -> 803200848743070 | L161: 10757.69 | M161: =IF(DataColl[[#This Row],[Net Volume]]<1,0,"Operado") -> Operado | N161: 395 | O161: 229.96 | P161: 20.25 | Q161: 0 | R161: 20 | S161: 270.21 | T161: 162.79 | U161: =IF(DataColl[[#This Row],[Error]]<>"X",((DataColl[[#This Row],[GrossRev]]-DataColl[[#This Row],[DiscExp]])*VALUE(MID(DataColl[[#Headers],[MNA20%]],4,3)))+(DataColl[[#This Row],[GrossRev]]*0.05),0) -> 34.9945 | V161: 14.99 | W161: 7.86 | X161: 20.5 | Y161: =SUM(DataColl[[#This Row],[DiscExp]:[Tot MiscExp]]) -> 241.1345 | Z161: =DataColl[[#This Row],[GrossRev]]-DataColl[[#This Row],[GrossExp]] -> 29.0755 | AA161: =IF(DataColl[[#This Row],[Error]]="X",DataColl[[#This Row],[TotResidual Earnings]],0) -> 0
C162: 157 | D162: MS000MNA | E162: MNA02 | F162: TACOS JALISCO | G162: MS000MNAA1 | H162: 8032019443 | I162: 201712 DEC | J162: =IF(DataColl[[#This Row],[Period]]<>"",DATE(LEFT(DataColl[[#This Row],[Period]],4),MID(DataColl[[#This Row],[Period]],5,2),1),"") -> 2017-12-01 | K162: =(DataColl[[#This Row],[MID]]*100000)+DataColl[[#This Row],[Period_]] -> 803201944343070 | L162: 4671.82 | M162: =IF(DataColl[[#This Row],[Net Volume]]<1,0,"Operado") -> Operado | N162: 323 | O162: 159.99 | P162: 16.15 | Q162: 0 | R162: 0 | S162: 176.14 | T162: 113.34 | U162: =IF(DataColl[[#This Row],[Error]]<>"X",((DataColl[[#This Row],[GrossRev]]-DataColl[[#This Row],[DiscExp]])*VALUE(MID(DataColl[[#Headers],[MNA20%]],4,3)))+(DataColl[[#This Row],[GrossRev]]*0.05),0) -> 21.367 | V162: 5.27 | W162: 6.38 | X162: 13 | Y162: =SUM(DataColl[[#This Row],[DiscExp]:[Tot MiscExp]]) -> 159.357 | Z162: =DataColl[[#This Row],[GrossRev]]-DataColl[[#This Row],[GrossExp]] -> 16.783 | AA162: =IF(DataColl[[#This Row],[Error]]="X",DataColl[[#This Row],[TotResidual Earnings]],0) -> 0
C163: 158 | D163: MS000MNA | E163: MNA02 | F163: CAFFE VERONA | G163: MS000MNAA1 | H163: 8032029665 | I163: 201712 DEC | J163: =IF(DataColl[[#This Row],[Period]]<>"",DATE(LEFT(DataColl[[#This Row],[Period]],4),MID(DataColl[[#This Row],[Period]],5,2),1),"") -> 2017-12-01 | K163: =(DataColl[[#This Row],[MID]]*100000)+DataColl[[#This Row],[Period_]] -> 803202966543070 | L163: 1866.91 | M163: =IF(DataColl[[#This Row],[Net Volume]]<1,0,"Operado") -> Operado | N163: 43 | O163: 58.83 | P163: 2.2 | Q163: 0 | R163: 20 | S163: 81.03 | T163: 39.625 | U163: =IF(DataColl[[#This Row],[Error]]<>"X",((DataColl[[#This Row],[GrossRev]]-DataColl[[#This Row],[DiscExp]])*VALUE(MID(DataColl[[#Headers],[MNA20%]],4,3)))+(DataColl[[#This Row],[GrossRev]]*0.05),0) -> 12.3325 | V163: 0.87 | W163: 0.8 | X163: 113 | Y163: =SUM(DataColl[[#This Row],[DiscExp]:[Tot MiscExp]]) -> 166.6275 | Z163: =DataColl[[#This Row],[GrossRev]]-DataColl[[#This Row],[GrossExp]] -> -85.5975 | AA163: =IF(DataColl[[#This Row],[Error]]="X",DataColl[[#This Row],[TotResidual Earnings]],0) -> 0
C164: 159 | D164: MS000MNA | E164: MNA02 | F164: EL AGAVE AZUL, RESTAURANT | G164: MS000MNAA1 | H164: 8032030135 | I164: 201712 DEC | J164: =IF(DataColl[[#This Row],[Period]]<>"",DATE(LEFT(DataColl[[#This Row],[Period]],4),MID(DataColl[[#This Row],[Period]],5,2),1),"") -> 2017-12-01 | K164: =(DataColl[[#This Row],[MID]]*100000)+DataColl[[#This Row],[Period_]] -> 803203013543070 | L164: 5518.01 | M164: =IF(DataColl[[#This Row],[Net Volume]]<1,0,"Operado") -> Operado | N164: 105 | O164: 100.83 | P164: 0 | Q164: 0 | R164: 220 | S164: 320.83 | T164: 95.83 | U164: =IF(DataColl[[#This Row],[Error]]<>"X",((DataColl[[#This Row],[GrossRev]]-DataColl[[#This Row],[DiscExp]])*VALUE(MID(DataColl[[#Headers],[MNA20%]],4,3)))+(DataColl[[#This Row],[GrossRev]]*0.05),0) -> 61.0415 | V164: 1.61 | W164: 1.86 | X164: 233 | Y164: =SUM(DataColl[[#This Row],[DiscExp]:[Tot MiscExp]]) -> 393.3415 | Z164: =DataColl[[#This Row],[GrossRev]]-DataColl[[#This Row],[GrossExp]] -> -72.5115 | AA164: =IF(DataColl[[#This Row],[Error]]="X",DataColl[[#This Row],[TotResidual Earnings]],0) -> 0
C165: 160 | D165: MS000MNA | E165: MNA01 | F165: VANCOUVER WINGS | G165: MS000MNAA1 | H165: 8032045620 | I165: 201712 DEC | J165: =IF(DataColl[[#This Row],[Period]]<>"",DATE(LEFT(DataColl[[#This Row],[Period]],4),MID(DataColl[[#This Row],[Period]],5,2),1),"") -> 2017-12-01 | K165: =(DataColl[[#This Row],[MID]]*100000)+DataColl[[#This Row],[Period_]] -> 803204562043070 | L165: 5992.19 | M165: =IF(DataColl[[#This Row],[Net Volume]]<1,0,"Operado") -> Operado | N165: 255 | O165: 146.44 | P165: 20.72 | Q165: 0 | R165: 107.96 | S165: 275.12 | T165: 122.2 | U165: =IF(DataColl[[#This Row],[Error]]<>"X",((DataColl[[#This Row],[GrossRev]]-DataColl[[#This Row],[DiscExp]])*VALUE(MID(DataColl[[#Headers],[MNA20%]],4,3)))+(DataColl[[#This Row],[GrossRev]]*0.05),0) -> 44.34 | V165: 11.62 | W165: 5.02 | X165: 22.5 | Y165: =SUM(DataColl[[#This Row],[DiscExp]:[Tot MiscExp]]) -> 205.68 | Z165: =DataColl[[#This Row],[GrossRev]]-DataColl[[#This Row],[GrossExp]] -> 69.44 | AA165: =IF(DataColl[[#This Row],[Error]]="X",DataColl[[#This Row],[TotResidual Earnings]],0) -> 0
C166: 161 | D166: MS000MNA | E166: MNA02 | F166: XPRESS IMAGING SOLUTIONS | G166: MS000MNAA1 | H166: 8032078738 | I166: 201712 DEC | J166: =IF(DataColl[[#This Row],[Period]]<>"",DATE(LEFT(DataColl[[#This Row],[Period]],4),MID(DataColl[[#This Row],[Period]],5,2),1),"") -> 2017-12-01 | K166: =(DataColl[[#This Row],[MID]]*100000)+DataColl[[#This Row],[Period_]] -> 803207873843070 | L166: 0.01 | M166: =IF(DataColl[[#This Row],[Net Volume]]<1,0,"Operado") -> 0 | N166: 1 | O166: 0.29 | P166: 0.05 | Q166: 0 | R166: 20 | S166: 20.34 | T166: 0.24 | U166: =IF(DataColl[[#This Row],[Error]]<>"X",((DataColl[[#This Row],[GrossRev]]-DataColl[[#This Row],[DiscExp]])*VALUE(MID(DataColl[[#Headers],[MNA20%]],4,3)))+(DataColl[[#This Row],[GrossRev]]*0.05),0) -> 5.037 | V166: 0.04 | W166: 0.02 | X166: 0 | Y166: =SUM(DataColl[[#This Row],[DiscExp]:[Tot MiscExp]]) -> 5.337 | Z166: =DataColl[[#This Row],[GrossRev]]-DataColl[[#This Row],[GrossExp]] -> 15.003 | AA166: =IF(DataColl[[#This Row],[Error]]="X",DataColl[[#This Row],[TotResidual Earnings]],0) -> 0
C167: 162 | D167: MS000MNA | E167: MNA01 | F167: CACTUS MEXICAN CUISINE | G167: MS000MNAA1 | H167: 8032100359 | I167: 201712 DEC | J167: =IF(DataColl[[#This Row],[Period]]<>"",DATE(LEFT(DataColl[[#This Row],[Period]],4),MID(DataColl[[#This Row],[Period]],5,2),1),"") -> 2017-12-01 | K167: =(DataColl[[#This Row],[MID]]*100000)+DataColl[[#This Row],[Period_]] -> 803210035943070 | L167: 0 | M167: =IF(DataColl[[#This Row],[Net Volume]]<1,0,"Operado") -> 0 | N167: 0 | O167: 0 | P167: 0 | Q167: 0 | R167: 0 | S167: 0 | T167: 0 | U167: =IF(DataColl[[#This Row],[Error]]<>"X",((DataColl[[#This Row],[GrossRev]]-DataColl[[#This Row],[DiscExp]])*VALUE(MID(DataColl[[#Headers],[MNA20%]],4,3)))+(DataColl[[#This Row],[GrossRev]]*0.05),0) -> 0 | V167: 0 | W167: 0 | X167: 0 | Y167: =SUM(DataColl[[#This Row],[DiscExp]:[Tot MiscExp]]) -> 0 | Z167: =DataColl[[#This Row],[GrossRev]]-DataColl[[#This Row],[GrossExp]] -> 0 | AA167: =IF(DataColl[[#This Row],[Error]]="X",DataColl[[#This Row],[TotResidual Earnings]],0) -> 0
C168: Total | D168: TOTAL | L168: =SUBTOTAL(109,DataColl[Net Volume]) -> 2082957.06 | N168: =SUBTOTAL(109,DataColl[NetNo]) -> 65880 | O168: =SUBTOTAL(109,DataColl[Tot DiscIncome]) -> 65909.66 | P168: =SUBTOTAL(109,DataColl[Tot AuthRev]) -> 6846.57 | Q168: =SUBTOTAL(109,DataColl[Tot ProcRev]) -> 4996.33 | R168: =SUBTOTAL(109,DataColl[Tot MiscRev]) -> 9021.07 | S168: =SUBTOTAL(109,DataColl[GrossRev]) -> 86773.63 | T168: =SUBTOTAL(109,DataColl[DiscExp]) -> 35814.205 | U168: =SUBTOTAL(109,DataColl[MNA20%]) -> 11322.5295 | V168: =SUBTOTAL(109,DataColl[Tot AuthExp]) -> 1960.67 | W168: =SUBTOTAL(109,DataColl[Tot ProcExp]) -> 4644.59 | X168: =SUBTOTAL(109,DataColl[Tot MiscExp]) -> 8162.66 | Y168: =SUBTOTAL(109,DataColl[GrossExp]) -> 61904.6545 | Z168: =SUBTOTAL(109,DataColl[TotResidual Earnings])-DataColl[[#Totals],[TotResEarn_Err]] -> 12130.4755 | AA168: =SUBTOTAL(109,DataColl[TotResEarn_Err]) -> 12738.5

Sheet MNA Datagrid view
C5: Partner | D5: DBA | E5: Portfolio | F5: MID | G5: Period | H5: Net Volume | I5: NetNo | J5: Tot DiscIncome | K5: Tot AuthRev | L5: Tot ProcRev | M5: Tot MiscRev | N5: GrossRev | O5: DiscExp | P5: MNA20% | Q5: Tot AuthExp | R5: Tot ProcExp | S5: Tot MiscExp | T5: GrossExp | U5: TotResidual Earnings
C7: Total | H7: =SUBTOTAL(109,DataView[Net Volume]) -> 0 | I7: =SUBTOTAL(109,DataView[NetNo]) -> 0 | J7: =SUBTOTAL(109,DataView[Tot DiscIncome]) -> 0 | K7: =SUBTOTAL(109,DataView[Tot AuthRev]) -> 0 | L7: =SUBTOTAL(109,DataView[Tot ProcRev]) -> 0 | M7: =SUBTOTAL(109,DataView[Tot MiscRev]) -> 0 | N7: =SUBTOTAL(109,DataView[GrossRev]) -> 0 | O7: =SUBTOTAL(109,DataView[DiscExp]) -> 0 | P7: =SUBTOTAL(109,DataView[MNA20%]) -> 0 | Q7: =SUBTOTAL(109,DataView[Tot AuthExp]) -> 0 | R7: =SUBTOTAL(109,DataView[Tot ProcExp]) -> 0 | S7: =SUBTOTAL(109,DataView[Tot MiscExp]) -> 0 | T7: =SUBTOTAL(109,DataView[GrossExp]) -> 0 | U7: =SUBTOTAL(109,DataView[TotResidual Earnings]) -> 0
